Service Delivery Area(T),Service Delivery Team(T),ExpenditureGroup(T),Account(T),Supplier Name(T),Trans Date,Amount
Adult Social Care,My Options,Capital Expenditure,Payments to Contractor,PAVE AWAYS LTD,01/05/2024,"60,194.68"
"Communities, Customer & Commercial Services",ICT,Capital Expenditure,Payments to Contractor,FarrPoint Ltd,07/05/2024,600.00
"Communities, Customer & Commercial Services",ICT,Capital Expenditure,Payments to Contractor,Bramble Hub Limited,20/05/2024,"8,229.17"
"Communities, Customer & Commercial Services",ICT,Capital Expenditure,Payments to Contractor,VIRGIN MEDIA BUSINESS ,29/05/2024,"185,002.42"
Corporate Communications,Communications & Marketing,Capital Expenditure,Other Capital Expenditure,Spacehouse Ltd,29/05/2024,495.00
Education & Skills,Education & Skills,Capital Expenditure,Legal Fees,WARD HADAWAY SOLICITORS,16/05/2024,410.40
Education & Skills,Education & Skills,Capital Expenditure,Payments to Contractor,R G STONES (BUILDINGS) LTD,14/05/2024,"123,787.36"
Education & Skills,Education & Skills,Capital Expenditure,Legal Fees,WARD HADAWAY SOLICITORS,16/05/2024,565.00
Education & Skills,Education & Skills,Capital Expenditure,Legal Fees,WARD HADAWAY SOLICITORS,16/05/2024,440.80
Education & Skills,Education & Skills,Capital Expenditure,Legal Fees,WARD HADAWAY SOLICITORS,16/05/2024,106.40
Education & Skills,Education & Skills,Capital Expenditure,Legal Fees,WARD HADAWAY SOLICITORS,16/05/2024,"1,535.20"
Education & Skills,Education & Skills,Capital Expenditure,Payments to Contractor,Inspectas Compliance Ltd,02/05/2024,960.00
Education & Skills,Education & Skills,Capital Expenditure,Payments to Contractor,Inspectas Compliance Ltd,02/05/2024,960.00
Education & Skills,Education & Skills,Capital Expenditure,Payments to Contractor,Inspectas Compliance Ltd,02/05/2024,"1,800.00"
Education & Skills,Education & Skills,Capital Expenditure,Payments to Contractor,Services in Design Ltd,10/05/2024,"1,462.50"
Education & Skills,Education & Skills,Capital Expenditure,Payments to Contractor,TDR Heating & Ventilation Engineers,24/05/2024,"67,230.17"
Education & Skills,Education & Skills,Capital Expenditure,Payments to Contractor,PAVE AWAYS LTD,14/05/2024,"416,053.28"
Education & Skills,Education & Skills,Capital Expenditure,Payments to Contractor,TAYLORS MECHANICAL H & P SERVICES LTD,17/05/2024,"17,994.82"
Education & Skills,Education & Skills,Capital Expenditure,Payments to Contractor,Services in Design Ltd,09/05/2024,450.00
Education & Skills,Education & Skills,Capital Expenditure,Payments to Contractor,Cubic FM Ltd,24/05/2024,"11,960.00"
Education & Skills,Education & Skills,Capital Expenditure,Payments to Contractor,Cubic FM Ltd,24/05/2024,"6,930.00"
Education & Skills,Education & Skills,Capital Expenditure,Payments to Contractor,PAVE AWAYS LTD,20/05/2024,"308,547.90"
Education & Skills,Education & Skills,Capital Expenditure,Payments to Contractor,Services in Design Ltd,16/05/2024,"6,300.00"
"Housing, Employment & Infrastructure",Inward Investment & Business Support,Capital Expenditure,Payments to Contractor,Crown Print & Design Ltd,20/05/2024,"2,000.00"
"Housing, Employment & Infrastructure",Inward Investment & Business Support,Capital Expenditure,Payments to Contractor,Wellington Angling,14/05/2024,"2,500.00"
"Housing, Employment & Infrastructure",Private Sector Housing & Enforcement,Capital Expenditure,Other Capital Expenditure,Marches Energy Agency,30/05/2024,"1,453.00"
Neighbourhood & Enforcement Services,"Highways, Engineering & Project Delivery",Capital Expenditure,External Professional Fees,Carrington West Ltd,08/05/2024,"1,859.55"
Neighbourhood & Enforcement Services,"Highways, Engineering & Project Delivery",Capital Expenditure,Payments to Contractor,Amey OW Ltd,22/05/2024,"7,745.32"
Neighbourhood & Enforcement Services,"Highways, Engineering & Project Delivery",Capital Expenditure,External Professional Fees,Carrington West Ltd,31/05/2024,"1,193.50"
Neighbourhood & Enforcement Services,"Highways, Engineering & Project Delivery",Capital Expenditure,Payments to Contractor,Nationwide Data Collection,10/05/2024,400.00
Neighbourhood & Enforcement Services,"Highways, Engineering & Project Delivery",Capital Expenditure,Payments to Contractor,SWARCO UK & IRELAND LTD,03/05/2024,"1,005.08"
Neighbourhood & Enforcement Services,"Highways, Engineering & Project Delivery",Capital Expenditure,Payments to Contractor,SWARCO UK & IRELAND LTD,02/05/2024,"63,351.94"
Neighbourhood & Enforcement Services,"Highways, Engineering & Project Delivery",Capital Expenditure,Marketing / Advertising,THE MIDLAND NEWS ASSOCIATION LTD,07/05/2024,406.48
Neighbourhood & Enforcement Services,"Highways, Engineering & Project Delivery",Capital Expenditure,Marketing / Advertising,THE MIDLAND NEWS ASSOCIATION LTD,07/05/2024,435.51
Neighbourhood & Enforcement Services,"Highways, Engineering & Project Delivery",Capital Expenditure,Payments to Contractor,West Mercia Police & Crime Commissioner,08/05/2024,"4,472.50"
Neighbourhood & Enforcement Services,"Highways, Engineering & Project Delivery",Capital Expenditure,Payments to Contractor,SIMMONSIGNS LTD,17/05/2024,"15,561.00"
Neighbourhood & Enforcement Services,"Highways, Engineering & Project Delivery",Capital Expenditure,Payments to Contractor,Cubic Transportation Systems,15/05/2024,"3,561.00"
Neighbourhood & Enforcement Services,"Highways, Engineering & Project Delivery",Capital Expenditure,Marketing / Advertising,THE MIDLAND NEWS ASSOCIATION LTD,22/05/2024,261.31
Neighbourhood & Enforcement Services,"Highways, Engineering & Project Delivery",Capital Expenditure,Payments to Contractor,SIMMONSIGNS LTD,29/05/2024,"6,090.72"
Neighbourhood & Enforcement Services,"Highways, Engineering & Project Delivery",Capital Expenditure,Marketing / Advertising,THE MIDLAND NEWS ASSOCIATION LTD,31/05/2024,290.34
Neighbourhood & Enforcement Services,"Highways, Engineering & Project Delivery",Capital Expenditure,Marketing / Advertising,THE MIDLAND NEWS ASSOCIATION LTD,31/05/2024,377.44
Neighbourhood & Enforcement Services,"Highways, Engineering & Project Delivery",Capital Expenditure,Marketing / Advertising,THE MIDLAND NEWS ASSOCIATION LTD,31/05/2024,812.95
Neighbourhood & Enforcement Services,"Highways, Engineering & Project Delivery",Capital Expenditure,Payments to Contractor,Tetra Tech Limited,14/05/2024,"1,400.00"
Neighbourhood & Enforcement Services,"Highways, Engineering & Project Delivery",Capital Expenditure,Marketing / Advertising,THE MIDLAND NEWS ASSOCIATION LTD,13/05/2024,116.14
Neighbourhood & Enforcement Services,"Highways, Engineering & Project Delivery",Capital Expenditure,Marketing / Advertising,THE MIDLAND NEWS ASSOCIATION LTD,01/05/2024,116.14
Neighbourhood & Enforcement Services,"Highways, Engineering & Project Delivery",Capital Expenditure,Marketing / Advertising,THE MIDLAND NEWS ASSOCIATION LTD,01/05/2024,116.14
Neighbourhood & Enforcement Services,"Highways, Engineering & Project Delivery",Capital Expenditure,Marketing / Advertising,THE MIDLAND NEWS ASSOCIATION LTD,08/05/2024,116.14
Neighbourhood & Enforcement Services,"Highways, Engineering & Project Delivery",Capital Expenditure,Marketing / Advertising,THE MIDLAND NEWS ASSOCIATION LTD,08/05/2024,145.17
Neighbourhood & Enforcement Services,"Highways, Engineering & Project Delivery",Capital Expenditure,Marketing / Advertising,THE MIDLAND NEWS ASSOCIATION LTD,08/05/2024,116.14
Neighbourhood & Enforcement Services,"Highways, Engineering & Project Delivery",Capital Expenditure,Marketing / Advertising,THE MIDLAND NEWS ASSOCIATION LTD,08/05/2024,116.14
Neighbourhood & Enforcement Services,"Highways, Engineering & Project Delivery",Capital Expenditure,Marketing / Advertising,THE MIDLAND NEWS ASSOCIATION LTD,08/05/2024,116.14
Neighbourhood & Enforcement Services,"Highways, Engineering & Project Delivery",Capital Expenditure,Marketing / Advertising,THE MIDLAND NEWS ASSOCIATION LTD,08/05/2024,137.09
Neighbourhood & Enforcement Services,"Highways, Engineering & Project Delivery",Capital Expenditure,Marketing / Advertising,THE MIDLAND NEWS ASSOCIATION LTD,08/05/2024,116.14
Neighbourhood & Enforcement Services,"Highways, Engineering & Project Delivery",Capital Expenditure,Payments to Contractor,Waterman Aspen,10/05/2024,"1,980.00"
Neighbourhood & Enforcement Services,"Highways, Engineering & Project Delivery",Capital Expenditure,Marketing / Advertising,THE MIDLAND NEWS ASSOCIATION LTD,08/05/2024,116.14
Neighbourhood & Enforcement Services,"Highways, Engineering & Project Delivery",Capital Expenditure,Marketing / Advertising,THE MIDLAND NEWS ASSOCIATION LTD,31/05/2024,116.14
Neighbourhood & Enforcement Services,"Highways, Engineering & Project Delivery",Capital Expenditure,External Professional Fees,Amey OW Ltd,31/05/2024,318.68
Neighbourhood & Enforcement Services,"Highways, Engineering & Project Delivery",Capital Expenditure,Payments to Contractor,R Hand Services Limited (Dyno Rod),22/05/2024,"1,440.00"
Neighbourhood & Enforcement Services,Strategic Transport & Highway Network Management,Capital Expenditure,Marketing / Advertising,THE MIDLAND NEWS ASSOCIATION LTD,07/05/2024,116.14
Neighbourhood & Enforcement Services,Strategic Transport & Highway Network Management,Capital Expenditure,Marketing / Advertising,THE MIDLAND NEWS ASSOCIATION LTD,07/05/2024,116.14
Neighbourhood & Enforcement Services,Strategic Transport & Highway Network Management,Capital Expenditure,Payments to Contractor,GRANVILLE CONSTRUCTION & MAINTENANCE LTD,15/05/2024,743.76
Neighbourhood & Enforcement Services,Strategic Transport & Highway Network Management,Capital Expenditure,Payments to Contractor,AtkinsR�alis UK Limited,24/05/2024,"1,940.00"
Neighbourhood & Enforcement Services,Waste & Neighbourhood Services,Capital Expenditure,Payments to Contractor,BounceBack Safety Surfaces Ltd,31/05/2024,"21,652.40"
Prosperity & Investment,BiT,Capital Expenditure,Payments to Contractor,PAVE AWAYS LTD,21/05/2024,"242,788.54"
Prosperity & Investment,BiT,Capital Expenditure,Payments to Contractor,PAVE AWAYS LTD,07/05/2024,"116,671.22"
Prosperity & Investment,BiT,Capital Expenditure,Payments to Contractor,VPS (UK) LTD,20/05/2024,211.35
Prosperity & Investment,BiT,Capital Expenditure,Payments to Contractor,Geldards LLP,16/05/2024,"1,113.00"
Prosperity & Investment,BiT,Capital Expenditure,Payments to Contractor,National Grid Electricity Distribution (West Midlands) plc,17/05/2024,"2,484.88"
Prosperity & Investment,BiT,Capital Expenditure,Payments to Contractor,Lovell Partnerships Limited,29/05/2024,"127,703.49"
Prosperity & Investment,Development Management,Capital Expenditure,Payments to Contractor,THE MIDLAND NEWS ASSOCIATION LTD,07/05/2024,215.42
Prosperity & Investment,Development Management,Capital Expenditure,Payments to Contractor,THE MIDLAND NEWS ASSOCIATION LTD,07/05/2024,235.01
Prosperity & Investment,Development Management,Capital Expenditure,Payments to Contractor,THE MIDLAND NEWS ASSOCIATION LTD,07/05/2024,134.44
Prosperity & Investment,Development Management,Capital Expenditure,Payments to Contractor,Red Kite Network Limited,16/05/2024,"1,872.55"
Prosperity & Investment,Regeneration & Investment,Capital Expenditure,Payments to Contractor,GROUND INVESTIGATION & PILING LTD,03/05/2024,"13,155.14"
Prosperity & Investment,Regeneration & Investment,Capital Expenditure,Payments to Contractor,GROUND INVESTIGATION & PILING LTD,03/05/2024,"1,256.25"
Prosperity & Investment,Regeneration & Investment,Capital Expenditure,Payments to Contractor,GROUND INVESTIGATION & PILING LTD,03/05/2024,"11,986.85"
Prosperity & Investment,Regeneration & Investment,Capital Expenditure,Payments to Contractor,GROUND INVESTIGATION & PILING LTD,03/05/2024,"1,000.00"
Prosperity & Investment,Regeneration & Investment,Capital Expenditure,Payments to Contractor,GROUND INVESTIGATION & PILING LTD,03/05/2024,400.00
Prosperity & Investment,Regeneration & Investment,Capital Expenditure,External Professional Fees,Morris Property Ltd,08/05/2024,"6,197.23"
Prosperity & Investment,Regeneration & Investment,Capital Expenditure,External Professional Fees,NOBRIDGE LTD,03/05/2024,590.00
Prosperity & Investment,Regeneration & Investment,Capital Expenditure,External Professional Fees,PERFECT CIRCLE JV LTD,03/05/2024,"7,616.80"
Prosperity & Investment,Regeneration & Investment,Capital Expenditure,External Professional Fees,PERFECT CIRCLE JV LTD,03/05/2024,"15,950.03"
Prosperity & Investment,Regeneration & Investment,Capital Expenditure,External Professional Fees,PERFECT CIRCLE JV LTD,03/05/2024,"4,270.20"
Prosperity & Investment,Regeneration & Investment,Capital Expenditure,External Professional Fees,Focus Consultants 2010 LLP,03/05/2024,"1,320.00"
Prosperity & Investment,Regeneration & Investment,Capital Expenditure,Payments to Contractor,Willmott Dixon Construction Ltd,21/05/2024,"254,630.80"
Prosperity & Investment,Regeneration & Investment,Capital Expenditure,Payments to Contractor,Willmott Dixon Construction Ltd,21/05/2024,"1,502,884.62"
Prosperity & Investment,Regeneration & Investment,Capital Expenditure,Compensation,FREETHS LLP ,10/05/2024,"14,250.00"
Prosperity & Investment,Regeneration & Investment,Capital Expenditure,Legal Fees,FREETHS LLP,13/05/2024,"10,618.20"
Prosperity & Investment,Regeneration & Investment,Capital Expenditure,Payments to Contractor,Morris Property Ltd,07/05/2024,"119,930.80"
Prosperity & Investment,Regeneration & Investment,Capital Expenditure,Compensation,Hulley and Kirkwood Consulting Engineers Limited,08/05/2024,"2,660.00"
Prosperity & Investment,Regeneration & Investment,Capital Expenditure,Other Capital Expenditure,NUPLACE LTD,22/05/2024,"1,000,000.00"
Prosperity & Investment,Regeneration & Investment,Capital Expenditure,External Professional Fees,National Grid Electricity Distribution (West Midlands) plc,22/05/2024,"13,025.68"
Prosperity & Investment,Regeneration & Investment,Capital Expenditure,External Professional Fees,National Grid Electricity Distribution (West Midlands) plc,22/05/2024,"29,349.89"
Prosperity & Investment,Regeneration & Investment,Capital Expenditure,Legal Fees,FREETHS LLP,22/05/2024,"1,525.40"
Prosperity & Investment,Regeneration & Investment,Capital Expenditure,Legal Fees,FREETHS LLP,22/05/2024,"2,202.60"
Prosperity & Investment,Regeneration & Investment,Capital Expenditure,Other Capital Expenditure,NUPLACE LTD,21/05/2024,"250,000.00"
Prosperity & Investment,Regeneration & Investment,Capital Expenditure,Payments to Contractor,A.R.M. Surveys Ltd,20/05/2024,"1,850.00"
Prosperity & Investment,Regeneration & Investment,Capital Expenditure,Legal Fees,FREETHS LLP,16/05/2024,464.50
Prosperity & Investment,Regeneration & Investment,Capital Expenditure,Legal Fees,FREETHS LLP,16/05/2024,307.20
Prosperity & Investment,Regeneration & Investment,Capital Expenditure,Legal Fees,FREETHS LLP,16/05/2024,293.80
Prosperity & Investment,Regeneration & Investment,Capital Expenditure,External Professional Fees,Kajima Partnerships Ltd,31/05/2024,"25,964.76"
Prosperity & Investment,Regeneration & Investment,Capital Expenditure,External Professional Fees,PRYCE (BUILDERS) LTD,13/05/2024,"1,600.00"
Prosperity & Investment,Regeneration & Investment,Capital Expenditure,Legal Fees,Thomas Lister Ltd,07/05/2024,"6,750.00"
Prosperity & Investment,Regeneration & Investment,Capital Expenditure,External Professional Fees,PERFECT CIRCLE JV LTD,08/05/2024,"35,614.02"
Prosperity & Investment,Regeneration & Investment,Capital Expenditure,Site Investigation,Travis Baker Ltd,08/05/2024,"1,275.00"
Prosperity & Investment,Regeneration & Investment,Capital Expenditure,External Professional Fees,AtkinsR�alis UK Limited,08/05/2024,"19,092.25"
Prosperity & Investment,Regeneration & Investment,Capital Expenditure,Payments to Contractor,Morris Property Ltd,14/05/2024,"130,625.00"
Prosperity & Investment,Regeneration & Investment,Capital Expenditure,External Professional Fees,Market Curators,22/05/2024,900.00
Prosperity & Investment,Regeneration & Investment,Capital Expenditure,Payments to Contractor,Red Kite Network Limited,17/05/2024,"1,825.00"
Prosperity & Investment,Regeneration & Investment,Capital Expenditure,Plan Environment Services Fees,R Hand Services Limited (Dyno Rod),16/05/2024,"1,600.00"
Prosperity & Investment,Regeneration & Investment,Capital Expenditure,External Professional Fees,PERFECT CIRCLE JV LTD,20/05/2024,"63,954.64"
Prosperity & Investment,Regeneration & Investment,Capital Expenditure,External Professional Fees,PERFECT CIRCLE JV LTD,28/05/2024,"17,807.01"
Prosperity & Investment,Regeneration & Investment,Capital Expenditure,External Professional Fees,WREKIN DRAIN SERVICES LTD,28/05/2024,855.00
Prosperity & Investment,Regeneration & Investment,Capital Expenditure,Payments to Contractor,WREKIN DRAIN SERVICES LTD,31/05/2024,"2,800.00"
Adult Social Care,ASC Prevention & Enablement,Transport-Related Expenditure,Taxi Costs,Cartello Ambulance,16/05/2024,228.00
Adult Social Care,ASC Prevention & Enablement,Transport-Related Expenditure,Taxi Costs,Cartello Ambulance,16/05/2024,342.00
Adult Social Care,ASC Prevention & Enablement,Transport-Related Expenditure,Taxi Costs,Cartello Ambulance,16/05/2024,199.50
Adult Social Care,ASC Prevention & Enablement,Transport-Related Expenditure,Taxi Costs,Cartello Ambulance,29/05/2024,199.50
Adult Social Care,ASC Prevention & Enablement,Premises-Related Expenditure,Contract Cleaning,Vortex Cleaning Ltd,29/05/2024,"5,115.00"
Adult Social Care,ASC Prevention & Enablement,Premises-Related Expenditure,Building Cleaning DSO,CLEANIT CLEANING SERVICES,29/05/2024,"1,195.00"
Adult Social Care,ASC Prevention & Enablement,Supplies & Services,Equipment - Hire,ARJO UK LTD,16/05/2024,620.00
Adult Social Care,ASC Prevention & Enablement,Supplies & Services,Equipment - Hire,ARJO UK LTD,16/05/2024,636.00
Adult Social Care,ASC Prevention & Enablement,Supplies & Services,Translation Services,VISS Sign Language Interpreting Service,16/05/2024,120.00
Adult Social Care,ASC Prevention & Enablement,Supplies & Services,Translation Services,VISS Sign Language Interpreting Service,16/05/2024,120.00
Adult Social Care,"Assurance, Transformation & Financial Management",Supplies & Services,Comp Software (Purch / Hire),Signis Limited,24/05/2024,"9,500.00"
Adult Social Care,"Assurance, Transformation & Financial Management",Supplies & Services,Print Room Recharges,MEETING POINT TRUST LTD,23/05/2024,127.45
Adult Social Care,"Commissioning, Procurement & Brokerage",Supplies & Services,Other Grants (Expenses),SHROPSHIRE COMMUNITY HEALTH NHS TRUST,24/05/2024,"12,453.91"
Adult Social Care,Community Social Work (Principal Social Worker),Premises-Related Expenditure,Aids & Adaptions,The Stair Climbing Company,16/05/2024,900.00
Adult Social Care,Community Social Work (Principal Social Worker),Employees,Staff Training,UNIVERSITY OF WOLVERHAMPTON ,23/05/2024,"5,040.00"
Adult Social Care,Community Social Work (Principal Social Worker),Supplies & Services,Other Grants (Expenses),POHWER,16/05/2024,"2,500.00"
Adult Social Care,Community Social Work (Principal Social Worker),Supplies & Services,Medical Consultants Fees,Sakum Ltd,20/05/2024,434.82
Adult Social Care,Community Social Work (Principal Social Worker),Supplies & Services,Medical Consultants Fees,Onside Independent Advocacy,20/05/2024,112.20
Adult Social Care,Community Social Work (Principal Social Worker),Supplies & Services,Medical Consultants Fees,Onside Independent Advocacy,20/05/2024,139.85
Adult Social Care,Community Social Work (Principal Social Worker),Supplies & Services,Medical Consultants Fees,St Teresa Ltd ,23/05/2024,"2,425.28"
Adult Social Care,Community Social Work (Principal Social Worker),Supplies & Services,Medical Consultants Fees,Sakum Ltd,23/05/2024,165.00
Adult Social Care,Community Social Work (Principal Social Worker),Supplies & Services,Medical Consultants Fees,Sakum Ltd,30/05/2024,165.00
Adult Social Care,Community Social Work (Principal Social Worker),Employees,Staff Training,UNIVERSITY OF WOLVERHAMPTON ,30/05/2024,"1,680.00"
Adult Social Care,My Options,Premises-Related Expenditure,Clean Mats & Toilet Requisites,PHS GROUP,16/05/2024,125.22
Adult Social Care,My Options,Premises-Related Expenditure,Hire Of Rooms,Dawley Baptist Church,08/05/2024,285.00
Adult Social Care,My Options,Premises-Related Expenditure,Clean Mats & Toilet Requisites,BROSCH DIRECT LTD,22/05/2024,332.08
Adult Social Care,My Options,Supplies & Services,Computer Software (Maint),Access UK Ltd,08/05/2024,150.00
Adult Social Care,My Options,Employees,Agency Supply Costs,Nurse Plus and Carer Plus (UK) Limited,08/05/2024,521.33
Adult Social Care,My Options,Employees,Agency Supply Costs,Safehands Recruitment,08/05/2024,"11,299.54"
Adult Social Care,My Options,Employees,Agency Supply Costs,Nurse Plus and Carer Plus (UK) Limited,08/05/2024,119.70
Adult Social Care,My Options,Premises-Related Expenditure,Clean Mats & Toilet Requisites,BERWICK CARE EQUIPMENT LTD,08/05/2024,246.55
Adult Social Care,My Options,Premises-Related Expenditure,Clean Mats & Toilet Requisites,BERWICK CARE EQUIPMENT LTD,16/05/2024,166.90
Adult Social Care,My Options,Employees,Agency Supply Costs,Safehands Recruitment,16/05/2024,"10,515.69"
Adult Social Care,My Options,Employees,Agency Supply Costs,Nurse Plus and Carer Plus (UK) Limited,22/05/2024,"1,209.00"
Adult Social Care,My Options,Premises-Related Expenditure,Clean Mats & Toilet Requisites,BERWICK CARE EQUIPMENT LTD,22/05/2024,351.10
Adult Social Care,My Options,Employees,Agency Supply Costs,Safehands Recruitment,22/05/2024,"9,823.26"
Adult Social Care,My Options,Employees,Agency Supply Costs,Safehands Recruitment,08/05/2024,310.94
Adult Social Care,My Options,Supplies & Services,Computer Software (Maint),Access UK Ltd,08/05/2024,494.40
Adult Social Care,My Options,Supplies & Services,Adult Flexi / Day Care,Redacted Personal Information ,23/05/2024,"1,065.27"
Adult Social Care,My Options,Supplies & Services,Respite Care,Redacted Personal Information ,01/05/2024,"1,061.39"
Adult Social Care,My Options,Supplies & Services,Respite Care,Redacted Personal Information ,23/05/2024,642.06
Adult Social Care,My Options,Supplies & Services,Respite Care,Redacted Personal Information ,29/05/2024,"1,061.39"
Adult Social Care,My Options,Supplies & Services,Respite Care,Redacted Personal Information ,28/05/2024,760.00
Adult Social Care,My Options,Supplies & Services,Respite Care,Redacted Personal Information ,28/05/2024,664.00
Adult Social Care,My Options,Supplies & Services,Respite Care,Redacted Personal Information ,28/05/2024,"1,580.00"
Adult Social Care,My Options,Employees,Agency Supply Costs,Nurse Plus and Carer Plus (UK) Limited,08/05/2024,298.35
Adult Social Care,My Options,Employees,Agency Supply Costs,Safehands Recruitment,08/05/2024,"1,200.94"
Adult Social Care,My Options,Employees,Agency Supply Costs,Safehands Recruitment,08/05/2024,"3,824.33"
Adult Social Care,My Options,Employees,Agency Supply Costs,Safehands Recruitment,16/05/2024,"3,261.21"
Adult Social Care,My Options,Employees,Agency Supply Costs,Safehands Recruitment,16/05/2024,"3,281.16"
Adult Social Care,My Options,Premises-Related Expenditure,Clean Mats & Toilet Requisites,BERWICK CARE EQUIPMENT LTD,16/05/2024,193.58
Adult Social Care,My Options,Employees,Agency Supply Costs,Nurse Plus and Carer Plus (UK) Limited,22/05/2024,701.44
Adult Social Care,My Options,Employees,Agency Supply Costs,Safehands Recruitment,22/05/2024,"1,611.67"
Adult Social Care,My Options,Employees,Agency Supply Costs,Safehands Recruitment,22/05/2024,"2,543.52"
Adult Social Care,Prevention & Independence - Older Adults & Disability,Premises-Related Expenditure,Hire Of Rooms,HADLEY & LEEGOMERY PARISH COUNCIL,29/05/2024,150.00
Adult Social Care,Prevention & Independence - Older Adults & Disability,Supplies & Services,Aids & Appliances,Easylink,10/05/2024,"1,790.85"
Adult Social Care,Prevention & Independence - Older Adults & Disability,Supplies & Services,Aids & Appliances,Possum Ltd,10/05/2024,895.00
Adult Social Care,Prevention & Independence - Older Adults & Disability,Supplies & Services,Aids & Appliances,WREKIN HOUSING TRUST (SUBSIDIARY) LTD ,02/05/2024,125.00
Adult Social Care,Prevention & Independence - Older Adults & Disability,Supplies & Services,Aids & Appliances,WREKIN HOUSING TRUST (SUBSIDIARY) LTD ,02/05/2024,125.00
Adult Social Care,Prevention & Independence - Older Adults & Disability,Supplies & Services,Aids & Appliances,WREKIN HOUSING TRUST (SUBSIDIARY) LTD ,02/05/2024,125.00
Adult Social Care,Prevention & Independence - Older Adults & Disability,Supplies & Services,Aids & Appliances,WREKIN HOUSING TRUST (SUBSIDIARY) LTD ,02/05/2024,125.00
Adult Social Care,Prevention & Independence - Older Adults & Disability,Supplies & Services,Aids & Appliances,WREKIN HOUSING TRUST (SUBSIDIARY) LTD ,02/05/2024,125.00
Adult Social Care,Prevention & Independence - Older Adults & Disability,Supplies & Services,Aids & Appliances,WREKIN HOUSING TRUST (SUBSIDIARY) LTD ,02/05/2024,265.00
Adult Social Care,Prevention & Independence - Older Adults & Disability,Supplies & Services,Aids & Appliances,SARABEC LIMITED,28/05/2024,479.60
Adult Social Care,Prevention & Independence - Older Adults & Disability,Supplies & Services,Aids & Appliances,Easylink,17/05/2024,425.70
Adult Social Care,Prevention & Independence - Older Adults & Disability,Supplies & Services,Aids & Appliances,Ravencourt Ltd,17/05/2024,283.85
Adult Social Care,Prevention & Independence - Older Adults & Disability,Supplies & Services,Aids & Appliances,TEC Services Association C.I.C,22/05/2024,460.00
Adult Social Care,Prevention & Independence - Older Adults & Disability,Supplies & Services,Aids & Appliances,Easylink,31/05/2024,434.21
Adult Social Care,Prevention & Independence - Older Adults & Disability,Supplies & Services,Aids & Appliances,CONNEVANS LIMITED,30/05/2024,131.47
Adult Social Care,Prevention & Independence - Older Adults & Disability,Supplies & Services,Equipment - Repair,STANNAH LIFT SERVICES LTD,03/05/2024,"1,080.50"
Adult Social Care,Prevention & Independence - Older Adults & Disability,Supplies & Services,Equipment - Repair,STANNAH LIFT SERVICES LTD,03/05/2024,"9,926.00"
Adult Social Care,Prevention & Independence - Older Adults & Disability,Supplies & Services,Translation Services,VISS Sign Language Interpreting Service,07/05/2024,120.00
Adult Social Care,Prevention & Independence - Older Adults & Disability,Premises-Related Expenditure,Hire Of Rooms,MEETING POINT TRUST LTD,21/05/2024,149.00
Adult Social Care,Prevention & Independence - Older Adults & Disability,Premises-Related Expenditure,Hire Of Rooms,MEETING POINT TRUST LTD,23/05/2024,149.00
Adult Social Care,Prevention & Independence - Older Adults & Disability,Transport-Related Expenditure,Taxi Costs,Cartello Ambulance,21/05/2024,171.00
Adult Social Care,Prevention & Independence - Older Adults & Disability,Transport-Related Expenditure,Taxi Costs,Telford and Wrekin Community Enterprise LTD,21/05/2024,144.00
Adult Social Care,Prevention & Independence - Older Adults & Disability,Supplies & Services,Other Services,P H REMOVALS,21/05/2024,700.00
Adult Social Care,Prevention & Independence - Older Adults & Disability,Transport-Related Expenditure,Taxi Costs,Cartello Ambulance,23/05/2024,199.50
Adult Social Care,Prevention & Independence - Older Adults & Disability,Supplies & Services,Other Grants (Expenses),TELFORD & WREKIN CVS,01/05/2024,"90,000.00"
Children�s Safeguarding & Family Support,Child Protection & Family Support,Employees,Course Fees,Ability Smart Ltd,30/05/2024,490.00
Children�s Safeguarding & Family Support,Child Protection & Family Support,Supplies & Services,Consultancy,Impower Consulting Limited,15/05/2024,"77,429.86"
Children�s Safeguarding & Family Support,Child Protection & Family Support,Premises-Related Expenditure,Hire Of Rooms,MEETING POINT TRUST LTD,03/05/2024,129.17
Children�s Safeguarding & Family Support,Child Protection & Family Support,Transport-Related Expenditure,Taxi Costs,Ezy Car Ltd,01/05/2024,"1,918.40"
Children�s Safeguarding & Family Support,Child Protection & Family Support,Supplies & Services,Other Grants (Expenses),Midlands Partnership NHS Foundation Trust,24/05/2024,"42,152.23"
Children�s Safeguarding & Family Support,Child Protection & Family Support,Supplies & Services,Other Grants (Expenses),Midlands Partnership NHS Foundation Trust,24/05/2024,"43,562.40"
Children�s Safeguarding & Family Support,Child Protection & Family Support,Supplies & Services,Adoption Allowances,Redacted Personal Information ,29/05/2024,"3,000.00"
Children�s Safeguarding & Family Support,Child Protection & Family Support,Supplies & Services,Conference Expenses,Mercure Telford Centre Hotel,01/05/2024,456.33
Children�s Safeguarding & Family Support,Child Protection & Family Support,Premises-Related Expenditure,Hire Of Rooms,MEETING POINT TRUST LTD,24/05/2024,129.17
Children�s Safeguarding & Family Support,Family Connect & Childrens Centres,Premises-Related Expenditure,Hire Of Rooms,Paint & Create,17/05/2024,125.00
Children�s Safeguarding & Family Support,Family Connect & Childrens Centres,Premises-Related Expenditure,Hire Of Rooms,MEETING POINT TRUST LTD,22/05/2024,167.00
Children�s Safeguarding & Family Support,Family Connect & Childrens Centres,Premises-Related Expenditure,Hire Of Rooms,MEETING POINT TRUST LTD,24/05/2024,125.00
Children�s Safeguarding & Family Support,"Family Placements, Children in Care, Leaving Care & Emergency Duty Team",Premises-Related Expenditure,Hire Of Rooms,Dawley Baptist Church,07/05/2024,387.50
Children�s Safeguarding & Family Support,"Family Placements, Children in Care, Leaving Care & Emergency Duty Team",Premises-Related Expenditure,Hire Of Rooms,Dawley Baptist Church,24/05/2024,687.50
Children�s Safeguarding & Family Support,"Family Placements, Children in Care, Leaving Care & Emergency Duty Team",Premises-Related Expenditure,Hire Of Rooms,MEETING POINT TRUST LTD,23/05/2024,105.83
Children�s Safeguarding & Family Support,"Family Placements, Children in Care, Leaving Care & Emergency Duty Team",Employees,Childcare Provision,CHILDCARE SOS,29/05/2024,157.50
Children�s Safeguarding & Family Support,"Family Placements, Children in Care, Leaving Care & Emergency Duty Team",Supplies & Services,Doctors Fees,WELLINGTON ROAD SURGERY,08/05/2024,133.33
Children�s Safeguarding & Family Support,"Family Placements, Children in Care, Leaving Care & Emergency Duty Team",Supplies & Services,Registration / Licence Fees,OFSTED,20/05/2024,"3,216.00"
Children�s Safeguarding & Family Support,"Family Placements, Children in Care, Leaving Care & Emergency Duty Team",Third Party Payments,Childminders,HADLEY UNDER 5�S ,13/05/2024,375.25
Children�s Safeguarding & Family Support,"Family Placements, Children in Care, Leaving Care & Emergency Duty Team",Supplies & Services,Aids & Appliances,M A Smith Associates,13/05/2024,550.00
Children�s Safeguarding & Family Support,"Family Placements, Children in Care, Leaving Care & Emergency Duty Team",Supplies & Services,Aids & Appliances,Neater Solutions Ltd,13/05/2024,"2,440.00"
Children�s Safeguarding & Family Support,"Family Placements, Children in Care, Leaving Care & Emergency Duty Team",Supplies & Services,Equipment - Repair,Closomat Limited,03/05/2024,205.00
Children�s Safeguarding & Family Support,"Family Placements, Children in Care, Leaving Care & Emergency Duty Team",Supplies & Services,Equipment - Repair,STANNAH LIFT SERVICES LTD,03/05/2024,522.75
Children�s Safeguarding & Family Support,"Family Placements, Children in Care, Leaving Care & Emergency Duty Team",Supplies & Services,Equipment - Repair,STANNAH LIFT SERVICES LTD,03/05/2024,231.00
Children�s Safeguarding & Family Support,"Family Placements, Children in Care, Leaving Care & Emergency Duty Team",Supplies & Services,Equipment - Repair,Closomat Limited,03/05/2024,205.00
Children�s Safeguarding & Family Support,"Family Placements, Children in Care, Leaving Care & Emergency Duty Team",Supplies & Services,Aids & Appliances,G & S SMIRTHWAITE LTD,13/05/2024,"1,460.00"
Children�s Safeguarding & Family Support,"Family Placements, Children in Care, Leaving Care & Emergency Duty Team",Supplies & Services,Aids & Appliances,G & S SMIRTHWAITE LTD,13/05/2024,164.00
Children�s Safeguarding & Family Support,"Family Placements, Children in Care, Leaving Care & Emergency Duty Team",Supplies & Services,Aids & Appliances,M A Smith Associates,13/05/2024,550.00
Children�s Safeguarding & Family Support,"Family Placements, Children in Care, Leaving Care & Emergency Duty Team",Supplies & Services,Aids & Appliances,G & S SMIRTHWAITE LTD,13/05/2024,965.00
Children�s Safeguarding & Family Support,"Family Placements, Children in Care, Leaving Care & Emergency Duty Team",Supplies & Services,Aids & Appliances,DRIVE DEVILBISS HEALTHCARE LTD,13/05/2024,105.15
Children�s Safeguarding & Family Support,"Family Placements, Children in Care, Leaving Care & Emergency Duty Team",Supplies & Services,Aids & Appliances,MIDSHIRES MOBILITY GROUP,20/05/2024,"1,201.15"
Children�s Safeguarding & Family Support,"Family Placements, Children in Care, Leaving Care & Emergency Duty Team",Supplies & Services,Aids & Appliances,MIDSHIRES MOBILITY GROUP,20/05/2024,"1,211.49"
Children�s Safeguarding & Family Support,"Family Placements, Children in Care, Leaving Care & Emergency Duty Team",Supplies & Services,Aids & Appliances,Tough Furniture Ltd,17/05/2024,209.00
Children�s Safeguarding & Family Support,"Family Placements, Children in Care, Leaving Care & Emergency Duty Team",Supplies & Services,Aids & Appliances,MIDSHIRES MOBILITY GROUP,23/05/2024,"2,063.50"
Children�s Safeguarding & Family Support,"Family Placements, Children in Care, Leaving Care & Emergency Duty Team",Supplies & Services,Aids & Appliances,MIDSHIRES MOBILITY GROUP,23/05/2024,904.83
Children�s Safeguarding & Family Support,"Family Placements, Children in Care, Leaving Care & Emergency Duty Team",Supplies & Services,Aids & Appliances,Strettons Upholstery,23/05/2024,588.00
Children�s Safeguarding & Family Support,"Family Placements, Children in Care, Leaving Care & Emergency Duty Team",Supplies & Services,Aids & Appliances,STANNAH LIFT SERVICES LTD,24/05/2024,"6,996.47"
Children�s Safeguarding & Family Support,"Family Placements, Children in Care, Leaving Care & Emergency Duty Team",Premises-Related Expenditure,Hire Of Rooms,MEETING POINT TRUST LTD,03/05/2024,917.08
Children�s Safeguarding & Family Support,"Family Placements, Children in Care, Leaving Care & Emergency Duty Team",Premises-Related Expenditure,Hire Of Rooms,MEETING POINT TRUST LTD,03/05/2024,917.08
Children�s Safeguarding & Family Support,"Family Placements, Children in Care, Leaving Care & Emergency Duty Team",Transport-Related Expenditure,Taxi Costs,Ezy Car Ltd,03/05/2024,249.75
Children�s Safeguarding & Family Support,"Family Placements, Children in Care, Leaving Care & Emergency Duty Team",Transport-Related Expenditure,Taxi Costs,Go Carz,21/05/2024,-965.40
Children�s Safeguarding & Family Support,"Family Placements, Children in Care, Leaving Care & Emergency Duty Team",Transport-Related Expenditure,Taxi Costs,Go Carz,21/05/2024,-118.20
Children�s Safeguarding & Family Support,Safeguarding Advisory,Supplies & Services,Subscriptions,National Network of SAB Chairs,12/05/2024,150.00
Children�s Safeguarding & Family Support,Safeguarding Advisory,Supplies & Services,Public Transport Subsidy,MEETING POINT TRUST LTD,29/05/2024,129.17
Children�s Safeguarding & Family Support,Safeguarding Advisory,Supplies & Services,Other Services,C B Consultancy Limited,29/05/2024,"2,250.00"
"Communities, Customer & Commercial Services",Community Services,Supplies & Services,Grants To Voluntary Organis,HADLEY & LEEGOMERY PARISH COUNCIL,15/05/2024,128.00
"Communities, Customer & Commercial Services",Community Services,Supplies & Services,Grants To Voluntary Organis,TAARC (Telford African & Afro Caribbean Resource Centre,22/05/2024,750.00
"Communities, Customer & Commercial Services",Community Services,Supplies & Services,Grants To Voluntary Organis,Army Welfare Service,23/05/2024,500.00
"Communities, Customer & Commercial Services",Community Services,Supplies & Services,Other Grants (Expenses),Friends of Telford Town Park,20/05/2024,283.09
"Communities, Customer & Commercial Services",Community Services,Supplies & Services,Other Grants (Expenses),TADLOP,20/05/2024,283.09
"Communities, Customer & Commercial Services",Community Services,Supplies & Services,Other Grants (Expenses),The Little Theatre Donnington Society,09/05/2024,283.09
"Communities, Customer & Commercial Services",Community Services,Supplies & Services,Other Grants (Expenses),"Peter Nixon, Treasurer Rotary Club of Ironbridge",20/05/2024,283.09
"Communities, Customer & Commercial Services",Community Services,Supplies & Services,Other Grants (Expenses),Anstice Community Trust,20/05/2024,283.09
"Communities, Customer & Commercial Services",Community Services,Supplies & Services,Other Grants (Expenses),TELFORD & WREKIN CVS,20/05/2024,283.09
"Communities, Customer & Commercial Services",Community Services,Supplies & Services,Other Services,OVE ARUP & PARTNERS LIMITED,23/05/2024,"3,250.00"
"Communities, Customer & Commercial Services",Community Services,Supplies & Services,Other Grants (Expenses),Nova FM Newport,23/05/2024,283.09
"Communities, Customer & Commercial Services",Culture & Events,Supplies & Services,Items For Resale,Spirit Operations Ltd,13/05/2024,"2,020.00"
"Communities, Customer & Commercial Services",Culture & Events,Supplies & Services,Artistes Fees,Spirit Operations Ltd,13/05/2024,"4,500.00"
"Communities, Customer & Commercial Services",Culture & Events,Transport-Related Expenditure,Outside Hire,DAYS RENTAL,07/05/2024,-111.40
"Communities, Customer & Commercial Services",Culture & Events,Supplies & Services,Artistes Fees,Medieval Entertainments Ltd,07/05/2024,"4,500.00"
"Communities, Customer & Commercial Services",Culture & Events,Supplies & Services,Artistes Fees,Fools Paradise Ltd,30/05/2024,560.00
"Communities, Customer & Commercial Services",Culture & Events,Supplies & Services,Artistes Fees,Fools Paradise Ltd,30/05/2024,"1,000.00"
"Communities, Customer & Commercial Services",Culture & Events,Supplies & Services,Artistes Fees,Fools Paradise Ltd,30/05/2024,890.00
"Communities, Customer & Commercial Services",Culture & Events,Supplies & Services,Equipment - Hire,Historical Promotions,30/05/2024,"1,395.00"
"Communities, Customer & Commercial Services",Culture & Events,Transport-Related Expenditure,Outside Hire,DAYS RENTAL,09/05/2024,103.40
"Communities, Customer & Commercial Services",Culture & Events,Supplies & Services,Equipment - Hire,J.E.F Scaffolding Ltd,08/05/2024,"2,365.00"
"Communities, Customer & Commercial Services",Culture & Events,Transport-Related Expenditure,Outside Hire,DAYS RENTAL,08/05/2024,111.40
"Communities, Customer & Commercial Services",Culture & Events,Supplies & Services,Equipment - Hire,PG Skips Ltd,22/05/2024,103.14
"Communities, Customer & Commercial Services",Culture & Events,Supplies & Services,Equipment - Hire,PG Skips Ltd,22/05/2024,145.35
"Communities, Customer & Commercial Services",Culture & Events,Supplies & Services,Equipment - Hire,Cheval Starbox Ltd,15/05/2024,799.00
"Communities, Customer & Commercial Services",Culture & Events,Supplies & Services,Equipment - Hire,Show Systems Marquees Ltd,20/05/2024,"1,040.00"
"Communities, Customer & Commercial Services",Culture & Events,Supplies & Services,Equipment - Hire,Event Furniture Hire Ltd,15/05/2024,"2,850.00"
"Communities, Customer & Commercial Services",Culture & Events,Supplies & Services,Equipment - Hire,Event Furniture Hire Ltd,15/05/2024,"1,603.50"
"Communities, Customer & Commercial Services",Culture & Events,Supplies & Services,Equipment - Hire,LITE (Lighting and Illumination Technology Experience Limited,29/05/2024,"11,284.00"
"Communities, Customer & Commercial Services",Culture & Events,Supplies & Services,Promotion Expenses,crowdEngage Limited,07/05/2024,210.00
"Communities, Customer & Commercial Services",Culture & Events,Supplies & Services,Promotion Expenses,Spektrix Limited,08/05/2024,"1,811.48"
"Communities, Customer & Commercial Services",Culture & Events,Supplies & Services,Advertising,Colston Media Ltd,21/05/2024,140.00
"Communities, Customer & Commercial Services",Culture & Events,Supplies & Services,Artistes Fees,Wildlife Live Ltd,07/05/2024,250.00
"Communities, Customer & Commercial Services",Culture & Events,Supplies & Services,Artistes Fees,Circus Funtasia,15/05/2024,"3,324.77"
"Communities, Customer & Commercial Services",Culture & Events,Supplies & Services,Other Services,TELFORD INTERNATIONAL CENTRE,22/05/2024,"26,550.00"
"Communities, Customer & Commercial Services",Culture & Events,Supplies & Services,Wet Resale Provision,MOLSON COORS BREWING COMPANY UK LTD,07/05/2024,191.00
"Communities, Customer & Commercial Services",Culture & Events,Supplies & Services,Wet Resale Provision,MOLSON COORS BREWING COMPANY UK LTD,07/05/2024,189.30
"Communities, Customer & Commercial Services",Culture & Events,Supplies & Services,Wet Resale Provision,MOLSON COORS BREWING COMPANY UK LTD,07/05/2024,151.58
"Communities, Customer & Commercial Services",Culture & Events,Supplies & Services,Audit Services,DMC STOCKTAKING,08/05/2024,160.00
"Communities, Customer & Commercial Services",Culture & Events,Supplies & Services,Equipment - Purchase,ERIC NEVILLE CATERING EQUIPMENT AND SERVICES  LTD,08/05/2024,156.00
"Communities, Customer & Commercial Services",Culture & Events,Supplies & Services,Wet Resale Provision,MOLSON COORS BREWING COMPANY UK LTD,21/05/2024,299.36
"Communities, Customer & Commercial Services",Culture & Events,Supplies & Services,Wet Resale Provision,MOLSON COORS BREWING COMPANY UK LTD,21/05/2024,151.58
"Communities, Customer & Commercial Services",Culture & Events,Supplies & Services,Wet Resale Provision,MOLSON COORS BREWING COMPANY UK LTD,21/05/2024,238.68
"Communities, Customer & Commercial Services",Culture & Events,Supplies & Services,Wet Resale Provision,MOLSON COORS BREWING COMPANY UK LTD,07/05/2024,114.35
"Communities, Customer & Commercial Services",Culture & Events,Supplies & Services,Wet Resale Provision,MOLSON COORS BREWING COMPANY UK LTD,07/05/2024,299.36
"Communities, Customer & Commercial Services",Culture & Events,Supplies & Services,Wet Resale Provision,MOLSON COORS BREWING COMPANY UK LTD,07/05/2024,114.35
"Communities, Customer & Commercial Services",Culture & Events,Supplies & Services,Wet Resale Provision,MOLSON COORS BREWING COMPANY UK LTD,07/05/2024,149.68
"Communities, Customer & Commercial Services",Culture & Events,Supplies & Services,Wet Resale Provision,MOLSON COORS BREWING COMPANY UK LTD,07/05/2024,149.68
"Communities, Customer & Commercial Services",Customer Relationships & Welfare Services,Supplies & Services,Other Grants (Expenses),Hawk Incentives Ltd (Crown Commercial Services),01/05/2024,"19,724.26"
"Communities, Customer & Commercial Services",Customer Relationships & Welfare Services,Supplies & Services,Printing - Other,Financial Data Management plc,17/05/2024,120.63
"Communities, Customer & Commercial Services",Customer Relationships & Welfare Services,Supplies & Services,Other Grants (Expenses),Hawk Incentives Ltd (Crown Commercial Services),08/05/2024,"162,591.84"
"Communities, Customer & Commercial Services",Customer Relationships & Welfare Services,Supplies & Services,Printing - Other,Financial Data Management plc,17/05/2024,158.80
"Communities, Customer & Commercial Services",Customer Relationships & Welfare Services,Transfer Payments,Crisis Assistance Awards,PayPoint Network Limited,28/05/2024,140.00
"Communities, Customer & Commercial Services",Customer Relationships & Welfare Services,Supplies & Services,Permit Production - Blue Badge,APS Group,03/05/2024,"1,733.12"
"Communities, Customer & Commercial Services",Customer Relationships & Welfare Services,Supplies & Services,Postages,Financial Data Management plc,02/05/2024,"3,538.88"
"Communities, Customer & Commercial Services",Customer Relationships & Welfare Services,Supplies & Services,Permit Production - Blue Badge,Valtech Limited,02/05/2024,783.84
"Communities, Customer & Commercial Services",Customer Relationships & Welfare Services,Supplies & Services,Postages,Financial Data Management plc,07/05/2024,225.44
"Communities, Customer & Commercial Services",Customer Relationships & Welfare Services,Supplies & Services,Postages,Financial Data Management plc,07/05/2024,141.61
"Communities, Customer & Commercial Services",Customer Relationships & Welfare Services,Supplies & Services,Blue Badge Assessments,Ascenti,08/05/2024,480.00
"Communities, Customer & Commercial Services",Customer Relationships & Welfare Services,Supplies & Services,Bus Pass Production,Euclid Limited,08/05/2024,934.56
"Communities, Customer & Commercial Services",Customer Relationships & Welfare Services,Transfer Payments,Crisis Assistance Awards,Kings of the Road,09/05/2024,375.00
"Communities, Customer & Commercial Services",Customer Relationships & Welfare Services,Transfer Payments,Crisis Assistance Awards,Kings of the Road,15/05/2024,445.00
"Communities, Customer & Commercial Services",Customer Relationships & Welfare Services,Transfer Payments,Crisis Assistance Awards,Kings of the Road,30/05/2024,475.00
"Communities, Customer & Commercial Services",Customer Relationships & Welfare Services,Transfer Payments,Crisis Assistance Awards,Kings of the Road,28/05/2024,375.00
"Communities, Customer & Commercial Services",Customer Relationships & Welfare Services,Transfer Payments,Crisis Assistance Awards,Kings of the Road,28/05/2024,375.00
"Communities, Customer & Commercial Services",Customer Relationships & Welfare Services,Employees,Professional Subs,LOCAL REGISTRATION SERVICES ASSOCIATION,28/05/2024,400.00
"Communities, Customer & Commercial Services",Customer Relationships & Welfare Services,Premises-Related Expenditure,Grounds Maintenance - Cemeteries,TAYLORS MECHANICAL H & P SERVICES LTD,16/05/2024,155.09
"Communities, Customer & Commercial Services",ICT,Supplies & Services,Telecomms,Airband Community Internet,13/05/2024,295.00
"Communities, Customer & Commercial Services",ICT,Supplies & Services,Comp Software (Purch / Hire),Salamandersoft Limited,21/05/2024,107.06
"Communities, Customer & Commercial Services",ICT,Supplies & Services,Comp Software (Purch / Hire),Salamandersoft Limited,21/05/2024,199.28
"Communities, Customer & Commercial Services",ICT,Supplies & Services,Comp Software (Purch / Hire),Salamandersoft Limited,21/05/2024,248.04
"Communities, Customer & Commercial Services",ICT,Supplies & Services,Comp Software (Purch / Hire),Salamandersoft Limited,21/05/2024,419.76
"Communities, Customer & Commercial Services",ICT,Supplies & Services,Comp Software (Purch / Hire),Salamandersoft Limited,21/05/2024,"1,378.00"
"Communities, Customer & Commercial Services",ICT,Supplies & Services,Comp Software (Purch / Hire),Salamandersoft Limited,21/05/2024,227.90
"Communities, Customer & Commercial Services",ICT,Supplies & Services,Mobile Phones,EE LTD AIRTIME ,13/05/2024,"12,472.96"
"Communities, Customer & Commercial Services",ICT,Supplies & Services,Telephones,Trustmarque Solutions Limited,07/05/2024,"2,651.70"
"Communities, Customer & Commercial Services",ICT,Supplies & Services,Telephones,BRITISH TELECOMMUNICATIONS PLC ,20/05/2024,"8,576.34"
"Communities, Customer & Commercial Services",ICT,Supplies & Services,Telephones,Trustmarque Solutions Limited,20/05/2024,"2,651.70"
"Communities, Customer & Commercial Services",ICT,Supplies & Services,Text Messages,KONICA MINOLTA BUSINESS SOLUTIONS UK LTD,20/05/2024,404.34
"Communities, Customer & Commercial Services",ICT,Supplies & Services,Computer Hardware (Maint),PHOENIX SOFTWARE LTD,20/05/2024,714.84
"Communities, Customer & Commercial Services",ICT,Supplies & Services,Computer Hardware (Maint),PHOENIX SOFTWARE LTD,20/05/2024,"1,724.40"
"Communities, Customer & Commercial Services",ICT,Supplies & Services,Computer Hardware (Maint),PHOENIX SOFTWARE LTD,20/05/2024,368.24
"Communities, Customer & Commercial Services",ICT,Supplies & Services,Computer Hardware (Maint),PHOENIX SOFTWARE LTD,20/05/2024,103.14
"Communities, Customer & Commercial Services",ICT,Supplies & Services,Computer Hardware (Maint),PHOENIX SOFTWARE LTD,20/05/2024,"1,227.36"
"Communities, Customer & Commercial Services",ICT,Supplies & Services,Computer Hardware (Maint),PHOENIX SOFTWARE LTD,20/05/2024,353.15
"Communities, Customer & Commercial Services",ICT,Supplies & Services,Computer Hardware (Maint),PHOENIX SOFTWARE LTD,20/05/2024,100.90
"Communities, Customer & Commercial Services",ICT,Supplies & Services,Computer Hardware (Maint),PHOENIX SOFTWARE LTD,20/05/2024,"8,770.44"
"Communities, Customer & Commercial Services",ICT,Supplies & Services,Computer Hardware (Maint),PHOENIX SOFTWARE LTD,20/05/2024,"3,557.92"
"Communities, Customer & Commercial Services",ICT,Supplies & Services,Computer Hardware (Maint),PHOENIX SOFTWARE LTD,20/05/2024,641.48
"Communities, Customer & Commercial Services",ICT,Supplies & Services,Computer Hardware (Maint),PHOENIX SOFTWARE LTD,20/05/2024,"8,234.72"
"Communities, Customer & Commercial Services",ICT,Supplies & Services,Computer Hardware (Maint),PHOENIX SOFTWARE LTD,20/05/2024,"18,296.25"
"Communities, Customer & Commercial Services",ICT,Supplies & Services,Computer Hardware (Maint),PHOENIX SOFTWARE LTD,20/05/2024,"156,574.25"
"Communities, Customer & Commercial Services",ICT,Supplies & Services,Comp Software (Purch / Hire),Salamandersoft Limited,21/05/2024,360.40
"Communities, Customer & Commercial Services",ICT,Supplies & Services,Comp Software (Purch / Hire),Salamandersoft Limited,21/05/2024,273.48
"Communities, Customer & Commercial Services",ICT,Supplies & Services,Comp Software (Purch / Hire),Salamandersoft Limited,21/05/2024,213.06
"Communities, Customer & Commercial Services",ICT,Supplies & Services,Comp Software (Purch / Hire),Salamandersoft Limited,21/05/2024,404.92
"Communities, Customer & Commercial Services",ICT,Supplies & Services,Comp Software (Purch / Hire),Salamandersoft Limited,21/05/2024,469.58
"Communities, Customer & Commercial Services",ICT,Supplies & Services,Comp Software (Purch / Hire),Salamandersoft Limited,21/05/2024,254.40
"Communities, Customer & Commercial Services",ICT,Supplies & Services,Comp Software (Purch / Hire),Salamandersoft Limited,21/05/2024,223.66
"Communities, Customer & Commercial Services",ICT,Supplies & Services,Comp Software (Purch / Hire),Salamandersoft Limited,21/05/2024,284.08
"Communities, Customer & Commercial Services",ICT,Supplies & Services,Comp Software (Purch / Hire),Salamandersoft Limited,21/05/2024,222.60
"Communities, Customer & Commercial Services",ICT,Supplies & Services,Comp Software (Purch / Hire),Salamandersoft Limited,21/05/2024,485.48
"Communities, Customer & Commercial Services",ICT,Supplies & Services,Comp Software (Purch / Hire),Salamandersoft Limited,21/05/2024,348.74
"Communities, Customer & Commercial Services",ICT,Supplies & Services,Comp Software (Purch / Hire),Salamandersoft Limited,21/05/2024,146.28
"Communities, Customer & Commercial Services",ICT,Supplies & Services,Comp Software (Purch / Hire),Salamandersoft Limited,21/05/2024,159.00
"Communities, Customer & Commercial Services",ICT,Supplies & Services,Comp Software (Purch / Hire),Salamandersoft Limited,21/05/2024,155.82
"Communities, Customer & Commercial Services",ICT,Premises-Related Expenditure,R&M -Buildings DLO Charge,PP ELECTRICAL SERVICES (Shropshire) Ltd,02/05/2024,220.00
"Communities, Customer & Commercial Services",ICT,Premises-Related Expenditure,R&M -Building Other,Charlton Academy,13/05/2024,"3,456.96"
"Communities, Customer & Commercial Services",ICT,Premises-Related Expenditure,R&M -Buildings DLO Charge,COOL SERVICES LTD,02/05/2024,360.00
"Communities, Customer & Commercial Services",ICT,Premises-Related Expenditure,R&M -Buildings DLO Charge,COOL SERVICES LTD,04/05/2024,485.00
"Communities, Customer & Commercial Services",ICT,Supplies & Services,Comp Hardware (Purch / Hire),Recycle IT 4 U Ltd,30/05/2024,197.50
"Communities, Customer & Commercial Services",ICT,Supplies & Services,Comp Software (Purch / Hire),ICS.Al Ltd,13/05/2024,"14,252.50"
"Communities, Customer & Commercial Services",ICT,Supplies & Services,Comp Software (Purch / Hire),IDOX SOFTWARE LTD,10/05/2024,"1,250.00"
"Communities, Customer & Commercial Services",ICT,Supplies & Services,Comp Software (Purch / Hire),UNIT4 BUSINESS SOFTWARE LTD,01/05/2024,"66,367.31"
"Communities, Customer & Commercial Services",ICT,Supplies & Services,Comp Software (Purch / Hire),Nominet,01/05/2024,323.38
"Communities, Customer & Commercial Services",ICT,Supplies & Services,Comp Software (Purch / Hire),PHOENIX SOFTWARE LTD,07/05/2024,"3,060.43"
"Communities, Customer & Commercial Services",ICT,Supplies & Services,Comp Software (Purch / Hire),PHOENIX SOFTWARE LTD,07/05/2024,355.46
"Communities, Customer & Commercial Services",ICT,Supplies & Services,Comp Software (Purch / Hire),PHOENIX SOFTWARE LTD,07/05/2024,"17,157.92"
"Communities, Customer & Commercial Services",ICT,Supplies & Services,Comp Software (Purch / Hire),Nominet,04/05/2024,765.94
"Communities, Customer & Commercial Services",ICT,Supplies & Services,Comp Software (Purch / Hire),PHOENIX SOFTWARE LTD,20/05/2024,"3,142.56"
"Communities, Customer & Commercial Services",ICT,Supplies & Services,Comp Software (Purch / Hire),PHOENIX SOFTWARE LTD,20/05/2024,373.19
"Communities, Customer & Commercial Services",ICT,Supplies & Services,Comp Software (Purch / Hire),PHOENIX SOFTWARE LTD,20/05/2024,"1,400.00"
"Communities, Customer & Commercial Services",ICT,Supplies & Services,Comp Software (Purch / Hire),PHOENIX SOFTWARE LTD,20/05/2024,"16,302.74"
"Communities, Customer & Commercial Services",ICT,Supplies & Services,Telecomms,VIRGIN MEDIA BUSINESS ,20/05/2024,186.38
"Communities, Customer & Commercial Services",ICT,Supplies & Services,Comp Software (Purch / Hire),UNIT4 BUSINESS SOFTWARE LTD,22/05/2024,"-50,548.25"
"Communities, Customer & Commercial Services",ICT,Supplies & Services,Comp Software (Purch / Hire),PHOENIX SOFTWARE LTD,22/05/2024,"3,499.15"
"Communities, Customer & Commercial Services",ICT,Supplies & Services,Comp Hardware (Purch / Hire),CCS MEDIA LIMITED,29/05/2024,224.00
"Communities, Customer & Commercial Services",ICT,Supplies & Services,Comp Software (Purch / Hire),ICS.Al Ltd,29/05/2024,"17,913.50"
"Communities, Customer & Commercial Services",ICT,Supplies & Services,Equipment - Hire,RICOH UK LIMITED,24/05/2024,"6,029.38"
"Communities, Customer & Commercial Services",ICT,Supplies & Services,Photocopying,RICOH UK LIMITED,24/05/2024,235.16
"Communities, Customer & Commercial Services",ICT,Supplies & Services,Photocopying,RICOH UK LIMITED,24/05/2024,"2,302.94"
"Communities, Customer & Commercial Services",ICT,Supplies & Services,Comp Software (Purch / Hire),PHOENIX SOFTWARE LTD,31/05/2024,"55,048.80"
"Communities, Customer & Commercial Services",ICT,Supplies & Services,Comp Software (Purch / Hire),PHOENIX SOFTWARE LTD,31/05/2024,"30,867.12"
"Communities, Customer & Commercial Services",ICT,Supplies & Services,Comp Software (Purch / Hire),PHOENIX SOFTWARE LTD,31/05/2024,"3,505.92"
"Communities, Customer & Commercial Services",ICT,Supplies & Services,Comp Software (Purch / Hire),PHOENIX SOFTWARE LTD,31/05/2024,"46,269.60"
"Communities, Customer & Commercial Services",ICT,Supplies & Services,Comp Software (Purch / Hire),Bromcom Computers Plc,02/05/2024,"4,218.20"
"Communities, Customer & Commercial Services",ICT,Supplies & Services,Comp Software (Purch / Hire),ScholarPack,02/05/2024,"2,630.00"
"Communities, Customer & Commercial Services",ICT,Supplies & Services,Comp Software (Purch / Hire),ScholarPack,02/05/2024,780.00
"Communities, Customer & Commercial Services",ICT,Supplies & Services,Comp Hardware (Purch / Hire),CCS MEDIA LIMITED,29/05/2024,123.00
"Communities, Customer & Commercial Services",ICT,Supplies & Services,Equipment - Purchase,ICTn Limited,23/05/2024,581.60
"Communities, Customer & Commercial Services",ICT,Supplies & Services,Comp Hardware (Purch / Hire),CCS MEDIA LIMITED,29/05/2024,123.00
"Communities, Customer & Commercial Services",Sport & Leisure,Premises-Related Expenditure,Clean Mats & Toilet Requisites,Border Janitorial Supplies Limited,13/05/2024,300.89
"Communities, Customer & Commercial Services",Sport & Leisure,Premises-Related Expenditure,Clean Mats & Toilet Requisites,Border Janitorial Supplies Limited,13/05/2024,198.95
"Communities, Customer & Commercial Services",Sport & Leisure,Premises-Related Expenditure,Clean Mats & Toilet Requisites,Border Janitorial Supplies Limited,13/05/2024,173.81
"Communities, Customer & Commercial Services",Sport & Leisure,Premises-Related Expenditure,Clean Mats & Toilet Requisites,Border Janitorial Supplies Limited,10/05/2024,139.69
"Communities, Customer & Commercial Services",Sport & Leisure,Premises-Related Expenditure,Clean Mats & Toilet Requisites,Border Janitorial Supplies Limited,10/05/2024,396.93
"Communities, Customer & Commercial Services",Sport & Leisure,Premises-Related Expenditure,Clean Mats & Toilet Requisites,Border Janitorial Supplies Limited,03/05/2024,343.73
"Communities, Customer & Commercial Services",Sport & Leisure,Premises-Related Expenditure,Clean Mats & Toilet Requisites,Border Janitorial Supplies Limited,08/05/2024,158.36
"Communities, Customer & Commercial Services",Sport & Leisure,Premises-Related Expenditure,Clean Mats & Toilet Requisites,Border Janitorial Supplies Limited,08/05/2024,326.31
"Communities, Customer & Commercial Services",Sport & Leisure,Premises-Related Expenditure,Clean Mats & Toilet Requisites,Border Janitorial Supplies Limited,08/05/2024,127.55
"Communities, Customer & Commercial Services",Sport & Leisure,Premises-Related Expenditure,Clean Mats & Toilet Requisites,Border Janitorial Supplies Limited,16/05/2024,189.94
"Communities, Customer & Commercial Services",Sport & Leisure,Premises-Related Expenditure,Clean Mats & Toilet Requisites,Border Janitorial Supplies Limited,16/05/2024,326.31
"Communities, Customer & Commercial Services",Sport & Leisure,Premises-Related Expenditure,Clean Mats & Toilet Requisites,Border Janitorial Supplies Limited,10/05/2024,267.58
"Communities, Customer & Commercial Services",Sport & Leisure,Premises-Related Expenditure,Clean Mats & Toilet Requisites,Border Janitorial Supplies Limited,10/05/2024,100.71
"Communities, Customer & Commercial Services",Sport & Leisure,Premises-Related Expenditure,Clean Mats & Toilet Requisites,Border Janitorial Supplies Limited,13/05/2024,253.97
"Communities, Customer & Commercial Services",Sport & Leisure,Premises-Related Expenditure,Clean Mats & Toilet Requisites,Border Janitorial Supplies Limited,13/05/2024,302.96
"Communities, Customer & Commercial Services",Sport & Leisure,Premises-Related Expenditure,Clean Mats & Toilet Requisites,Border Janitorial Supplies Limited,08/05/2024,223.86
"Communities, Customer & Commercial Services",Sport & Leisure,Premises-Related Expenditure,Clean Mats & Toilet Requisites,Border Janitorial Supplies Limited,15/05/2024,122.77
"Communities, Customer & Commercial Services",Sport & Leisure,Premises-Related Expenditure,Clean Mats & Toilet Requisites,Border Janitorial Supplies Limited,22/05/2024,287.87
"Communities, Customer & Commercial Services",Sport & Leisure,Premises-Related Expenditure,Clean Mats & Toilet Requisites,Border Janitorial Supplies Limited,22/05/2024,120.51
"Communities, Customer & Commercial Services",Sport & Leisure,Premises-Related Expenditure,Clean Mats & Toilet Requisites,Border Janitorial Supplies Limited,22/05/2024,201.36
"Communities, Customer & Commercial Services",Sport & Leisure,Premises-Related Expenditure,Clean Mats & Toilet Requisites,Border Janitorial Supplies Limited,03/05/2024,110.51
"Communities, Customer & Commercial Services",Sport & Leisure,Premises-Related Expenditure,Clean Mats & Toilet Requisites,Border Janitorial Supplies Limited,10/05/2024,189.79
"Communities, Customer & Commercial Services",Sport & Leisure,Premises-Related Expenditure,Clean Mats & Toilet Requisites,Border Janitorial Supplies Limited,13/05/2024,361.85
"Communities, Customer & Commercial Services",Sport & Leisure,Premises-Related Expenditure,Clean Mats & Toilet Requisites,Border Janitorial Supplies Limited,03/05/2024,158.03
"Communities, Customer & Commercial Services",Sport & Leisure,Premises-Related Expenditure,Clean Mats & Toilet Requisites,Border Janitorial Supplies Limited,03/05/2024,360.42
"Communities, Customer & Commercial Services",Sport & Leisure,Premises-Related Expenditure,Clean Mats & Toilet Requisites,Border Janitorial Supplies Limited,08/05/2024,205.41
"Communities, Customer & Commercial Services",Sport & Leisure,Premises-Related Expenditure,Clean Mats & Toilet Requisites,Border Janitorial Supplies Limited,08/05/2024,357.48
"Communities, Customer & Commercial Services",Sport & Leisure,Premises-Related Expenditure,Clean Mats & Toilet Requisites,Border Janitorial Supplies Limited,08/05/2024,126.75
"Communities, Customer & Commercial Services",Sport & Leisure,Premises-Related Expenditure,Clean Mats & Toilet Requisites,Border Janitorial Supplies Limited,15/05/2024,105.27
"Communities, Customer & Commercial Services",Sport & Leisure,Premises-Related Expenditure,Clean Mats & Toilet Requisites,Border Janitorial Supplies Limited,22/05/2024,150.37
"Communities, Customer & Commercial Services",Sport & Leisure,Premises-Related Expenditure,Clean Mats & Toilet Requisites,Border Janitorial Supplies Limited,22/05/2024,116.09
"Communities, Customer & Commercial Services",Sport & Leisure,Premises-Related Expenditure,Clean Mats & Toilet Requisites,Border Janitorial Supplies Limited,24/05/2024,105.23
"Communities, Customer & Commercial Services",Sport & Leisure,Premises-Related Expenditure,Clean Mats & Toilet Requisites,Border Janitorial Supplies Limited,24/05/2024,119.84
"Communities, Customer & Commercial Services",Sport & Leisure,Premises-Related Expenditure,Clean Mats & Toilet Requisites,Border Janitorial Supplies Limited,10/05/2024,194.34
"Communities, Customer & Commercial Services",Sport & Leisure,Premises-Related Expenditure,Clean Mats & Toilet Requisites,Border Janitorial Supplies Limited,10/05/2024,182.91
"Communities, Customer & Commercial Services",Sport & Leisure,Premises-Related Expenditure,Clean Mats & Toilet Requisites,Border Janitorial Supplies Limited,16/05/2024,369.05
"Communities, Customer & Commercial Services",Sport & Leisure,Employees,Hospitality,DEWBERRY REDPOINT LTD,13/05/2024,495.00
"Communities, Customer & Commercial Services",Sport & Leisure,Supplies & Services,Protective Clothing,IMAGE@WORK LTD,13/05/2024,975.37
"Communities, Customer & Commercial Services",Sport & Leisure,Supplies & Services,Protective Clothing,IMAGE@WORK LTD,16/05/2024,115.15
"Communities, Customer & Commercial Services",Sport & Leisure,Supplies & Services,Provisions,J S Catering Butchers,29/05/2024,-551.11
"Communities, Customer & Commercial Services",Sport & Leisure,Supplies & Services,EEC Whole Milk,JOHAL DAIRIES,09/05/2024,791.05
"Communities, Customer & Commercial Services",Sport & Leisure,Supplies & Services,EEC Whole Milk,JOHAL DAIRIES,09/05/2024,"1,800.64"
"Communities, Customer & Commercial Services",Sport & Leisure,Supplies & Services,EEC Whole Milk,JOHAL DAIRIES,16/05/2024,693.40
"Communities, Customer & Commercial Services",Sport & Leisure,Supplies & Services,Provisions,JOHAL DAIRIES,16/05/2024,"1,621.62"
"Communities, Customer & Commercial Services",Sport & Leisure,Supplies & Services,EEC Whole Milk,JOHAL DAIRIES,22/05/2024,"1,775.04"
"Communities, Customer & Commercial Services",Sport & Leisure,Supplies & Services,EEC Whole Milk,JOHAL DAIRIES,22/05/2024,791.05
"Communities, Customer & Commercial Services",Sport & Leisure,Supplies & Services,Provisions,BIKOLD,02/05/2024,153.02
"Communities, Customer & Commercial Services",Sport & Leisure,Supplies & Services,Provisions,BIKOLD,16/05/2024,169.76
"Communities, Customer & Commercial Services",Sport & Leisure,Supplies & Services,Provisions,BIKOLD,23/05/2024,171.05
"Communities, Customer & Commercial Services",Sport & Leisure,Premises-Related Expenditure,Clean Mats & Toilet Requisites,Border Janitorial Supplies Limited,03/05/2024,256.16
"Communities, Customer & Commercial Services",Sport & Leisure,Premises-Related Expenditure,Clean Mats & Toilet Requisites,Border Janitorial Supplies Limited,08/05/2024,106.78
"Communities, Customer & Commercial Services",Sport & Leisure,Premises-Related Expenditure,Clean Mats & Toilet Requisites,Border Janitorial Supplies Limited,16/05/2024,218.67
"Communities, Customer & Commercial Services",Sport & Leisure,Premises-Related Expenditure,Clean Mats & Toilet Requisites,Border Janitorial Supplies Limited,15/05/2024,117.45
"Communities, Customer & Commercial Services",Sport & Leisure,Premises-Related Expenditure,Clean Mats & Toilet Requisites,Border Janitorial Supplies Limited,15/05/2024,544.23
"Communities, Customer & Commercial Services",Sport & Leisure,Premises-Related Expenditure,Clean Mats & Toilet Requisites,Border Janitorial Supplies Limited,15/05/2024,453.40
"Communities, Customer & Commercial Services",Sport & Leisure,Premises-Related Expenditure,Clean Mats & Toilet Requisites,Border Janitorial Supplies Limited,22/05/2024,173.49
"Communities, Customer & Commercial Services",Sport & Leisure,Supplies & Services,Crockery/Hardware/Light Equip,CALTEL CATERING & LAUNDRY EQUIPMENT LLP,24/05/2024,135.00
"Communities, Customer & Commercial Services",Sport & Leisure,Supplies & Services,Provisions,J S Catering Butchers,14/05/2024,110.32
"Communities, Customer & Commercial Services",Sport & Leisure,Supplies & Services,Provisions,J S Catering Butchers,14/05/2024,121.50
"Communities, Customer & Commercial Services",Sport & Leisure,Supplies & Services,Provisions,J S Catering Butchers,14/05/2024,388.36
"Communities, Customer & Commercial Services",Sport & Leisure,Supplies & Services,Provisions,J S Catering Butchers,14/05/2024,303.10
"Communities, Customer & Commercial Services",Sport & Leisure,Supplies & Services,Provisions,J S Catering Butchers,14/05/2024,103.11
"Communities, Customer & Commercial Services",Sport & Leisure,Supplies & Services,Provisions,J S Catering Butchers,14/05/2024,180.63
"Communities, Customer & Commercial Services",Sport & Leisure,Supplies & Services,Provisions,SAFY IMPEX LTD T/A SPICE TIME,10/05/2024,122.95
"Communities, Customer & Commercial Services",Sport & Leisure,Supplies & Services,Provisions,SAFY IMPEX LTD T/A SPICE TIME,10/05/2024,104.00
"Communities, Customer & Commercial Services",Sport & Leisure,Supplies & Services,Provisions,SAFY IMPEX LTD T/A SPICE TIME,10/05/2024,379.80
"Communities, Customer & Commercial Services",Sport & Leisure,Supplies & Services,Provisions,SAFY IMPEX LTD T/A SPICE TIME,10/05/2024,173.70
"Communities, Customer & Commercial Services",Sport & Leisure,Supplies & Services,Provisions,SAFY IMPEX LTD T/A SPICE TIME,10/05/2024,100.95
"Communities, Customer & Commercial Services",Sport & Leisure,Supplies & Services,Provisions,SAFY IMPEX LTD T/A SPICE TIME,10/05/2024,133.00
"Communities, Customer & Commercial Services",Sport & Leisure,Supplies & Services,Provisions,SAFY IMPEX LTD T/A SPICE TIME,10/05/2024,288.80
"Communities, Customer & Commercial Services",Sport & Leisure,Supplies & Services,Provisions,SAFY IMPEX LTD T/A SPICE TIME,10/05/2024,167.70
"Communities, Customer & Commercial Services",Sport & Leisure,Supplies & Services,Provisions,SAFY IMPEX LTD T/A SPICE TIME,10/05/2024,190.10
"Communities, Customer & Commercial Services",Sport & Leisure,Supplies & Services,Provisions,SAFY IMPEX LTD T/A SPICE TIME,10/05/2024,170.70
"Communities, Customer & Commercial Services",Sport & Leisure,Supplies & Services,Provisions,SAFY IMPEX LTD T/A SPICE TIME,10/05/2024,265.30
"Communities, Customer & Commercial Services",Sport & Leisure,Supplies & Services,Provisions,SAFY IMPEX LTD T/A SPICE TIME,10/05/2024,154.00
"Communities, Customer & Commercial Services",Sport & Leisure,Supplies & Services,Provisions,BIKOLD,02/05/2024,196.13
"Communities, Customer & Commercial Services",Sport & Leisure,Supplies & Services,Provisions,BIKOLD,02/05/2024,578.78
"Communities, Customer & Commercial Services",Sport & Leisure,Supplies & Services,Provisions,BIKOLD,02/05/2024,301.45
"Communities, Customer & Commercial Services",Sport & Leisure,Supplies & Services,Provisions,BIKOLD,02/05/2024,521.69
"Communities, Customer & Commercial Services",Sport & Leisure,Supplies & Services,Provisions,BIKOLD,02/05/2024,179.72
"Communities, Customer & Commercial Services",Sport & Leisure,Supplies & Services,Provisions,BIKOLD,02/05/2024,137.18
"Communities, Customer & Commercial Services",Sport & Leisure,Supplies & Services,Provisions,BIKOLD,02/05/2024,143.52
"Communities, Customer & Commercial Services",Sport & Leisure,Supplies & Services,Provisions,BIKOLD,02/05/2024,157.33
"Communities, Customer & Commercial Services",Sport & Leisure,Supplies & Services,Provisions,BIKOLD,02/05/2024,109.51
"Communities, Customer & Commercial Services",Sport & Leisure,Supplies & Services,Provisions,BIKOLD,02/05/2024,177.32
"Communities, Customer & Commercial Services",Sport & Leisure,Supplies & Services,Provisions,BIKOLD,02/05/2024,223.66
"Communities, Customer & Commercial Services",Sport & Leisure,Supplies & Services,Provisions,BIKOLD,02/05/2024,193.72
"Communities, Customer & Commercial Services",Sport & Leisure,Supplies & Services,Provisions,BIKOLD,02/05/2024,141.10
"Communities, Customer & Commercial Services",Sport & Leisure,Supplies & Services,Provisions,BIKOLD,02/05/2024,352.42
"Communities, Customer & Commercial Services",Sport & Leisure,Supplies & Services,Provisions,BIKOLD,02/05/2024,267.61
"Communities, Customer & Commercial Services",Sport & Leisure,Supplies & Services,Provisions,BIKOLD,02/05/2024,341.51
"Communities, Customer & Commercial Services",Sport & Leisure,Supplies & Services,Provisions,BIKOLD,02/05/2024,399.90
"Communities, Customer & Commercial Services",Sport & Leisure,Supplies & Services,Provisions,BIKOLD,02/05/2024,305.48
"Communities, Customer & Commercial Services",Sport & Leisure,Supplies & Services,Provisions,BIKOLD,02/05/2024,125.07
"Communities, Customer & Commercial Services",Sport & Leisure,Supplies & Services,Provisions,BIKOLD,02/05/2024,225.50
"Communities, Customer & Commercial Services",Sport & Leisure,Supplies & Services,Provisions,BIKOLD,02/05/2024,131.89
"Communities, Customer & Commercial Services",Sport & Leisure,Supplies & Services,Provisions,BIKOLD,02/05/2024,178.73
"Communities, Customer & Commercial Services",Sport & Leisure,Supplies & Services,Provisions,BIKOLD,02/05/2024,336.50
"Communities, Customer & Commercial Services",Sport & Leisure,Supplies & Services,Provisions,BIKOLD,02/05/2024,187.31
"Communities, Customer & Commercial Services",Sport & Leisure,Supplies & Services,Provisions,BIKOLD,02/05/2024,469.96
"Communities, Customer & Commercial Services",Sport & Leisure,Supplies & Services,Provisions,BIKOLD,02/05/2024,336.22
"Communities, Customer & Commercial Services",Sport & Leisure,Supplies & Services,Provisions,BIKOLD,02/05/2024,645.06
"Communities, Customer & Commercial Services",Sport & Leisure,Supplies & Services,Provisions,BIKOLD,02/05/2024,213.90
"Communities, Customer & Commercial Services",Sport & Leisure,Supplies & Services,Provisions,BIKOLD,02/05/2024,251.47
"Communities, Customer & Commercial Services",Sport & Leisure,Supplies & Services,Provisions,BIKOLD,02/05/2024,117.09
"Communities, Customer & Commercial Services",Sport & Leisure,Supplies & Services,Provisions,BIKOLD,02/05/2024,365.19
"Communities, Customer & Commercial Services",Sport & Leisure,Supplies & Services,Provisions,BIKOLD,02/05/2024,108.46
"Communities, Customer & Commercial Services",Sport & Leisure,Supplies & Services,Provisions,BIKOLD,02/05/2024,819.64
"Communities, Customer & Commercial Services",Sport & Leisure,Supplies & Services,Provisions,BIKOLD,02/05/2024,158.82
"Communities, Customer & Commercial Services",Sport & Leisure,Supplies & Services,Provisions,BIKOLD,02/05/2024,784.28
"Communities, Customer & Commercial Services",Sport & Leisure,Supplies & Services,Provisions,BIKOLD,02/05/2024,106.54
"Communities, Customer & Commercial Services",Sport & Leisure,Supplies & Services,Provisions,BIKOLD,02/05/2024,127.10
"Communities, Customer & Commercial Services",Sport & Leisure,Supplies & Services,Provisions,BIKOLD,02/05/2024,449.56
"Communities, Customer & Commercial Services",Sport & Leisure,Supplies & Services,Provisions,BIKOLD,02/05/2024,220.70
"Communities, Customer & Commercial Services",Sport & Leisure,Supplies & Services,Provisions,BIKOLD,02/05/2024,229.06
"Communities, Customer & Commercial Services",Sport & Leisure,Supplies & Services,Provisions,BIKOLD,02/05/2024,115.84
"Communities, Customer & Commercial Services",Sport & Leisure,Supplies & Services,Provisions,BIKOLD,02/05/2024,298.28
"Communities, Customer & Commercial Services",Sport & Leisure,Supplies & Services,Provisions,BIKOLD,02/05/2024,290.65
"Communities, Customer & Commercial Services",Sport & Leisure,Supplies & Services,Provisions,BIKOLD,02/05/2024,136.59
"Communities, Customer & Commercial Services",Sport & Leisure,Supplies & Services,Provisions,BIKOLD,02/05/2024,221.99
"Communities, Customer & Commercial Services",Sport & Leisure,Supplies & Services,Provisions,BIKOLD,02/05/2024,198.96
"Communities, Customer & Commercial Services",Sport & Leisure,Supplies & Services,Provisions,BIKOLD,02/05/2024,152.45
"Communities, Customer & Commercial Services",Sport & Leisure,Supplies & Services,Provisions,BIKOLD,02/05/2024,274.00
"Communities, Customer & Commercial Services",Sport & Leisure,Supplies & Services,Provisions,BIKOLD,02/05/2024,280.98
"Communities, Customer & Commercial Services",Sport & Leisure,Supplies & Services,Provisions,BIKOLD,02/05/2024,240.41
"Communities, Customer & Commercial Services",Sport & Leisure,Supplies & Services,Provisions,BIKOLD,02/05/2024,114.54
"Communities, Customer & Commercial Services",Sport & Leisure,Supplies & Services,Provisions,BIKOLD,02/05/2024,169.38
"Communities, Customer & Commercial Services",Sport & Leisure,Supplies & Services,Provisions,BIKOLD,02/05/2024,697.95
"Communities, Customer & Commercial Services",Sport & Leisure,Supplies & Services,Provisions,BIKOLD,02/05/2024,130.86
"Communities, Customer & Commercial Services",Sport & Leisure,Supplies & Services,Provisions,BIKOLD,02/05/2024,363.35
"Communities, Customer & Commercial Services",Sport & Leisure,Supplies & Services,Provisions,BIKOLD,02/05/2024,223.35
"Communities, Customer & Commercial Services",Sport & Leisure,Supplies & Services,Provisions,BIKOLD,02/05/2024,649.07
"Communities, Customer & Commercial Services",Sport & Leisure,Supplies & Services,Provisions,BIKOLD,02/05/2024,543.41
"Communities, Customer & Commercial Services",Sport & Leisure,Supplies & Services,Provisions,BIKOLD,02/05/2024,248.05
"Communities, Customer & Commercial Services",Sport & Leisure,Supplies & Services,Provisions,BIKOLD,02/05/2024,198.13
"Communities, Customer & Commercial Services",Sport & Leisure,Supplies & Services,Provisions,BIKOLD,02/05/2024,103.17
"Communities, Customer & Commercial Services",Sport & Leisure,Supplies & Services,Provisions,BIKOLD,02/05/2024,118.71
"Communities, Customer & Commercial Services",Sport & Leisure,Supplies & Services,Provisions,BIKOLD,02/05/2024,191.69
"Communities, Customer & Commercial Services",Sport & Leisure,Supplies & Services,Provisions,BIKOLD,02/05/2024,110.45
"Communities, Customer & Commercial Services",Sport & Leisure,Supplies & Services,Provisions,BIKOLD,02/05/2024,525.82
"Communities, Customer & Commercial Services",Sport & Leisure,Supplies & Services,Provisions,BIKOLD,02/05/2024,362.25
"Communities, Customer & Commercial Services",Sport & Leisure,Supplies & Services,Provisions,BIKOLD,02/05/2024,100.07
"Communities, Customer & Commercial Services",Sport & Leisure,Supplies & Services,Provisions,BIKOLD,02/05/2024,170.72
"Communities, Customer & Commercial Services",Sport & Leisure,Supplies & Services,Provisions,BIKOLD,02/05/2024,207.09
"Communities, Customer & Commercial Services",Sport & Leisure,Supplies & Services,Provisions,BIKOLD,02/05/2024,479.92
"Communities, Customer & Commercial Services",Sport & Leisure,Supplies & Services,Provisions,BIKOLD,02/05/2024,148.16
"Communities, Customer & Commercial Services",Sport & Leisure,Supplies & Services,Provisions,BIKOLD,02/05/2024,116.52
"Communities, Customer & Commercial Services",Sport & Leisure,Supplies & Services,Provisions,BIKOLD,02/05/2024,139.57
"Communities, Customer & Commercial Services",Sport & Leisure,Supplies & Services,Provisions,BIKOLD,02/05/2024,129.94
"Communities, Customer & Commercial Services",Sport & Leisure,Supplies & Services,Provisions,BIKOLD,02/05/2024,171.44
"Communities, Customer & Commercial Services",Sport & Leisure,Supplies & Services,Provisions,BIKOLD,02/05/2024,101.26
"Communities, Customer & Commercial Services",Sport & Leisure,Supplies & Services,Provisions,BIKOLD,02/05/2024,260.24
"Communities, Customer & Commercial Services",Sport & Leisure,Supplies & Services,Provisions,BIKOLD,02/05/2024,300.21
"Communities, Customer & Commercial Services",Sport & Leisure,Supplies & Services,Provisions,BIKOLD,02/05/2024,183.59
"Communities, Customer & Commercial Services",Sport & Leisure,Supplies & Services,Provisions,BIKOLD,02/05/2024,202.23
"Communities, Customer & Commercial Services",Sport & Leisure,Supplies & Services,Provisions,BIKOLD,02/05/2024,841.89
"Communities, Customer & Commercial Services",Sport & Leisure,Supplies & Services,Provisions,BIKOLD,02/05/2024,460.98
"Communities, Customer & Commercial Services",Sport & Leisure,Supplies & Services,Provisions,BIKOLD,02/05/2024,426.88
"Communities, Customer & Commercial Services",Sport & Leisure,Supplies & Services,Provisions,BIKOLD,02/05/2024,374.65
"Communities, Customer & Commercial Services",Sport & Leisure,Supplies & Services,Provisions,BIKOLD,02/05/2024,185.02
"Communities, Customer & Commercial Services",Sport & Leisure,Supplies & Services,Provisions,BIKOLD,02/05/2024,352.90
"Communities, Customer & Commercial Services",Sport & Leisure,Supplies & Services,Provisions,BIKOLD,02/05/2024,102.83
"Communities, Customer & Commercial Services",Sport & Leisure,Supplies & Services,Provisions,BIKOLD,02/05/2024,141.91
"Communities, Customer & Commercial Services",Sport & Leisure,Supplies & Services,Provisions,BIKOLD,02/05/2024,253.56
"Communities, Customer & Commercial Services",Sport & Leisure,Supplies & Services,Provisions,BIKOLD,02/05/2024,411.22
"Communities, Customer & Commercial Services",Sport & Leisure,Supplies & Services,Provisions,BIKOLD,02/05/2024,"1,131.26"
"Communities, Customer & Commercial Services",Sport & Leisure,Supplies & Services,Provisions,BIKOLD,02/05/2024,112.90
"Communities, Customer & Commercial Services",Sport & Leisure,Supplies & Services,Provisions,BIKOLD,02/05/2024,411.78
"Communities, Customer & Commercial Services",Sport & Leisure,Supplies & Services,Provisions,BIKOLD,02/05/2024,105.54
"Communities, Customer & Commercial Services",Sport & Leisure,Supplies & Services,Provisions,BIKOLD,02/05/2024,104.80
"Communities, Customer & Commercial Services",Sport & Leisure,Supplies & Services,Provisions,BIKOLD,02/05/2024,260.68
"Communities, Customer & Commercial Services",Sport & Leisure,Supplies & Services,Provisions,BIKOLD,02/05/2024,242.03
"Communities, Customer & Commercial Services",Sport & Leisure,Supplies & Services,Provisions,BIKOLD,02/05/2024,233.44
"Communities, Customer & Commercial Services",Sport & Leisure,Supplies & Services,Provisions,BIKOLD,02/05/2024,197.69
"Communities, Customer & Commercial Services",Sport & Leisure,Supplies & Services,Provisions,BIKOLD,02/05/2024,215.27
"Communities, Customer & Commercial Services",Sport & Leisure,Supplies & Services,Provisions,BIKOLD,02/05/2024,104.45
"Communities, Customer & Commercial Services",Sport & Leisure,Supplies & Services,Provisions,BIKOLD,02/05/2024,127.21
"Communities, Customer & Commercial Services",Sport & Leisure,Supplies & Services,Provisions,BIKOLD,02/05/2024,402.27
"Communities, Customer & Commercial Services",Sport & Leisure,Supplies & Services,Provisions,BIKOLD,02/05/2024,154.40
"Communities, Customer & Commercial Services",Sport & Leisure,Supplies & Services,Provisions,BIKOLD,02/05/2024,436.39
"Communities, Customer & Commercial Services",Sport & Leisure,Supplies & Services,Provisions,BIKOLD,02/05/2024,304.72
"Communities, Customer & Commercial Services",Sport & Leisure,Supplies & Services,Provisions,BIKOLD,02/05/2024,176.40
"Communities, Customer & Commercial Services",Sport & Leisure,Supplies & Services,Provisions,BIKOLD,02/05/2024,170.24
"Communities, Customer & Commercial Services",Sport & Leisure,Supplies & Services,Provisions,BIKOLD,02/05/2024,109.18
"Communities, Customer & Commercial Services",Sport & Leisure,Supplies & Services,Provisions,BIKOLD,02/05/2024,303.90
"Communities, Customer & Commercial Services",Sport & Leisure,Supplies & Services,Provisions,BIKOLD,02/05/2024,193.10
"Communities, Customer & Commercial Services",Sport & Leisure,Supplies & Services,Provisions,BIKOLD,02/05/2024,416.45
"Communities, Customer & Commercial Services",Sport & Leisure,Supplies & Services,Provisions,BIKOLD,02/05/2024,322.39
"Communities, Customer & Commercial Services",Sport & Leisure,Supplies & Services,Provisions,BIKOLD,02/05/2024,692.94
"Communities, Customer & Commercial Services",Sport & Leisure,Supplies & Services,Provisions,BIKOLD,02/05/2024,248.86
"Communities, Customer & Commercial Services",Sport & Leisure,Supplies & Services,Provisions,BIKOLD,02/05/2024,478.34
"Communities, Customer & Commercial Services",Sport & Leisure,Supplies & Services,Provisions,BIKOLD,02/05/2024,511.36
"Communities, Customer & Commercial Services",Sport & Leisure,Supplies & Services,Provisions,BIKOLD,02/05/2024,168.31
"Communities, Customer & Commercial Services",Sport & Leisure,Supplies & Services,Provisions,BIKOLD,02/05/2024,685.58
"Communities, Customer & Commercial Services",Sport & Leisure,Supplies & Services,Provisions,BIKOLD,02/05/2024,399.80
"Communities, Customer & Commercial Services",Sport & Leisure,Supplies & Services,Provisions,BIKOLD,02/05/2024,161.14
"Communities, Customer & Commercial Services",Sport & Leisure,Supplies & Services,Provisions,BIKOLD,02/05/2024,343.48
"Communities, Customer & Commercial Services",Sport & Leisure,Supplies & Services,Provisions,BIKOLD,02/05/2024,115.39
"Communities, Customer & Commercial Services",Sport & Leisure,Supplies & Services,Provisions,BIKOLD,02/05/2024,383.51
"Communities, Customer & Commercial Services",Sport & Leisure,Supplies & Services,Provisions,BIKOLD,02/05/2024,291.95
"Communities, Customer & Commercial Services",Sport & Leisure,Supplies & Services,Provisions,BIKOLD,02/05/2024,218.59
"Communities, Customer & Commercial Services",Sport & Leisure,Supplies & Services,Provisions,BIKOLD,02/05/2024,240.98
"Communities, Customer & Commercial Services",Sport & Leisure,Supplies & Services,Provisions,BIKOLD,02/05/2024,235.74
"Communities, Customer & Commercial Services",Sport & Leisure,Supplies & Services,Provisions,BIKOLD,02/05/2024,135.82
"Communities, Customer & Commercial Services",Sport & Leisure,Supplies & Services,Provisions,BIKOLD,02/05/2024,252.72
"Communities, Customer & Commercial Services",Sport & Leisure,Supplies & Services,Provisions,BIKOLD,02/05/2024,112.57
"Communities, Customer & Commercial Services",Sport & Leisure,Supplies & Services,Provisions,BIKOLD,02/05/2024,589.61
"Communities, Customer & Commercial Services",Sport & Leisure,Supplies & Services,Provisions,BIKOLD,02/05/2024,-300.21
"Communities, Customer & Commercial Services",Sport & Leisure,Supplies & Services,Provisions,BIKOLD,02/05/2024,227.78
"Communities, Customer & Commercial Services",Sport & Leisure,Supplies & Services,Provisions,BIKOLD,02/05/2024,125.11
"Communities, Customer & Commercial Services",Sport & Leisure,Supplies & Services,Provisions,BIKOLD,02/05/2024,222.50
"Communities, Customer & Commercial Services",Sport & Leisure,Supplies & Services,Provisions,BIKOLD,02/05/2024,156.69
"Communities, Customer & Commercial Services",Sport & Leisure,Supplies & Services,Provisions,J S Catering Butchers,07/05/2024,180.63
"Communities, Customer & Commercial Services",Sport & Leisure,Supplies & Services,Provisions,J S Catering Butchers,07/05/2024,110.40
"Communities, Customer & Commercial Services",Sport & Leisure,Supplies & Services,Provisions,J S Catering Butchers,07/05/2024,115.60
"Communities, Customer & Commercial Services",Sport & Leisure,Supplies & Services,Provisions,J S Catering Butchers,07/05/2024,109.35
"Communities, Customer & Commercial Services",Sport & Leisure,Supplies & Services,Provisions,J S Catering Butchers,07/05/2024,111.30
"Communities, Customer & Commercial Services",Sport & Leisure,Supplies & Services,Provisions,J S Catering Butchers,07/05/2024,102.51
"Communities, Customer & Commercial Services",Sport & Leisure,Supplies & Services,Provisions,J S Catering Butchers,07/05/2024,144.50
"Communities, Customer & Commercial Services",Sport & Leisure,Supplies & Services,Provisions,J S Catering Butchers,07/05/2024,330.92
"Communities, Customer & Commercial Services",Sport & Leisure,Supplies & Services,Provisions,J S Catering Butchers,07/05/2024,144.44
"Communities, Customer & Commercial Services",Sport & Leisure,Supplies & Services,Provisions,J S Catering Butchers,07/05/2024,123.09
"Communities, Customer & Commercial Services",Sport & Leisure,Supplies & Services,Provisions,On A Roll,09/05/2024,232.50
"Communities, Customer & Commercial Services",Sport & Leisure,Supplies & Services,Provisions,BIKOLD,09/05/2024,606.03
"Communities, Customer & Commercial Services",Sport & Leisure,Supplies & Services,Provisions,BIKOLD,09/05/2024,137.86
"Communities, Customer & Commercial Services",Sport & Leisure,Supplies & Services,Provisions,BIKOLD,09/05/2024,122.04
"Communities, Customer & Commercial Services",Sport & Leisure,Supplies & Services,Provisions,BIKOLD,09/05/2024,167.67
"Communities, Customer & Commercial Services",Sport & Leisure,Supplies & Services,Provisions,BIKOLD,09/05/2024,122.71
"Communities, Customer & Commercial Services",Sport & Leisure,Supplies & Services,Provisions,BIKOLD,09/05/2024,141.32
"Communities, Customer & Commercial Services",Sport & Leisure,Supplies & Services,Provisions,BIKOLD,09/05/2024,417.47
"Communities, Customer & Commercial Services",Sport & Leisure,Supplies & Services,Provisions,BIKOLD,09/05/2024,470.37
"Communities, Customer & Commercial Services",Sport & Leisure,Supplies & Services,Provisions,BIKOLD,09/05/2024,425.93
"Communities, Customer & Commercial Services",Sport & Leisure,Supplies & Services,Provisions,BIKOLD,09/05/2024,141.65
"Communities, Customer & Commercial Services",Sport & Leisure,Supplies & Services,Provisions,BIKOLD,09/05/2024,133.26
"Communities, Customer & Commercial Services",Sport & Leisure,Supplies & Services,Provisions,BIKOLD,09/05/2024,169.43
"Communities, Customer & Commercial Services",Sport & Leisure,Supplies & Services,Provisions,BIKOLD,09/05/2024,448.19
"Communities, Customer & Commercial Services",Sport & Leisure,Supplies & Services,Provisions,BIKOLD,09/05/2024,143.01
"Communities, Customer & Commercial Services",Sport & Leisure,Supplies & Services,Provisions,BIKOLD,09/05/2024,571.27
"Communities, Customer & Commercial Services",Sport & Leisure,Supplies & Services,Provisions,BIKOLD,09/05/2024,118.15
"Communities, Customer & Commercial Services",Sport & Leisure,Supplies & Services,Provisions,BIKOLD,09/05/2024,506.39
"Communities, Customer & Commercial Services",Sport & Leisure,Supplies & Services,Provisions,BIKOLD,09/05/2024,303.59
"Communities, Customer & Commercial Services",Sport & Leisure,Supplies & Services,Provisions,BIKOLD,09/05/2024,390.76
"Communities, Customer & Commercial Services",Sport & Leisure,Supplies & Services,Provisions,BIKOLD,09/05/2024,232.31
"Communities, Customer & Commercial Services",Sport & Leisure,Supplies & Services,Provisions,BIKOLD,09/05/2024,538.74
"Communities, Customer & Commercial Services",Sport & Leisure,Supplies & Services,Provisions,BIKOLD,09/05/2024,243.20
"Communities, Customer & Commercial Services",Sport & Leisure,Supplies & Services,Provisions,BIKOLD,09/05/2024,267.07
"Communities, Customer & Commercial Services",Sport & Leisure,Supplies & Services,Provisions,BIKOLD,09/05/2024,423.75
"Communities, Customer & Commercial Services",Sport & Leisure,Supplies & Services,Provisions,BIKOLD,09/05/2024,404.06
"Communities, Customer & Commercial Services",Sport & Leisure,Supplies & Services,Provisions,BIKOLD,09/05/2024,243.75
"Communities, Customer & Commercial Services",Sport & Leisure,Supplies & Services,Provisions,BIKOLD,09/05/2024,145.72
"Communities, Customer & Commercial Services",Sport & Leisure,Supplies & Services,Provisions,BIKOLD,09/05/2024,133.29
"Communities, Customer & Commercial Services",Sport & Leisure,Supplies & Services,Provisions,BIKOLD,09/05/2024,200.23
"Communities, Customer & Commercial Services",Sport & Leisure,Supplies & Services,Provisions,BIKOLD,09/05/2024,126.43
"Communities, Customer & Commercial Services",Sport & Leisure,Supplies & Services,Provisions,BIKOLD,09/05/2024,425.42
"Communities, Customer & Commercial Services",Sport & Leisure,Supplies & Services,Provisions,BIKOLD,09/05/2024,175.75
"Communities, Customer & Commercial Services",Sport & Leisure,Supplies & Services,Provisions,BIKOLD,09/05/2024,130.62
"Communities, Customer & Commercial Services",Sport & Leisure,Supplies & Services,Provisions,BIKOLD,09/05/2024,130.01
"Communities, Customer & Commercial Services",Sport & Leisure,Supplies & Services,Provisions,BIKOLD,09/05/2024,249.45
"Communities, Customer & Commercial Services",Sport & Leisure,Supplies & Services,Provisions,BIKOLD,09/05/2024,301.67
"Communities, Customer & Commercial Services",Sport & Leisure,Supplies & Services,Provisions,BIKOLD,09/05/2024,253.59
"Communities, Customer & Commercial Services",Sport & Leisure,Supplies & Services,Provisions,BIKOLD,09/05/2024,515.98
"Communities, Customer & Commercial Services",Sport & Leisure,Supplies & Services,Provisions,BIKOLD,09/05/2024,494.70
"Communities, Customer & Commercial Services",Sport & Leisure,Supplies & Services,Provisions,ROWLANDS & COMPANY,08/05/2024,114.60
"Communities, Customer & Commercial Services",Sport & Leisure,Supplies & Services,Provisions,ROWLANDS & COMPANY,08/05/2024,102.32
"Communities, Customer & Commercial Services",Sport & Leisure,Supplies & Services,Provisions,ROWLANDS & COMPANY,08/05/2024,189.03
"Communities, Customer & Commercial Services",Sport & Leisure,Supplies & Services,Provisions,ROWLANDS & COMPANY,08/05/2024,198.93
"Communities, Customer & Commercial Services",Sport & Leisure,Supplies & Services,Provisions,ROWLANDS & COMPANY,08/05/2024,127.82
"Communities, Customer & Commercial Services",Sport & Leisure,Supplies & Services,Provisions,ROWLANDS & COMPANY,08/05/2024,188.62
"Communities, Customer & Commercial Services",Sport & Leisure,Supplies & Services,Provisions,ROWLANDS & COMPANY,08/05/2024,212.50
"Communities, Customer & Commercial Services",Sport & Leisure,Supplies & Services,Provisions,ROWLANDS & COMPANY,08/05/2024,108.79
"Communities, Customer & Commercial Services",Sport & Leisure,Supplies & Services,Provisions,ROWLANDS & COMPANY,08/05/2024,113.23
"Communities, Customer & Commercial Services",Sport & Leisure,Supplies & Services,Provisions,ROWLANDS & COMPANY,08/05/2024,109.80
"Communities, Customer & Commercial Services",Sport & Leisure,Supplies & Services,Provisions,ROWLANDS & COMPANY,08/05/2024,247.11
"Communities, Customer & Commercial Services",Sport & Leisure,Supplies & Services,Provisions,ROWLANDS & COMPANY,08/05/2024,152.65
"Communities, Customer & Commercial Services",Sport & Leisure,Supplies & Services,Provisions,ROWLANDS & COMPANY,08/05/2024,184.19
"Communities, Customer & Commercial Services",Sport & Leisure,Supplies & Services,Provisions,ROWLANDS & COMPANY,08/05/2024,143.96
"Communities, Customer & Commercial Services",Sport & Leisure,Supplies & Services,Provisions,ROWLANDS & COMPANY,08/05/2024,297.54
"Communities, Customer & Commercial Services",Sport & Leisure,Supplies & Services,Provisions,ROWLANDS & COMPANY,08/05/2024,-119.12
"Communities, Customer & Commercial Services",Sport & Leisure,Supplies & Services,Provisions,ROWLANDS & COMPANY,08/05/2024,121.08
"Communities, Customer & Commercial Services",Sport & Leisure,Supplies & Services,Provisions,BIKOLD,09/05/2024,259.69
"Communities, Customer & Commercial Services",Sport & Leisure,Supplies & Services,Provisions,BIKOLD,09/05/2024,136.70
"Communities, Customer & Commercial Services",Sport & Leisure,Supplies & Services,Provisions,BIKOLD,09/05/2024,113.92
"Communities, Customer & Commercial Services",Sport & Leisure,Supplies & Services,Provisions,BIKOLD,09/05/2024,269.99
"Communities, Customer & Commercial Services",Sport & Leisure,Supplies & Services,Provisions,BIKOLD,09/05/2024,201.80
"Communities, Customer & Commercial Services",Sport & Leisure,Supplies & Services,Provisions,BIKOLD,09/05/2024,497.55
"Communities, Customer & Commercial Services",Sport & Leisure,Supplies & Services,Provisions,BIKOLD,09/05/2024,189.47
"Communities, Customer & Commercial Services",Sport & Leisure,Supplies & Services,Provisions,BIKOLD,09/05/2024,138.40
"Communities, Customer & Commercial Services",Sport & Leisure,Supplies & Services,Provisions,BIKOLD,09/05/2024,295.54
"Communities, Customer & Commercial Services",Sport & Leisure,Supplies & Services,Provisions,BIKOLD,09/05/2024,102.02
"Communities, Customer & Commercial Services",Sport & Leisure,Supplies & Services,Provisions,BIKOLD,09/05/2024,200.72
"Communities, Customer & Commercial Services",Sport & Leisure,Supplies & Services,Provisions,BIKOLD,09/05/2024,115.44
"Communities, Customer & Commercial Services",Sport & Leisure,Supplies & Services,Provisions,BIKOLD,09/05/2024,534.94
"Communities, Customer & Commercial Services",Sport & Leisure,Supplies & Services,Provisions,BIKOLD,09/05/2024,103.56
"Communities, Customer & Commercial Services",Sport & Leisure,Supplies & Services,Provisions,BIKOLD,09/05/2024,238.92
"Communities, Customer & Commercial Services",Sport & Leisure,Supplies & Services,Provisions,BIKOLD,09/05/2024,153.24
"Communities, Customer & Commercial Services",Sport & Leisure,Supplies & Services,Provisions,BIKOLD,09/05/2024,332.49
"Communities, Customer & Commercial Services",Sport & Leisure,Supplies & Services,Provisions,BIKOLD,09/05/2024,456.48
"Communities, Customer & Commercial Services",Sport & Leisure,Supplies & Services,Provisions,BIKOLD,09/05/2024,171.34
"Communities, Customer & Commercial Services",Sport & Leisure,Supplies & Services,Provisions,BIKOLD,09/05/2024,103.17
"Communities, Customer & Commercial Services",Sport & Leisure,Supplies & Services,Provisions,BIKOLD,09/05/2024,113.19
"Communities, Customer & Commercial Services",Sport & Leisure,Supplies & Services,Provisions,BIKOLD,09/05/2024,157.47
"Communities, Customer & Commercial Services",Sport & Leisure,Supplies & Services,Provisions,BIKOLD,09/05/2024,214.06
"Communities, Customer & Commercial Services",Sport & Leisure,Supplies & Services,Provisions,BIKOLD,09/05/2024,373.92
"Communities, Customer & Commercial Services",Sport & Leisure,Supplies & Services,Provisions,BIKOLD,09/05/2024,248.23
"Communities, Customer & Commercial Services",Sport & Leisure,Supplies & Services,Provisions,BIKOLD,09/05/2024,151.59
"Communities, Customer & Commercial Services",Sport & Leisure,Supplies & Services,Provisions,BIKOLD,09/05/2024,335.83
"Communities, Customer & Commercial Services",Sport & Leisure,Supplies & Services,Provisions,BIKOLD,09/05/2024,119.09
"Communities, Customer & Commercial Services",Sport & Leisure,Supplies & Services,Provisions,BIKOLD,09/05/2024,581.11
"Communities, Customer & Commercial Services",Sport & Leisure,Supplies & Services,Provisions,BIKOLD,09/05/2024,239.85
"Communities, Customer & Commercial Services",Sport & Leisure,Supplies & Services,Provisions,BIKOLD,09/05/2024,423.60
"Communities, Customer & Commercial Services",Sport & Leisure,Supplies & Services,Provisions,ROWLANDS & COMPANY,08/05/2024,182.89
"Communities, Customer & Commercial Services",Sport & Leisure,Supplies & Services,Provisions,ROWLANDS & COMPANY,08/05/2024,128.24
"Communities, Customer & Commercial Services",Sport & Leisure,Supplies & Services,Provisions,ROWLANDS & COMPANY,08/05/2024,158.60
"Communities, Customer & Commercial Services",Sport & Leisure,Supplies & Services,Provisions,ROWLANDS & COMPANY,08/05/2024,108.95
"Communities, Customer & Commercial Services",Sport & Leisure,Supplies & Services,Provisions,ROWLANDS & COMPANY,08/05/2024,130.53
"Communities, Customer & Commercial Services",Sport & Leisure,Supplies & Services,Provisions,ROWLANDS & COMPANY,08/05/2024,104.56
"Communities, Customer & Commercial Services",Sport & Leisure,Supplies & Services,Provisions,ROWLANDS & COMPANY,08/05/2024,147.66
"Communities, Customer & Commercial Services",Sport & Leisure,Supplies & Services,Provisions,ROWLANDS & COMPANY,08/05/2024,141.31
"Communities, Customer & Commercial Services",Sport & Leisure,Supplies & Services,Provisions,ROWLANDS & COMPANY,10/05/2024,132.84
"Communities, Customer & Commercial Services",Sport & Leisure,Supplies & Services,Provisions,ROWLANDS & COMPANY,10/05/2024,268.81
"Communities, Customer & Commercial Services",Sport & Leisure,Supplies & Services,Provisions,ROWLANDS & COMPANY,10/05/2024,204.24
"Communities, Customer & Commercial Services",Sport & Leisure,Supplies & Services,Provisions,ROWLANDS & COMPANY,10/05/2024,153.23
"Communities, Customer & Commercial Services",Sport & Leisure,Supplies & Services,Provisions,ROWLANDS & COMPANY,10/05/2024,151.98
"Communities, Customer & Commercial Services",Sport & Leisure,Supplies & Services,Provisions,ROWLANDS & COMPANY,10/05/2024,219.10
"Communities, Customer & Commercial Services",Sport & Leisure,Supplies & Services,Provisions,ROWLANDS & COMPANY,10/05/2024,132.96
"Communities, Customer & Commercial Services",Sport & Leisure,Supplies & Services,Provisions,ROWLANDS & COMPANY,10/05/2024,106.02
"Communities, Customer & Commercial Services",Sport & Leisure,Supplies & Services,Provisions,ROWLANDS & COMPANY,10/05/2024,142.26
"Communities, Customer & Commercial Services",Sport & Leisure,Supplies & Services,Provisions,ROWLANDS & COMPANY,10/05/2024,145.02
"Communities, Customer & Commercial Services",Sport & Leisure,Supplies & Services,Provisions,ROWLANDS & COMPANY,10/05/2024,111.05
"Communities, Customer & Commercial Services",Sport & Leisure,Supplies & Services,Provisions,ROWLANDS & COMPANY,10/05/2024,122.51
"Communities, Customer & Commercial Services",Sport & Leisure,Supplies & Services,Provisions,ROWLANDS & COMPANY,10/05/2024,138.08
"Communities, Customer & Commercial Services",Sport & Leisure,Supplies & Services,Provisions,ROWLANDS & COMPANY,10/05/2024,141.16
"Communities, Customer & Commercial Services",Sport & Leisure,Supplies & Services,Provisions,ROWLANDS & COMPANY,10/05/2024,113.25
"Communities, Customer & Commercial Services",Sport & Leisure,Supplies & Services,Provisions,ROWLANDS & COMPANY,10/05/2024,115.89
"Communities, Customer & Commercial Services",Sport & Leisure,Supplies & Services,Provisions,ROWLANDS & COMPANY,10/05/2024,102.18
"Communities, Customer & Commercial Services",Sport & Leisure,Supplies & Services,Provisions,ROWLANDS & COMPANY,10/05/2024,156.53
"Communities, Customer & Commercial Services",Sport & Leisure,Supplies & Services,Provisions,ROWLANDS & COMPANY,10/05/2024,176.34
"Communities, Customer & Commercial Services",Sport & Leisure,Supplies & Services,Provisions,ROWLANDS & COMPANY,10/05/2024,113.15
"Communities, Customer & Commercial Services",Sport & Leisure,Supplies & Services,Provisions,ROWLANDS & COMPANY,10/05/2024,102.91
"Communities, Customer & Commercial Services",Sport & Leisure,Supplies & Services,Provisions,ROWLANDS & COMPANY,10/05/2024,161.35
"Communities, Customer & Commercial Services",Sport & Leisure,Supplies & Services,Provisions,ROWLANDS & COMPANY,10/05/2024,116.20
"Communities, Customer & Commercial Services",Sport & Leisure,Supplies & Services,Provisions,ROWLANDS & COMPANY,10/05/2024,112.12
"Communities, Customer & Commercial Services",Sport & Leisure,Supplies & Services,Provisions,J S Catering Butchers,20/05/2024,180.63
"Communities, Customer & Commercial Services",Sport & Leisure,Supplies & Services,Provisions,J S Catering Butchers,20/05/2024,300.92
"Communities, Customer & Commercial Services",Sport & Leisure,Supplies & Services,Provisions,J S Catering Butchers,20/05/2024,130.82
"Communities, Customer & Commercial Services",Sport & Leisure,Supplies & Services,Provisions,BIKOLD,16/05/2024,323.21
"Communities, Customer & Commercial Services",Sport & Leisure,Supplies & Services,Provisions,BIKOLD,16/05/2024,496.09
"Communities, Customer & Commercial Services",Sport & Leisure,Supplies & Services,Provisions,BIKOLD,16/05/2024,110.20
"Communities, Customer & Commercial Services",Sport & Leisure,Supplies & Services,Provisions,BIKOLD,16/05/2024,194.13
"Communities, Customer & Commercial Services",Sport & Leisure,Supplies & Services,Provisions,BIKOLD,16/05/2024,146.99
"Communities, Customer & Commercial Services",Sport & Leisure,Supplies & Services,Provisions,BIKOLD,16/05/2024,179.48
"Communities, Customer & Commercial Services",Sport & Leisure,Supplies & Services,Provisions,BIKOLD,16/05/2024,466.16
"Communities, Customer & Commercial Services",Sport & Leisure,Supplies & Services,Provisions,BIKOLD,16/05/2024,106.98
"Communities, Customer & Commercial Services",Sport & Leisure,Supplies & Services,Provisions,BIKOLD,16/05/2024,205.81
"Communities, Customer & Commercial Services",Sport & Leisure,Supplies & Services,Provisions,BIKOLD,16/05/2024,142.18
"Communities, Customer & Commercial Services",Sport & Leisure,Supplies & Services,Provisions,BIKOLD,16/05/2024,238.57
"Communities, Customer & Commercial Services",Sport & Leisure,Supplies & Services,Provisions,BIKOLD,16/05/2024,185.33
"Communities, Customer & Commercial Services",Sport & Leisure,Supplies & Services,Provisions,BIKOLD,16/05/2024,117.46
"Communities, Customer & Commercial Services",Sport & Leisure,Supplies & Services,Provisions,BIKOLD,16/05/2024,143.56
"Communities, Customer & Commercial Services",Sport & Leisure,Supplies & Services,Provisions,BIKOLD,16/05/2024,135.72
"Communities, Customer & Commercial Services",Sport & Leisure,Supplies & Services,Provisions,BIKOLD,16/05/2024,269.08
"Communities, Customer & Commercial Services",Sport & Leisure,Supplies & Services,Provisions,BIKOLD,16/05/2024,430.62
"Communities, Customer & Commercial Services",Sport & Leisure,Supplies & Services,Provisions,BIKOLD,16/05/2024,370.85
"Communities, Customer & Commercial Services",Sport & Leisure,Supplies & Services,Provisions,BIKOLD,16/05/2024,211.41
"Communities, Customer & Commercial Services",Sport & Leisure,Supplies & Services,Provisions,BIKOLD,16/05/2024,167.37
"Communities, Customer & Commercial Services",Sport & Leisure,Supplies & Services,Provisions,BIKOLD,16/05/2024,181.43
"Communities, Customer & Commercial Services",Sport & Leisure,Supplies & Services,Provisions,BIKOLD,16/05/2024,279.58
"Communities, Customer & Commercial Services",Sport & Leisure,Supplies & Services,Provisions,BIKOLD,16/05/2024,203.03
"Communities, Customer & Commercial Services",Sport & Leisure,Supplies & Services,Provisions,BIKOLD,16/05/2024,169.53
"Communities, Customer & Commercial Services",Sport & Leisure,Supplies & Services,Provisions,BIKOLD,16/05/2024,205.02
"Communities, Customer & Commercial Services",Sport & Leisure,Supplies & Services,Provisions,BIKOLD,16/05/2024,129.61
"Communities, Customer & Commercial Services",Sport & Leisure,Supplies & Services,Provisions,BIKOLD,16/05/2024,271.11
"Communities, Customer & Commercial Services",Sport & Leisure,Supplies & Services,Provisions,BIKOLD,16/05/2024,402.31
"Communities, Customer & Commercial Services",Sport & Leisure,Supplies & Services,Provisions,BIKOLD,16/05/2024,174.43
"Communities, Customer & Commercial Services",Sport & Leisure,Supplies & Services,Provisions,BIKOLD,16/05/2024,159.64
"Communities, Customer & Commercial Services",Sport & Leisure,Supplies & Services,Provisions,BIKOLD,16/05/2024,191.75
"Communities, Customer & Commercial Services",Sport & Leisure,Supplies & Services,Provisions,BIKOLD,16/05/2024,317.80
"Communities, Customer & Commercial Services",Sport & Leisure,Supplies & Services,Provisions,BIKOLD,16/05/2024,129.28
"Communities, Customer & Commercial Services",Sport & Leisure,Supplies & Services,Provisions,BIKOLD,16/05/2024,270.09
"Communities, Customer & Commercial Services",Sport & Leisure,Supplies & Services,Provisions,BIKOLD,16/05/2024,137.54
"Communities, Customer & Commercial Services",Sport & Leisure,Supplies & Services,Provisions,BIKOLD,16/05/2024,112.33
"Communities, Customer & Commercial Services",Sport & Leisure,Supplies & Services,Provisions,BIKOLD,16/05/2024,106.55
"Communities, Customer & Commercial Services",Sport & Leisure,Supplies & Services,Provisions,BIKOLD,16/05/2024,157.73
"Communities, Customer & Commercial Services",Sport & Leisure,Supplies & Services,Provisions,BIKOLD,16/05/2024,127.24
"Communities, Customer & Commercial Services",Sport & Leisure,Supplies & Services,Provisions,BIKOLD,16/05/2024,112.78
"Communities, Customer & Commercial Services",Sport & Leisure,Supplies & Services,Provisions,BIKOLD,16/05/2024,395.15
"Communities, Customer & Commercial Services",Sport & Leisure,Supplies & Services,Provisions,BIKOLD,16/05/2024,397.92
"Communities, Customer & Commercial Services",Sport & Leisure,Supplies & Services,Provisions,BIKOLD,16/05/2024,202.75
"Communities, Customer & Commercial Services",Sport & Leisure,Supplies & Services,Provisions,BIKOLD,16/05/2024,125.91
"Communities, Customer & Commercial Services",Sport & Leisure,Supplies & Services,Provisions,BIKOLD,16/05/2024,637.01
"Communities, Customer & Commercial Services",Sport & Leisure,Supplies & Services,Provisions,BIKOLD,16/05/2024,128.15
"Communities, Customer & Commercial Services",Sport & Leisure,Supplies & Services,Provisions,BIKOLD,16/05/2024,108.42
"Communities, Customer & Commercial Services",Sport & Leisure,Supplies & Services,Provisions,BIKOLD,16/05/2024,136.45
"Communities, Customer & Commercial Services",Sport & Leisure,Supplies & Services,Provisions,BIKOLD,16/05/2024,175.38
"Communities, Customer & Commercial Services",Sport & Leisure,Supplies & Services,Provisions,BIKOLD,16/05/2024,157.57
"Communities, Customer & Commercial Services",Sport & Leisure,Supplies & Services,Provisions,BIKOLD,16/05/2024,316.79
"Communities, Customer & Commercial Services",Sport & Leisure,Supplies & Services,Provisions,BIKOLD,16/05/2024,124.86
"Communities, Customer & Commercial Services",Sport & Leisure,Supplies & Services,Provisions,BIKOLD,16/05/2024,515.17
"Communities, Customer & Commercial Services",Sport & Leisure,Supplies & Services,Provisions,BIKOLD,16/05/2024,112.69
"Communities, Customer & Commercial Services",Sport & Leisure,Supplies & Services,Provisions,BIKOLD,16/05/2024,152.69
"Communities, Customer & Commercial Services",Sport & Leisure,Supplies & Services,Provisions,BIKOLD,16/05/2024,139.22
"Communities, Customer & Commercial Services",Sport & Leisure,Supplies & Services,Provisions,BIKOLD,16/05/2024,438.69
"Communities, Customer & Commercial Services",Sport & Leisure,Supplies & Services,Provisions,BIKOLD,16/05/2024,547.78
"Communities, Customer & Commercial Services",Sport & Leisure,Supplies & Services,Provisions,BIKOLD,16/05/2024,112.99
"Communities, Customer & Commercial Services",Sport & Leisure,Supplies & Services,Provisions,BIKOLD,16/05/2024,104.00
"Communities, Customer & Commercial Services",Sport & Leisure,Supplies & Services,Provisions,BIKOLD,16/05/2024,121.56
"Communities, Customer & Commercial Services",Sport & Leisure,Supplies & Services,Provisions,BIKOLD,16/05/2024,442.09
"Communities, Customer & Commercial Services",Sport & Leisure,Supplies & Services,Provisions,BIKOLD,16/05/2024,343.52
"Communities, Customer & Commercial Services",Sport & Leisure,Supplies & Services,Provisions,BIKOLD,16/05/2024,141.85
"Communities, Customer & Commercial Services",Sport & Leisure,Supplies & Services,Provisions,BIKOLD,16/05/2024,417.98
"Communities, Customer & Commercial Services",Sport & Leisure,Supplies & Services,Provisions,BIKOLD,16/05/2024,256.65
"Communities, Customer & Commercial Services",Sport & Leisure,Supplies & Services,Provisions,BIKOLD,16/05/2024,189.44
"Communities, Customer & Commercial Services",Sport & Leisure,Supplies & Services,Provisions,BIKOLD,16/05/2024,154.60
"Communities, Customer & Commercial Services",Sport & Leisure,Supplies & Services,Provisions,BIKOLD,16/05/2024,213.18
"Communities, Customer & Commercial Services",Sport & Leisure,Supplies & Services,Provisions,BIKOLD,16/05/2024,139.41
"Communities, Customer & Commercial Services",Sport & Leisure,Supplies & Services,Provisions,BIKOLD,16/05/2024,443.24
"Communities, Customer & Commercial Services",Sport & Leisure,Supplies & Services,Provisions,BIKOLD,16/05/2024,529.30
"Communities, Customer & Commercial Services",Sport & Leisure,Supplies & Services,Provisions,BIKOLD,16/05/2024,315.15
"Communities, Customer & Commercial Services",Sport & Leisure,Supplies & Services,Provisions,BIKOLD,16/05/2024,351.96
"Communities, Customer & Commercial Services",Sport & Leisure,Supplies & Services,Provisions,BIKOLD,16/05/2024,436.12
"Communities, Customer & Commercial Services",Sport & Leisure,Supplies & Services,Provisions,BIKOLD,16/05/2024,167.13
"Communities, Customer & Commercial Services",Sport & Leisure,Supplies & Services,Provisions,BIKOLD,16/05/2024,208.84
"Communities, Customer & Commercial Services",Sport & Leisure,Supplies & Services,Provisions,BIKOLD,16/05/2024,201.50
"Communities, Customer & Commercial Services",Sport & Leisure,Supplies & Services,Provisions,BIKOLD,16/05/2024,413.23
"Communities, Customer & Commercial Services",Sport & Leisure,Supplies & Services,Provisions,BIKOLD,16/05/2024,332.55
"Communities, Customer & Commercial Services",Sport & Leisure,Supplies & Services,Provisions,BIKOLD,16/05/2024,624.28
"Communities, Customer & Commercial Services",Sport & Leisure,Supplies & Services,Provisions,BIKOLD,16/05/2024,284.76
"Communities, Customer & Commercial Services",Sport & Leisure,Supplies & Services,Provisions,BIKOLD,16/05/2024,313.95
"Communities, Customer & Commercial Services",Sport & Leisure,Supplies & Services,Provisions,BIKOLD,16/05/2024,294.74
"Communities, Customer & Commercial Services",Sport & Leisure,Supplies & Services,Provisions,BIKOLD,16/05/2024,638.69
"Communities, Customer & Commercial Services",Sport & Leisure,Supplies & Services,Provisions,BIKOLD,16/05/2024,269.40
"Communities, Customer & Commercial Services",Sport & Leisure,Supplies & Services,Provisions,BIKOLD,16/05/2024,436.29
"Communities, Customer & Commercial Services",Sport & Leisure,Supplies & Services,Provisions,BIKOLD,16/05/2024,139.75
"Communities, Customer & Commercial Services",Sport & Leisure,Supplies & Services,Provisions,BIKOLD,16/05/2024,165.24
"Communities, Customer & Commercial Services",Sport & Leisure,Supplies & Services,Provisions,BIKOLD,16/05/2024,112.60
"Communities, Customer & Commercial Services",Sport & Leisure,Supplies & Services,Provisions,BIKOLD,16/05/2024,534.42
"Communities, Customer & Commercial Services",Sport & Leisure,Supplies & Services,Provisions,BIKOLD,16/05/2024,176.58
"Communities, Customer & Commercial Services",Sport & Leisure,Supplies & Services,Provisions,BIKOLD,16/05/2024,288.19
"Communities, Customer & Commercial Services",Sport & Leisure,Supplies & Services,Provisions,BIKOLD,16/05/2024,166.80
"Communities, Customer & Commercial Services",Sport & Leisure,Supplies & Services,Provisions,BIKOLD,16/05/2024,406.05
"Communities, Customer & Commercial Services",Sport & Leisure,Supplies & Services,Provisions,BIKOLD,16/05/2024,202.02
"Communities, Customer & Commercial Services",Sport & Leisure,Supplies & Services,Provisions,BIKOLD,16/05/2024,131.86
"Communities, Customer & Commercial Services",Sport & Leisure,Supplies & Services,Provisions,BIKOLD,16/05/2024,147.95
"Communities, Customer & Commercial Services",Sport & Leisure,Supplies & Services,Provisions,BIKOLD,16/05/2024,506.43
"Communities, Customer & Commercial Services",Sport & Leisure,Supplies & Services,Provisions,BIKOLD,16/05/2024,505.43
"Communities, Customer & Commercial Services",Sport & Leisure,Supplies & Services,Provisions,BIKOLD,16/05/2024,543.26
"Communities, Customer & Commercial Services",Sport & Leisure,Supplies & Services,Provisions,BIKOLD,16/05/2024,345.47
"Communities, Customer & Commercial Services",Sport & Leisure,Supplies & Services,Provisions,BIKOLD,16/05/2024,289.74
"Communities, Customer & Commercial Services",Sport & Leisure,Supplies & Services,Provisions,BIKOLD,16/05/2024,124.05
"Communities, Customer & Commercial Services",Sport & Leisure,Supplies & Services,Provisions,BIKOLD,16/05/2024,131.02
"Communities, Customer & Commercial Services",Sport & Leisure,Supplies & Services,Provisions,BIKOLD,16/05/2024,184.34
"Communities, Customer & Commercial Services",Sport & Leisure,Supplies & Services,Provisions,BIKOLD,16/05/2024,602.77
"Communities, Customer & Commercial Services",Sport & Leisure,Supplies & Services,Provisions,BIKOLD,16/05/2024,279.23
"Communities, Customer & Commercial Services",Sport & Leisure,Supplies & Services,Provisions,BIKOLD,16/05/2024,414.59
"Communities, Customer & Commercial Services",Sport & Leisure,Supplies & Services,Provisions,BIKOLD,16/05/2024,136.51
"Communities, Customer & Commercial Services",Sport & Leisure,Supplies & Services,Provisions,BIKOLD,16/05/2024,319.21
"Communities, Customer & Commercial Services",Sport & Leisure,Supplies & Services,Provisions,BIKOLD,16/05/2024,306.93
"Communities, Customer & Commercial Services",Sport & Leisure,Supplies & Services,Provisions,BIKOLD,16/05/2024,132.19
"Communities, Customer & Commercial Services",Sport & Leisure,Supplies & Services,Provisions,BIKOLD,16/05/2024,443.82
"Communities, Customer & Commercial Services",Sport & Leisure,Supplies & Services,Provisions,BIKOLD,16/05/2024,278.77
"Communities, Customer & Commercial Services",Sport & Leisure,Supplies & Services,Provisions,BIKOLD,16/05/2024,242.53
"Communities, Customer & Commercial Services",Sport & Leisure,Supplies & Services,Provisions,BIKOLD,16/05/2024,152.66
"Communities, Customer & Commercial Services",Sport & Leisure,Supplies & Services,Provisions,BIKOLD,16/05/2024,258.15
"Communities, Customer & Commercial Services",Sport & Leisure,Supplies & Services,Provisions,BIKOLD,16/05/2024,264.67
"Communities, Customer & Commercial Services",Sport & Leisure,Supplies & Services,Provisions,BIKOLD,16/05/2024,143.78
"Communities, Customer & Commercial Services",Sport & Leisure,Supplies & Services,Provisions,BIKOLD,16/05/2024,412.74
"Communities, Customer & Commercial Services",Sport & Leisure,Supplies & Services,Provisions,BIKOLD,16/05/2024,285.35
"Communities, Customer & Commercial Services",Sport & Leisure,Supplies & Services,Provisions,BIKOLD,16/05/2024,250.20
"Communities, Customer & Commercial Services",Sport & Leisure,Supplies & Services,Provisions,On A Roll,16/05/2024,214.85
"Communities, Customer & Commercial Services",Sport & Leisure,Supplies & Services,Provisions,ROWLANDS & COMPANY,17/05/2024,106.20
"Communities, Customer & Commercial Services",Sport & Leisure,Supplies & Services,Provisions,ROWLANDS & COMPANY,17/05/2024,114.23
"Communities, Customer & Commercial Services",Sport & Leisure,Supplies & Services,Provisions,ROWLANDS & COMPANY,17/05/2024,141.79
"Communities, Customer & Commercial Services",Sport & Leisure,Supplies & Services,Provisions,ROWLANDS & COMPANY,17/05/2024,102.93
"Communities, Customer & Commercial Services",Sport & Leisure,Supplies & Services,Provisions,ROWLANDS & COMPANY,17/05/2024,140.63
"Communities, Customer & Commercial Services",Sport & Leisure,Supplies & Services,Provisions,ROWLANDS & COMPANY,17/05/2024,188.09
"Communities, Customer & Commercial Services",Sport & Leisure,Supplies & Services,Provisions,ROWLANDS & COMPANY,17/05/2024,170.16
"Communities, Customer & Commercial Services",Sport & Leisure,Supplies & Services,Provisions,ROWLANDS & COMPANY,17/05/2024,130.52
"Communities, Customer & Commercial Services",Sport & Leisure,Supplies & Services,Provisions,ROWLANDS & COMPANY,17/05/2024,117.76
"Communities, Customer & Commercial Services",Sport & Leisure,Supplies & Services,Provisions,ROWLANDS & COMPANY,17/05/2024,133.86
"Communities, Customer & Commercial Services",Sport & Leisure,Supplies & Services,Provisions,ROWLANDS & COMPANY,17/05/2024,212.60
"Communities, Customer & Commercial Services",Sport & Leisure,Supplies & Services,Provisions,ROWLANDS & COMPANY,17/05/2024,140.02
"Communities, Customer & Commercial Services",Sport & Leisure,Supplies & Services,Provisions,ROWLANDS & COMPANY,17/05/2024,163.65
"Communities, Customer & Commercial Services",Sport & Leisure,Supplies & Services,Provisions,ROWLANDS & COMPANY,17/05/2024,139.34
"Communities, Customer & Commercial Services",Sport & Leisure,Supplies & Services,Provisions,ROWLANDS & COMPANY,17/05/2024,291.57
"Communities, Customer & Commercial Services",Sport & Leisure,Supplies & Services,Provisions,ROWLANDS & COMPANY,17/05/2024,138.29
"Communities, Customer & Commercial Services",Sport & Leisure,Supplies & Services,Provisions,ROWLANDS & COMPANY,17/05/2024,147.59
"Communities, Customer & Commercial Services",Sport & Leisure,Supplies & Services,Provisions,ROWLANDS & COMPANY,17/05/2024,121.22
"Communities, Customer & Commercial Services",Sport & Leisure,Supplies & Services,Provisions,ROWLANDS & COMPANY,17/05/2024,106.99
"Communities, Customer & Commercial Services",Sport & Leisure,Supplies & Services,Provisions,ROWLANDS & COMPANY,17/05/2024,129.62
"Communities, Customer & Commercial Services",Sport & Leisure,Supplies & Services,Provisions,PASTA KING (UK) LIMITED,15/05/2024,187.80
"Communities, Customer & Commercial Services",Sport & Leisure,Supplies & Services,Provisions,Border Janitorial Supplies Limited,22/05/2024,-453.40
"Communities, Customer & Commercial Services",Sport & Leisure,Supplies & Services,Provisions,ROWLANDS & COMPANY,28/05/2024,130.24
"Communities, Customer & Commercial Services",Sport & Leisure,Supplies & Services,Provisions,ROWLANDS & COMPANY,28/05/2024,156.78
"Communities, Customer & Commercial Services",Sport & Leisure,Supplies & Services,Provisions,ROWLANDS & COMPANY,28/05/2024,116.18
"Communities, Customer & Commercial Services",Sport & Leisure,Supplies & Services,Provisions,ROWLANDS & COMPANY,28/05/2024,124.83
"Communities, Customer & Commercial Services",Sport & Leisure,Supplies & Services,Provisions,ROWLANDS & COMPANY,28/05/2024,121.83
"Communities, Customer & Commercial Services",Sport & Leisure,Supplies & Services,Provisions,ROWLANDS & COMPANY,28/05/2024,210.72
"Communities, Customer & Commercial Services",Sport & Leisure,Supplies & Services,Provisions,ROWLANDS & COMPANY,28/05/2024,182.46
"Communities, Customer & Commercial Services",Sport & Leisure,Supplies & Services,Provisions,ROWLANDS & COMPANY,28/05/2024,175.18
"Communities, Customer & Commercial Services",Sport & Leisure,Supplies & Services,Provisions,ROWLANDS & COMPANY,28/05/2024,108.78
"Communities, Customer & Commercial Services",Sport & Leisure,Supplies & Services,Provisions,ROWLANDS & COMPANY,28/05/2024,193.00
"Communities, Customer & Commercial Services",Sport & Leisure,Supplies & Services,Provisions,ROWLANDS & COMPANY,28/05/2024,121.30
"Communities, Customer & Commercial Services",Sport & Leisure,Supplies & Services,Provisions,ROWLANDS & COMPANY,28/05/2024,160.58
"Communities, Customer & Commercial Services",Sport & Leisure,Supplies & Services,Provisions,ROWLANDS & COMPANY,28/05/2024,119.29
"Communities, Customer & Commercial Services",Sport & Leisure,Supplies & Services,Provisions,ROWLANDS & COMPANY,28/05/2024,102.03
"Communities, Customer & Commercial Services",Sport & Leisure,Supplies & Services,Provisions,ROWLANDS & COMPANY,28/05/2024,155.30
"Communities, Customer & Commercial Services",Sport & Leisure,Supplies & Services,Provisions,On A Roll,24/05/2024,233.00
"Communities, Customer & Commercial Services",Sport & Leisure,Supplies & Services,Provisions,BIKOLD,23/05/2024,176.38
"Communities, Customer & Commercial Services",Sport & Leisure,Supplies & Services,Provisions,BIKOLD,23/05/2024,122.96
"Communities, Customer & Commercial Services",Sport & Leisure,Supplies & Services,Provisions,BIKOLD,23/05/2024,180.59
"Communities, Customer & Commercial Services",Sport & Leisure,Supplies & Services,Provisions,BIKOLD,23/05/2024,103.49
"Communities, Customer & Commercial Services",Sport & Leisure,Supplies & Services,Provisions,BIKOLD,23/05/2024,159.94
"Communities, Customer & Commercial Services",Sport & Leisure,Supplies & Services,Provisions,BIKOLD,23/05/2024,188.42
"Communities, Customer & Commercial Services",Sport & Leisure,Supplies & Services,Provisions,BIKOLD,23/05/2024,256.14
"Communities, Customer & Commercial Services",Sport & Leisure,Supplies & Services,Provisions,BIKOLD,23/05/2024,219.65
"Communities, Customer & Commercial Services",Sport & Leisure,Supplies & Services,Provisions,BIKOLD,23/05/2024,327.52
"Communities, Customer & Commercial Services",Sport & Leisure,Supplies & Services,Provisions,BIKOLD,23/05/2024,118.93
"Communities, Customer & Commercial Services",Sport & Leisure,Supplies & Services,Provisions,BIKOLD,23/05/2024,618.85
"Communities, Customer & Commercial Services",Sport & Leisure,Supplies & Services,Provisions,BIKOLD,23/05/2024,173.30
"Communities, Customer & Commercial Services",Sport & Leisure,Supplies & Services,Provisions,BIKOLD,23/05/2024,196.56
"Communities, Customer & Commercial Services",Sport & Leisure,Supplies & Services,Provisions,BIKOLD,23/05/2024,681.22
"Communities, Customer & Commercial Services",Sport & Leisure,Supplies & Services,Provisions,BIKOLD,23/05/2024,236.24
"Communities, Customer & Commercial Services",Sport & Leisure,Supplies & Services,Provisions,BIKOLD,23/05/2024,165.19
"Communities, Customer & Commercial Services",Sport & Leisure,Supplies & Services,Provisions,BIKOLD,23/05/2024,112.04
"Communities, Customer & Commercial Services",Sport & Leisure,Supplies & Services,Provisions,BIKOLD,23/05/2024,154.57
"Communities, Customer & Commercial Services",Sport & Leisure,Supplies & Services,Provisions,BIKOLD,23/05/2024,108.35
"Communities, Customer & Commercial Services",Sport & Leisure,Supplies & Services,Provisions,BIKOLD,23/05/2024,119.96
"Communities, Customer & Commercial Services",Sport & Leisure,Supplies & Services,Provisions,BIKOLD,23/05/2024,219.25
"Communities, Customer & Commercial Services",Sport & Leisure,Supplies & Services,Provisions,BIKOLD,23/05/2024,564.83
"Communities, Customer & Commercial Services",Sport & Leisure,Supplies & Services,Provisions,BIKOLD,23/05/2024,140.65
"Communities, Customer & Commercial Services",Sport & Leisure,Supplies & Services,Provisions,BIKOLD,23/05/2024,482.02
"Communities, Customer & Commercial Services",Sport & Leisure,Supplies & Services,Provisions,BIKOLD,23/05/2024,298.69
"Communities, Customer & Commercial Services",Sport & Leisure,Supplies & Services,Provisions,BIKOLD,23/05/2024,207.91
"Communities, Customer & Commercial Services",Sport & Leisure,Supplies & Services,Provisions,BIKOLD,23/05/2024,957.79
"Communities, Customer & Commercial Services",Sport & Leisure,Supplies & Services,Provisions,BIKOLD,23/05/2024,167.38
"Communities, Customer & Commercial Services",Sport & Leisure,Supplies & Services,Provisions,BIKOLD,23/05/2024,231.82
"Communities, Customer & Commercial Services",Sport & Leisure,Supplies & Services,Provisions,BIKOLD,23/05/2024,189.78
"Communities, Customer & Commercial Services",Sport & Leisure,Supplies & Services,Provisions,BIKOLD,23/05/2024,128.47
"Communities, Customer & Commercial Services",Sport & Leisure,Supplies & Services,Provisions,BIKOLD,23/05/2024,238.12
"Communities, Customer & Commercial Services",Sport & Leisure,Supplies & Services,Provisions,BIKOLD,23/05/2024,247.38
"Communities, Customer & Commercial Services",Sport & Leisure,Supplies & Services,Provisions,BIKOLD,23/05/2024,390.70
"Communities, Customer & Commercial Services",Sport & Leisure,Supplies & Services,Provisions,BIKOLD,23/05/2024,133.89
"Communities, Customer & Commercial Services",Sport & Leisure,Supplies & Services,Provisions,BIKOLD,23/05/2024,122.26
"Communities, Customer & Commercial Services",Sport & Leisure,Supplies & Services,Provisions,BIKOLD,23/05/2024,149.94
"Communities, Customer & Commercial Services",Sport & Leisure,Supplies & Services,Provisions,BIKOLD,23/05/2024,132.58
"Communities, Customer & Commercial Services",Sport & Leisure,Supplies & Services,Provisions,BIKOLD,23/05/2024,423.85
"Communities, Customer & Commercial Services",Sport & Leisure,Supplies & Services,Provisions,BIKOLD,23/05/2024,151.38
"Communities, Customer & Commercial Services",Sport & Leisure,Supplies & Services,Provisions,BIKOLD,23/05/2024,331.85
"Communities, Customer & Commercial Services",Sport & Leisure,Supplies & Services,Provisions,BIKOLD,23/05/2024,366.06
"Communities, Customer & Commercial Services",Sport & Leisure,Supplies & Services,Provisions,BIKOLD,23/05/2024,275.71
"Communities, Customer & Commercial Services",Sport & Leisure,Supplies & Services,Provisions,BIKOLD,23/05/2024,324.34
"Communities, Customer & Commercial Services",Sport & Leisure,Supplies & Services,Provisions,BIKOLD,23/05/2024,233.73
"Communities, Customer & Commercial Services",Sport & Leisure,Supplies & Services,Provisions,BIKOLD,23/05/2024,208.95
"Communities, Customer & Commercial Services",Sport & Leisure,Supplies & Services,Provisions,BIKOLD,23/05/2024,258.32
"Communities, Customer & Commercial Services",Sport & Leisure,Supplies & Services,Provisions,BIKOLD,23/05/2024,311.05
"Communities, Customer & Commercial Services",Sport & Leisure,Supplies & Services,Provisions,BIKOLD,23/05/2024,175.95
"Communities, Customer & Commercial Services",Sport & Leisure,Supplies & Services,Provisions,BIKOLD,23/05/2024,266.62
"Communities, Customer & Commercial Services",Sport & Leisure,Supplies & Services,Provisions,BIKOLD,23/05/2024,924.40
"Communities, Customer & Commercial Services",Sport & Leisure,Supplies & Services,Provisions,BIKOLD,23/05/2024,182.03
"Communities, Customer & Commercial Services",Sport & Leisure,Supplies & Services,Provisions,BIKOLD,23/05/2024,113.05
"Communities, Customer & Commercial Services",Sport & Leisure,Supplies & Services,Provisions,BIKOLD,23/05/2024,115.53
"Communities, Customer & Commercial Services",Sport & Leisure,Supplies & Services,Provisions,BIKOLD,23/05/2024,456.38
"Communities, Customer & Commercial Services",Sport & Leisure,Supplies & Services,Provisions,BIKOLD,23/05/2024,678.69
"Communities, Customer & Commercial Services",Sport & Leisure,Supplies & Services,Provisions,BIKOLD,23/05/2024,228.64
"Communities, Customer & Commercial Services",Sport & Leisure,Supplies & Services,Provisions,BIKOLD,23/05/2024,251.57
"Communities, Customer & Commercial Services",Sport & Leisure,Supplies & Services,Provisions,BIKOLD,23/05/2024,131.57
"Communities, Customer & Commercial Services",Sport & Leisure,Supplies & Services,Provisions,BIKOLD,23/05/2024,591.06
"Communities, Customer & Commercial Services",Sport & Leisure,Supplies & Services,Provisions,BIKOLD,23/05/2024,376.81
"Communities, Customer & Commercial Services",Sport & Leisure,Supplies & Services,Provisions,BIKOLD,23/05/2024,414.06
"Communities, Customer & Commercial Services",Sport & Leisure,Supplies & Services,Provisions,BIKOLD,23/05/2024,301.88
"Communities, Customer & Commercial Services",Sport & Leisure,Supplies & Services,Provisions,BIKOLD,23/05/2024,194.26
"Communities, Customer & Commercial Services",Sport & Leisure,Supplies & Services,Provisions,BIKOLD,23/05/2024,268.25
"Communities, Customer & Commercial Services",Sport & Leisure,Supplies & Services,Provisions,BIKOLD,23/05/2024,220.17
"Communities, Customer & Commercial Services",Sport & Leisure,Supplies & Services,Provisions,BIKOLD,23/05/2024,180.12
"Communities, Customer & Commercial Services",Sport & Leisure,Supplies & Services,Provisions,BIKOLD,23/05/2024,120.01
"Communities, Customer & Commercial Services",Sport & Leisure,Supplies & Services,Provisions,BIKOLD,23/05/2024,294.07
"Communities, Customer & Commercial Services",Sport & Leisure,Supplies & Services,Provisions,BIKOLD,23/05/2024,163.18
"Communities, Customer & Commercial Services",Sport & Leisure,Supplies & Services,Provisions,BIKOLD,23/05/2024,380.45
"Communities, Customer & Commercial Services",Sport & Leisure,Supplies & Services,Provisions,BIKOLD,23/05/2024,354.34
"Communities, Customer & Commercial Services",Sport & Leisure,Supplies & Services,Provisions,BIKOLD,23/05/2024,384.63
"Communities, Customer & Commercial Services",Sport & Leisure,Supplies & Services,Provisions,BIKOLD,23/05/2024,282.28
"Communities, Customer & Commercial Services",Sport & Leisure,Supplies & Services,Provisions,BIKOLD,23/05/2024,359.88
"Communities, Customer & Commercial Services",Sport & Leisure,Supplies & Services,Provisions,BIKOLD,23/05/2024,373.87
"Communities, Customer & Commercial Services",Sport & Leisure,Supplies & Services,Provisions,BIKOLD,23/05/2024,378.32
"Communities, Customer & Commercial Services",Sport & Leisure,Supplies & Services,Provisions,BIKOLD,23/05/2024,217.68
"Communities, Customer & Commercial Services",Sport & Leisure,Supplies & Services,Provisions,BIKOLD,23/05/2024,127.01
"Communities, Customer & Commercial Services",Sport & Leisure,Supplies & Services,Provisions,BIKOLD,23/05/2024,145.79
"Communities, Customer & Commercial Services",Sport & Leisure,Supplies & Services,Provisions,BIKOLD,23/05/2024,161.79
"Communities, Customer & Commercial Services",Sport & Leisure,Supplies & Services,Provisions,BIKOLD,23/05/2024,268.36
"Communities, Customer & Commercial Services",Sport & Leisure,Supplies & Services,Provisions,BIKOLD,23/05/2024,119.79
"Communities, Customer & Commercial Services",Sport & Leisure,Supplies & Services,Provisions,BIKOLD,23/05/2024,118.51
"Communities, Customer & Commercial Services",Sport & Leisure,Supplies & Services,Provisions,BIKOLD,23/05/2024,433.84
"Communities, Customer & Commercial Services",Sport & Leisure,Supplies & Services,Provisions,BIKOLD,23/05/2024,486.14
"Communities, Customer & Commercial Services",Sport & Leisure,Supplies & Services,Provisions,BIKOLD,23/05/2024,356.03
"Communities, Customer & Commercial Services",Sport & Leisure,Supplies & Services,Provisions,BIKOLD,23/05/2024,113.54
"Communities, Customer & Commercial Services",Sport & Leisure,Supplies & Services,Provisions,BIKOLD,23/05/2024,206.29
"Communities, Customer & Commercial Services",Sport & Leisure,Supplies & Services,Provisions,BIKOLD,23/05/2024,160.74
"Communities, Customer & Commercial Services",Sport & Leisure,Supplies & Services,Provisions,BIKOLD,23/05/2024,464.54
"Communities, Customer & Commercial Services",Sport & Leisure,Supplies & Services,Provisions,BIKOLD,23/05/2024,266.71
"Communities, Customer & Commercial Services",Sport & Leisure,Supplies & Services,Provisions,BIKOLD,23/05/2024,236.70
"Communities, Customer & Commercial Services",Sport & Leisure,Supplies & Services,Provisions,BIKOLD,23/05/2024,187.72
"Communities, Customer & Commercial Services",Sport & Leisure,Supplies & Services,Provisions,BIKOLD,23/05/2024,112.51
"Communities, Customer & Commercial Services",Sport & Leisure,Supplies & Services,Provisions,BIKOLD,23/05/2024,124.26
"Communities, Customer & Commercial Services",Sport & Leisure,Supplies & Services,Provisions,BIKOLD,23/05/2024,120.95
"Communities, Customer & Commercial Services",Sport & Leisure,Supplies & Services,Provisions,BIKOLD,23/05/2024,182.90
"Communities, Customer & Commercial Services",Sport & Leisure,Supplies & Services,Provisions,BIKOLD,23/05/2024,139.92
"Communities, Customer & Commercial Services",Sport & Leisure,Supplies & Services,Provisions,BIKOLD,23/05/2024,138.56
"Communities, Customer & Commercial Services",Sport & Leisure,Supplies & Services,Provisions,BIKOLD,23/05/2024,322.05
"Communities, Customer & Commercial Services",Sport & Leisure,Supplies & Services,Provisions,BIKOLD,23/05/2024,124.32
"Communities, Customer & Commercial Services",Sport & Leisure,Supplies & Services,Provisions,BIKOLD,23/05/2024,407.75
"Communities, Customer & Commercial Services",Sport & Leisure,Supplies & Services,Provisions,BIKOLD,23/05/2024,407.50
"Communities, Customer & Commercial Services",Sport & Leisure,Supplies & Services,Provisions,BIKOLD,23/05/2024,256.53
"Communities, Customer & Commercial Services",Sport & Leisure,Supplies & Services,Provisions,BIKOLD,23/05/2024,308.23
"Communities, Customer & Commercial Services",Sport & Leisure,Supplies & Services,Provisions,BIKOLD,23/05/2024,137.07
"Communities, Customer & Commercial Services",Sport & Leisure,Supplies & Services,Provisions,BIKOLD,23/05/2024,271.04
"Communities, Customer & Commercial Services",Sport & Leisure,Supplies & Services,Provisions,BIKOLD,23/05/2024,305.46
"Communities, Customer & Commercial Services",Sport & Leisure,Supplies & Services,Provisions,BIKOLD,23/05/2024,239.08
"Communities, Customer & Commercial Services",Sport & Leisure,Supplies & Services,Provisions,BIKOLD,23/05/2024,107.01
"Communities, Customer & Commercial Services",Sport & Leisure,Supplies & Services,Provisions,BIKOLD,23/05/2024,457.32
"Communities, Customer & Commercial Services",Sport & Leisure,Supplies & Services,Provisions,BIKOLD,23/05/2024,385.23
"Communities, Customer & Commercial Services",Sport & Leisure,Supplies & Services,Provisions,BIKOLD,23/05/2024,117.02
"Communities, Customer & Commercial Services",Sport & Leisure,Supplies & Services,Provisions,BIKOLD,23/05/2024,116.24
"Communities, Customer & Commercial Services",Sport & Leisure,Supplies & Services,Provisions,J S Catering Butchers,29/05/2024,109.60
"Communities, Customer & Commercial Services",Sport & Leisure,Supplies & Services,Provisions,J S Catering Butchers,29/05/2024,184.38
"Communities, Customer & Commercial Services",Sport & Leisure,Supplies & Services,Provisions,J S Catering Butchers,29/05/2024,124.00
"Communities, Customer & Commercial Services",Sport & Leisure,Supplies & Services,Provisions,J S Catering Butchers,29/05/2024,138.58
"Communities, Customer & Commercial Services",Sport & Leisure,Supplies & Services,Provisions,J S Catering Butchers,29/05/2024,112.80
"Communities, Customer & Commercial Services",Sport & Leisure,Supplies & Services,Provisions,J S Catering Butchers,29/05/2024,115.50
"Communities, Customer & Commercial Services",Sport & Leisure,Supplies & Services,Provisions,J S Catering Butchers,29/05/2024,228.80
"Communities, Customer & Commercial Services",Sport & Leisure,Supplies & Services,Provisions,J S Catering Butchers,29/05/2024,104.16
"Communities, Customer & Commercial Services",Sport & Leisure,Supplies & Services,Provisions,ROWLANDS & COMPANY,28/05/2024,106.90
"Communities, Customer & Commercial Services",Sport & Leisure,Supplies & Services,Provisions,ROWLANDS & COMPANY,28/05/2024,177.01
"Communities, Customer & Commercial Services",Sport & Leisure,Supplies & Services,Provisions,ROWLANDS & COMPANY,28/05/2024,137.69
"Communities, Customer & Commercial Services",Sport & Leisure,Supplies & Services,Provisions,BIKOLD,30/05/2024,132.33
"Communities, Customer & Commercial Services",Sport & Leisure,Premises-Related Expenditure,Clean Mats & Toilet Requisites,Border Janitorial Supplies Limited,03/05/2024,113.88
"Communities, Customer & Commercial Services",Sport & Leisure,Premises-Related Expenditure,Clean Mats & Toilet Requisites,Border Janitorial Supplies Limited,20/05/2024,170.66
"Communities, Customer & Commercial Services",Sport & Leisure,Supplies & Services,Crockery/Hardware/Light Equip,Vegware,15/05/2024,295.40
"Communities, Customer & Commercial Services",Sport & Leisure,Supplies & Services,Provisions,J S Catering Butchers,14/05/2024,103.28
"Communities, Customer & Commercial Services",Sport & Leisure,Supplies & Services,Provisions,BIKOLD,02/05/2024,"1,333.87"
"Communities, Customer & Commercial Services",Sport & Leisure,Supplies & Services,Provisions,BIKOLD,02/05/2024,378.03
"Communities, Customer & Commercial Services",Sport & Leisure,Supplies & Services,Provisions,BIKOLD,02/05/2024,292.02
"Communities, Customer & Commercial Services",Sport & Leisure,Supplies & Services,Provisions,BIKOLD,02/05/2024,128.21
"Communities, Customer & Commercial Services",Sport & Leisure,Supplies & Services,Provisions,BIKOLD,02/05/2024,291.28
"Communities, Customer & Commercial Services",Sport & Leisure,Supplies & Services,Provisions,BIKOLD,02/05/2024,"1,179.82"
"Communities, Customer & Commercial Services",Sport & Leisure,Supplies & Services,Provisions,BIKOLD,02/05/2024,259.54
"Communities, Customer & Commercial Services",Sport & Leisure,Supplies & Services,Provisions,BIKOLD,02/05/2024,215.30
"Communities, Customer & Commercial Services",Sport & Leisure,Supplies & Services,Provisions,BIKOLD,02/05/2024,618.91
"Communities, Customer & Commercial Services",Sport & Leisure,Supplies & Services,Provisions,BIKOLD,02/05/2024,168.27
"Communities, Customer & Commercial Services",Sport & Leisure,Supplies & Services,Provisions,BIKOLD,02/05/2024,324.89
"Communities, Customer & Commercial Services",Sport & Leisure,Supplies & Services,Provisions,BIKOLD,02/05/2024,254.24
"Communities, Customer & Commercial Services",Sport & Leisure,Supplies & Services,Provisions,BIKOLD,02/05/2024,332.64
"Communities, Customer & Commercial Services",Sport & Leisure,Supplies & Services,Provisions,BIKOLD,02/05/2024,585.20
"Communities, Customer & Commercial Services",Sport & Leisure,Supplies & Services,Provisions,BIKOLD,02/05/2024,599.45
"Communities, Customer & Commercial Services",Sport & Leisure,Supplies & Services,Provisions,BIKOLD,02/05/2024,757.69
"Communities, Customer & Commercial Services",Sport & Leisure,Supplies & Services,Provisions,BIKOLD,02/05/2024,"1,294.12"
"Communities, Customer & Commercial Services",Sport & Leisure,Supplies & Services,Provisions,BIKOLD,02/05/2024,540.10
"Communities, Customer & Commercial Services",Sport & Leisure,Supplies & Services,Provisions,BIKOLD,02/05/2024,127.16
"Communities, Customer & Commercial Services",Sport & Leisure,Supplies & Services,Provisions,BIKOLD,02/05/2024,328.20
"Communities, Customer & Commercial Services",Sport & Leisure,Supplies & Services,Provisions,BIKOLD,02/05/2024,622.21
"Communities, Customer & Commercial Services",Sport & Leisure,Supplies & Services,Provisions,J S Catering Butchers,07/05/2024,127.20
"Communities, Customer & Commercial Services",Sport & Leisure,Supplies & Services,Provisions,J S Catering Butchers,07/05/2024,115.60
"Communities, Customer & Commercial Services",Sport & Leisure,Supplies & Services,Provisions,On A Roll,09/05/2024,109.61
"Communities, Customer & Commercial Services",Sport & Leisure,Supplies & Services,Provisions,On A Roll,09/05/2024,397.96
"Communities, Customer & Commercial Services",Sport & Leisure,Supplies & Services,Provisions,BIKOLD,09/05/2024,566.74
"Communities, Customer & Commercial Services",Sport & Leisure,Supplies & Services,Provisions,BIKOLD,09/05/2024,"1,542.54"
"Communities, Customer & Commercial Services",Sport & Leisure,Supplies & Services,Provisions,BIKOLD,09/05/2024,512.71
"Communities, Customer & Commercial Services",Sport & Leisure,Supplies & Services,Provisions,BIKOLD,09/05/2024,183.25
"Communities, Customer & Commercial Services",Sport & Leisure,Supplies & Services,Provisions,BIKOLD,09/05/2024,229.35
"Communities, Customer & Commercial Services",Sport & Leisure,Supplies & Services,Provisions,BIKOLD,09/05/2024,659.59
"Communities, Customer & Commercial Services",Sport & Leisure,Supplies & Services,Provisions,BIKOLD,09/05/2024,169.11
"Communities, Customer & Commercial Services",Sport & Leisure,Supplies & Services,Provisions,BIKOLD,09/05/2024,180.11
"Communities, Customer & Commercial Services",Sport & Leisure,Supplies & Services,Provisions,BIKOLD,09/05/2024,178.61
"Communities, Customer & Commercial Services",Sport & Leisure,Supplies & Services,Provisions,BIKOLD,09/05/2024,352.12
"Communities, Customer & Commercial Services",Sport & Leisure,Supplies & Services,Provisions,ROWLANDS & COMPANY,08/05/2024,202.13
"Communities, Customer & Commercial Services",Sport & Leisure,Supplies & Services,Provisions,PASTA KING (UK) LIMITED,08/05/2024,910.12
"Communities, Customer & Commercial Services",Sport & Leisure,Supplies & Services,Provisions,PASTA KING (UK) LIMITED,08/05/2024,445.40
"Communities, Customer & Commercial Services",Sport & Leisure,Supplies & Services,Provisions,ROWLANDS & COMPANY,10/05/2024,236.57
"Communities, Customer & Commercial Services",Sport & Leisure,Supplies & Services,Provisions,J S Catering Butchers,20/05/2024,127.21
"Communities, Customer & Commercial Services",Sport & Leisure,Supplies & Services,Provisions,BIKOLD,16/05/2024,198.72
"Communities, Customer & Commercial Services",Sport & Leisure,Supplies & Services,Provisions,BIKOLD,16/05/2024,164.40
"Communities, Customer & Commercial Services",Sport & Leisure,Supplies & Services,Provisions,BIKOLD,16/05/2024,431.00
"Communities, Customer & Commercial Services",Sport & Leisure,Supplies & Services,Provisions,BIKOLD,16/05/2024,812.64
"Communities, Customer & Commercial Services",Sport & Leisure,Supplies & Services,Provisions,BIKOLD,16/05/2024,769.33
"Communities, Customer & Commercial Services",Sport & Leisure,Supplies & Services,Provisions,BIKOLD,16/05/2024,789.68
"Communities, Customer & Commercial Services",Sport & Leisure,Supplies & Services,Provisions,BIKOLD,16/05/2024,153.94
"Communities, Customer & Commercial Services",Sport & Leisure,Supplies & Services,Provisions,BIKOLD,16/05/2024,348.74
"Communities, Customer & Commercial Services",Sport & Leisure,Supplies & Services,Provisions,BIKOLD,16/05/2024,225.05
"Communities, Customer & Commercial Services",Sport & Leisure,Supplies & Services,Provisions,BIKOLD,16/05/2024,653.96
"Communities, Customer & Commercial Services",Sport & Leisure,Supplies & Services,Provisions,BIKOLD,16/05/2024,832.30
"Communities, Customer & Commercial Services",Sport & Leisure,Supplies & Services,Provisions,BIKOLD,16/05/2024,196.87
"Communities, Customer & Commercial Services",Sport & Leisure,Supplies & Services,Provisions,BIKOLD,16/05/2024,484.47
"Communities, Customer & Commercial Services",Sport & Leisure,Supplies & Services,Provisions,BIKOLD,16/05/2024,523.00
"Communities, Customer & Commercial Services",Sport & Leisure,Supplies & Services,Provisions,BIKOLD,16/05/2024,118.00
"Communities, Customer & Commercial Services",Sport & Leisure,Supplies & Services,Provisions,BIKOLD,16/05/2024,331.26
"Communities, Customer & Commercial Services",Sport & Leisure,Supplies & Services,Provisions,BIKOLD,16/05/2024,649.74
"Communities, Customer & Commercial Services",Sport & Leisure,Supplies & Services,Provisions,BIKOLD,16/05/2024,442.95
"Communities, Customer & Commercial Services",Sport & Leisure,Supplies & Services,Provisions,BIKOLD,16/05/2024,"1,616.47"
"Communities, Customer & Commercial Services",Sport & Leisure,Supplies & Services,Provisions,BIKOLD,16/05/2024,322.61
"Communities, Customer & Commercial Services",Sport & Leisure,Supplies & Services,Provisions,BIKOLD,16/05/2024,250.18
"Communities, Customer & Commercial Services",Sport & Leisure,Supplies & Services,Provisions,BIKOLD,16/05/2024,188.24
"Communities, Customer & Commercial Services",Sport & Leisure,Supplies & Services,Provisions,BIKOLD,16/05/2024,130.70
"Communities, Customer & Commercial Services",Sport & Leisure,Supplies & Services,Provisions,BIKOLD,16/05/2024,544.27
"Communities, Customer & Commercial Services",Sport & Leisure,Supplies & Services,Provisions,On A Roll,16/05/2024,182.54
"Communities, Customer & Commercial Services",Sport & Leisure,Supplies & Services,Provisions,On A Roll,16/05/2024,109.61
"Communities, Customer & Commercial Services",Sport & Leisure,Supplies & Services,Provisions,On A Roll,16/05/2024,175.08
"Communities, Customer & Commercial Services",Sport & Leisure,Supplies & Services,Provisions,THEOS FOOD SERVICE LTD,16/05/2024,"1,058.40"
"Communities, Customer & Commercial Services",Sport & Leisure,Supplies & Services,Provisions,Delice de France,16/05/2024,371.67
"Communities, Customer & Commercial Services",Sport & Leisure,Supplies & Services,Provisions,ROWLANDS & COMPANY,17/05/2024,236.51
"Communities, Customer & Commercial Services",Sport & Leisure,Supplies & Services,Provisions,THEOS FOOD SERVICE LTD,15/05/2024,141.30
"Communities, Customer & Commercial Services",Sport & Leisure,Supplies & Services,Provisions,PASTA KING (UK) LIMITED,22/05/2024,300.48
"Communities, Customer & Commercial Services",Sport & Leisure,Supplies & Services,Provisions,THEOS FOOD SERVICE LTD,22/05/2024,141.30
"Communities, Customer & Commercial Services",Sport & Leisure,Supplies & Services,Provisions,THEOS FOOD SERVICE LTD,22/05/2024,"1,145.30"
"Communities, Customer & Commercial Services",Sport & Leisure,Supplies & Services,Provisions,On A Roll,24/05/2024,142.51
"Communities, Customer & Commercial Services",Sport & Leisure,Supplies & Services,Provisions,On A Roll,24/05/2024,175.08
"Communities, Customer & Commercial Services",Sport & Leisure,Supplies & Services,Provisions,BIKOLD,23/05/2024,131.77
"Communities, Customer & Commercial Services",Sport & Leisure,Supplies & Services,Provisions,BIKOLD,23/05/2024,-136.40
"Communities, Customer & Commercial Services",Sport & Leisure,Supplies & Services,Provisions,BIKOLD,23/05/2024,288.67
"Communities, Customer & Commercial Services",Sport & Leisure,Supplies & Services,Provisions,BIKOLD,23/05/2024,222.60
"Communities, Customer & Commercial Services",Sport & Leisure,Supplies & Services,Provisions,BIKOLD,23/05/2024,398.19
"Communities, Customer & Commercial Services",Sport & Leisure,Supplies & Services,Provisions,BIKOLD,23/05/2024,330.17
"Communities, Customer & Commercial Services",Sport & Leisure,Supplies & Services,Provisions,BIKOLD,23/05/2024,652.60
"Communities, Customer & Commercial Services",Sport & Leisure,Supplies & Services,Provisions,BIKOLD,23/05/2024,450.28
"Communities, Customer & Commercial Services",Sport & Leisure,Supplies & Services,Provisions,BIKOLD,23/05/2024,693.49
"Communities, Customer & Commercial Services",Sport & Leisure,Supplies & Services,Provisions,BIKOLD,23/05/2024,204.60
"Communities, Customer & Commercial Services",Sport & Leisure,Supplies & Services,Provisions,BIKOLD,23/05/2024,184.43
"Communities, Customer & Commercial Services",Sport & Leisure,Supplies & Services,Provisions,BIKOLD,23/05/2024,552.58
"Communities, Customer & Commercial Services",Sport & Leisure,Supplies & Services,Provisions,BIKOLD,23/05/2024,230.76
"Communities, Customer & Commercial Services",Sport & Leisure,Supplies & Services,Provisions,BIKOLD,23/05/2024,181.18
"Communities, Customer & Commercial Services",Sport & Leisure,Supplies & Services,Provisions,BIKOLD,23/05/2024,345.24
"Communities, Customer & Commercial Services",Sport & Leisure,Supplies & Services,Provisions,BIKOLD,23/05/2024,146.81
"Communities, Customer & Commercial Services",Sport & Leisure,Supplies & Services,Provisions,BIKOLD,23/05/2024,849.03
"Communities, Customer & Commercial Services",Sport & Leisure,Supplies & Services,Provisions,BIKOLD,23/05/2024,311.08
"Communities, Customer & Commercial Services",Sport & Leisure,Supplies & Services,Provisions,BIKOLD,23/05/2024,380.30
"Communities, Customer & Commercial Services",Sport & Leisure,Supplies & Services,Provisions,BIKOLD,23/05/2024,348.58
"Communities, Customer & Commercial Services",Sport & Leisure,Supplies & Services,Provisions,BIKOLD,02/05/2024,440.00
"Communities, Customer & Commercial Services",Sport & Leisure,Supplies & Services,Provisions,BIKOLD,02/05/2024,201.92
"Communities, Customer & Commercial Services",Sport & Leisure,Supplies & Services,Provisions,BIKOLD,09/05/2024,278.15
"Communities, Customer & Commercial Services",Sport & Leisure,Supplies & Services,Provisions,BIKOLD,16/05/2024,160.71
"Communities, Customer & Commercial Services",Sport & Leisure,Supplies & Services,Provisions,BIKOLD,23/05/2024,194.97
"Communities, Customer & Commercial Services",Sport & Leisure,Supplies & Services,Provisions,BIKOLD,30/05/2024,102.36
"Communities, Customer & Commercial Services",Sport & Leisure,Supplies & Services,Provisions,BIKOLD,02/05/2024,418.23
"Communities, Customer & Commercial Services",Sport & Leisure,Supplies & Services,Provisions,BIKOLD,02/05/2024,408.26
"Communities, Customer & Commercial Services",Sport & Leisure,Supplies & Services,Provisions,BIKOLD,09/05/2024,106.80
"Communities, Customer & Commercial Services",Sport & Leisure,Supplies & Services,Provisions,BIKOLD,09/05/2024,180.07
"Communities, Customer & Commercial Services",Sport & Leisure,Supplies & Services,Provisions,BIKOLD,09/05/2024,150.84
"Communities, Customer & Commercial Services",Sport & Leisure,Supplies & Services,Provisions,BIKOLD,09/05/2024,157.60
"Communities, Customer & Commercial Services",Sport & Leisure,Supplies & Services,Provisions,BIKOLD,16/05/2024,371.42
"Communities, Customer & Commercial Services",Sport & Leisure,Supplies & Services,Provisions,BIKOLD,16/05/2024,126.30
"Communities, Customer & Commercial Services",Sport & Leisure,Supplies & Services,Provisions,BIKOLD,16/05/2024,130.99
"Communities, Customer & Commercial Services",Sport & Leisure,Supplies & Services,Provisions,BIKOLD,16/05/2024,332.78
"Communities, Customer & Commercial Services",Sport & Leisure,Supplies & Services,Provisions,BIKOLD,16/05/2024,249.45
"Communities, Customer & Commercial Services",Sport & Leisure,Supplies & Services,Provisions,BIKOLD,23/05/2024,230.47
"Communities, Customer & Commercial Services",Sport & Leisure,Supplies & Services,Provisions,BIKOLD,23/05/2024,369.50
"Communities, Customer & Commercial Services",Sport & Leisure,Supplies & Services,Provisions,BIKOLD,30/05/2024,265.00
"Communities, Customer & Commercial Services",Sport & Leisure,Supplies & Services,Provisions,BIKOLD,30/05/2024,160.07
"Communities, Customer & Commercial Services",Sport & Leisure,Supplies & Services,Provisions,BIKOLD,30/05/2024,103.22
"Communities, Customer & Commercial Services",Sport & Leisure,Supplies & Services,Concessionary Travel,THAMES CARD TECHNOLOGY LTD,22/05/2024,"1,045.75"
"Communities, Customer & Commercial Services",Sport & Leisure,Supplies & Services,Equipment - Purchase,Gladstone MRM Ltd,17/05/2024,"21,530.88"
"Communities, Customer & Commercial Services",Sport & Leisure,Employees,Staff Training,INSTITUTE OF SWIMMING ,14/05/2024,319.00
"Communities, Customer & Commercial Services",Sport & Leisure,Supplies & Services,Equipment - Hire,SLIDERS SKATE SHOP,24/05/2024,300.00
"Communities, Customer & Commercial Services",Sport & Leisure,Supplies & Services,Equipment - Hire,SLIDERS SKATE SHOP,24/05/2024,300.00
"Communities, Customer & Commercial Services",Sport & Leisure,Supplies & Services,Ski Slope Equipment,Skitech  Systems Ltd,13/05/2024,"17,700.00"
"Communities, Customer & Commercial Services",Sport & Leisure,Supplies & Services,Ski Slope Equipment,Skitech  Systems Ltd,13/05/2024,300.00
"Communities, Customer & Commercial Services",Sport & Leisure,Supplies & Services,Ski Slope Equipment,Skitech  Systems Ltd,13/05/2024,560.00
"Communities, Customer & Commercial Services",Sport & Leisure,Supplies & Services,Ski Slope Equipment,Skitech  Systems Ltd,13/05/2024,600.00
"Communities, Customer & Commercial Services",Sport & Leisure,Supplies & Services,Ski Slope Equipment,Skitech  Systems Ltd,13/05/2024,210.00
"Communities, Customer & Commercial Services",Sport & Leisure,Supplies & Services,Ski Slope Equipment,Skitech  Systems Ltd,13/05/2024,550.00
"Communities, Customer & Commercial Services",Sport & Leisure,Supplies & Services,Provisions,BIKOLD,29/05/2024,157.89
"Communities, Customer & Commercial Services",Sport & Leisure,Employees,Staff Training,INSTITUTE OF SWIMMING ,14/05/2024,399.00
"Communities, Customer & Commercial Services",Sport & Leisure,Employees,Staff Training,INSTITUTE OF SWIMMING ,14/05/2024,399.00
"Communities, Customer & Commercial Services",Sport & Leisure,Employees,Staff Training,INSTITUTE OF SWIMMING ,14/05/2024,399.00
"Communities, Customer & Commercial Services",Sport & Leisure,Supplies & Services,Equipment - Purchase,RLSS UK Enterprises Ltd,10/05/2024,109.80
"Communities, Customer & Commercial Services",Sport & Leisure,Supplies & Services,Chemicals/Cleaning Products,BRENNTAG UK LIMITED,07/05/2024,814.00
"Communities, Customer & Commercial Services",Sport & Leisure,Supplies & Services,Carriage/Delivery Charge,BRENNTAG UK LIMITED,07/05/2024,103.00
"Communities, Customer & Commercial Services",Sport & Leisure,Supplies & Services,Items For Resale,Splash About International Limited,30/05/2024,454.51
"Communities, Customer & Commercial Services",Sport & Leisure,Premises-Related Expenditure,Swimming Pool Chemicals,BRENNTAG UK LIMITED,22/05/2024,"1,032.00"
"Communities, Customer & Commercial Services",Sport & Leisure,Supplies & Services,Carriage/Delivery Charge,BRENNTAG UK LIMITED,22/05/2024,103.00
"Communities, Customer & Commercial Services",Sport & Leisure,Supplies & Services,First Aid,J P LENNARD LTD,14/05/2024,124.41
"Communities, Customer & Commercial Services",Sport & Leisure,Supplies & Services,Licences,Les Mills Fitness UK Ltd,10/05/2024,"1,097.25"
"Communities, Customer & Commercial Services",Sport & Leisure,Premises-Related Expenditure,R&M - Mechanical,Culligan (UK) LTD,20/05/2024,117.72
"Communities, Customer & Commercial Services",Sport & Leisure,Supplies & Services,Materials,RLSS UK Enterprises Ltd,15/05/2024,329.40
"Communities, Customer & Commercial Services",Sport & Leisure,Supplies & Services,Equipment - Purchase,J P LENNARD LTD,10/05/2024,328.70
"Communities, Customer & Commercial Services",Sport & Leisure,Supplies & Services,Equipment - Purchase,SIGNS EXPRESS (TELFORD),21/05/2024,192.00
"Communities, Customer & Commercial Services",Sport & Leisure,Premises-Related Expenditure,R&M WC Planned,Agrovista UK LTD,07/05/2024,626.76
"Communities, Customer & Commercial Services",Sport & Leisure,Transport-Related Expenditure,Fuel,Certas,21/05/2024,808.13
"Communities, Customer & Commercial Services",Sport & Leisure,Employees,Staff Training,INSTITUTE OF SWIMMING ,15/05/2024,798.00
"Communities, Customer & Commercial Services",Sport & Leisure,Supplies & Services,Equipment - Purchase,J P LENNARD LTD,15/05/2024,137.90
"Communities, Customer & Commercial Services",Sport & Leisure,Supplies & Services,Sport Equip - Purchase,J P LENNARD LTD,24/05/2024,146.30
"Communities, Customer & Commercial Services",Sport & Leisure,Supplies & Services,Items For Resale,Splash About International Limited,21/05/2024,"3,471.82"
"Communities, Customer & Commercial Services",Sport & Leisure,Supplies & Services,Items For Resale,Splash About International Limited,24/05/2024,418.00
"Communities, Customer & Commercial Services",Sport & Leisure,Supplies & Services,Chemicals/Cleaning Products,BRENNTAG UK LIMITED,24/05/2024,"2,580.00"
"Communities, Customer & Commercial Services",Sport & Leisure,Supplies & Services,Payment Of Income Collected,ABRAHAM DARBY ACADEMY ,02/05/2024,"5,140.23"
"Communities, Customer & Commercial Services",Sport & Leisure,Supplies & Services,Payment Of Income Collected,ABRAHAM DARBY ACADEMY ,02/05/2024,"7,091.61"
"Communities, Customer & Commercial Services",Sport & Leisure,Supplies & Services,Licences,Culligan (UK) LTD,02/05/2024,"2,171.76"
"Communities, Customer & Commercial Services",Sport & Leisure,Supplies & Services,Licences,Les Mills Fitness UK Ltd,09/05/2024,"1,097.25"
"Communities, Customer & Commercial Services",Sport & Leisure,Supplies & Services,Equipment - Purchase,J P LENNARD LTD,07/05/2024,282.30
"Communities, Customer & Commercial Services",Sport & Leisure,Supplies & Services,Equipment - Purchase,J P LENNARD LTD,04/05/2024,148.15
"Communities, Customer & Commercial Services",Sport & Leisure,Supplies & Services,Chemicals/Cleaning Products,Border Janitorial Supplies Limited,20/05/2024,280.19
"Communities, Customer & Commercial Services",Sport & Leisure,Supplies & Services,Licences,Les Mills Fitness UK Ltd,09/05/2024,682.50
"Communities, Customer & Commercial Services",Sport & Leisure,Supplies & Services,Equipment - Purchase,Hutchison Technologies Ltd.,13/05/2024,200.00
"Communities, Customer & Commercial Services",Sport & Leisure,Employees,Staff Training,INSTITUTE OF SWIMMING ,24/05/2024,399.00
"Communities, Customer & Commercial Services",Sport & Leisure,Employees,Staff Training,INSTITUTE OF SWIMMING ,24/05/2024,399.00
"Communities, Customer & Commercial Services",Sport & Leisure,Employees,Staff Training,INSTITUTE OF SWIMMING ,24/05/2024,399.00
"Communities, Customer & Commercial Services",Sport & Leisure,Employees,Staff Training,INSTITUTE OF SWIMMING ,24/05/2024,399.00
"Communities, Customer & Commercial Services",Sport & Leisure,Supplies & Services,Equipment - Purchase,J P LENNARD LTD,07/05/2024,106.20
"Communities, Customer & Commercial Services",Sport & Leisure,Supplies & Services,Stationery,LOCSAFE SECURITY SYSTEMS,29/05/2024,347.00
"Communities, Customer & Commercial Services",Sport & Leisure,Premises-Related Expenditure,R&M - Mechanical,Life Fitness UK Ltd,02/05/2024,203.00
"Communities, Customer & Commercial Services",Sport & Leisure,Supplies & Services,Sport Equip - Purchase,Life Fitness UK Ltd,02/05/2024,652.73
"Communities, Customer & Commercial Services",Sport & Leisure,Supplies & Services,Sport Equip - Purchase,Life Fitness UK Ltd,02/05/2024,344.44
"Communities, Customer & Commercial Services",Sport & Leisure,Supplies & Services,Sport Equip - Purchase,Life Fitness UK Ltd,03/05/2024,111.24
"Communities, Customer & Commercial Services",Sport & Leisure,Premises-Related Expenditure,R&M - Mechanical,Life Fitness UK Ltd,03/05/2024,279.00
"Communities, Customer & Commercial Services",Sport & Leisure,Supplies & Services,Equipment - Purchase,NOBRIDGE LTD,03/05/2024,600.00
"Communities, Customer & Commercial Services",Sport & Leisure,Supplies & Services,Other Materials,PROVAC CLEANING SUPPLIES LTD,09/05/2024,212.40
"Communities, Customer & Commercial Services",Sport & Leisure,Supplies & Services,Other Materials,PROVAC CLEANING SUPPLIES LTD,09/05/2024,149.84
"Communities, Customer & Commercial Services",Sport & Leisure,Premises-Related Expenditure,Electricity,West Mercia Energy (WME),28/05/2024,573.24
"Communities, Customer & Commercial Services",Sport & Leisure,Supplies & Services,Sub Contractors,BUSINESS WATCH GUARDING LIMITED,10/05/2024,630.32
"Communities, Customer & Commercial Services",Sport & Leisure,Supplies & Services,Sub Contractors,TAYLORS MECHANICAL H & P SERVICES LTD,03/05/2024,"1,250.00"
"Communities, Customer & Commercial Services",Sport & Leisure,Supplies & Services,Sub Contractors,MSM Hire Ltd,15/05/2024,"2,471.94"
"Communities, Customer & Commercial Services",Sport & Leisure,Supplies & Services,Sub Contractors,Countwise Systems Limited,22/05/2024,"2,365.00"
"Communities, Customer & Commercial Services",Sport & Leisure,Supplies & Services,Sub Contractors,METRIC GROUP LTD,23/05/2024,247.00
"Communities, Customer & Commercial Services",Sport & Leisure,Supplies & Services,Sub Contractors,R G STONES (BUILDINGS) LTD,24/05/2024,450.00
"Communities, Customer & Commercial Services",Sport & Leisure,Supplies & Services,Equipment - Purchase,RLSS UK Enterprises Ltd,22/05/2024,120.00
"Communities, Customer & Commercial Services",Sport & Leisure,Supplies & Services,Equipment - Purchase,RLSS UK Enterprises Ltd,22/05/2024,144.00
"Communities, Customer & Commercial Services",Sport & Leisure,Supplies & Services,Equipment - Purchase,RLSS UK Enterprises Ltd,22/05/2024,192.00
"Communities, Customer & Commercial Services",Sport & Leisure,Supplies & Services,Equipment - Purchase,RLSS UK Enterprises Ltd,08/05/2024,285.00
Corporate Items,Corporate Codes,Employees,Agency Supply Costs,Opus People Solutions Limited,29/05/2024,"64,455.96"
Corporate Items,Corporate Codes,Employees,Agency Supply Costs,Opus People Solutions Limited,02/05/2024,"54,478.12"
Corporate Items,Corporate Codes,Employees,Agency Supply Costs,Opus People Solutions Limited,08/05/2024,"42,288.73"
Corporate Items,Corporate Codes,Employees,Agency Supply Costs,Opus People Solutions Limited,16/05/2024,"59,706.00"
Corporate Items,Corporate Codes,Employees,Agency Supply Costs,Opus People Solutions Limited,30/05/2024,"61,059.99"
Corporate Items,Corporate Codes,Supplies & Services,Conference Expenses,ADCS,01/05/2024,911.00
Corporate Items,Corporate Codes,Capital Financing Costs,Penalty Deductions,PYRAMID SCHOOLS (HADLEY) LTD,14/05/2024,-223.27
Corporate Items,Corporate Codes,Capital Financing Costs,Unitary Charge,PYRAMID SCHOOLS (HADLEY) LTD,14/05/2024,"1,031,046.45"
Education & Skills,Consultancy & Advisory Services,Employees,Professional Subs,Speech and Language UK,12/05/2024,150.00
Education & Skills,Consultancy & Advisory Services,Premises-Related Expenditure,Hire Of Rooms,RAMADA TELFORD IRONBRIDGE,20/05/2024,125.00
Education & Skills,Consultancy & Advisory Services,Premises-Related Expenditure,Hire Of Rooms,MEETING POINT TRUST LTD,17/05/2024,225.00
Education & Skills,Consultancy & Advisory Services,Premises-Related Expenditure,Hire Of Rooms,MEETING POINT TRUST LTD,28/05/2024,112.50
Education & Skills,Consultancy & Advisory Services,Premises-Related Expenditure,Hire Of Rooms,MEETING POINT TRUST LTD,28/05/2024,112.50
Education & Skills,Consultancy & Advisory Services,Premises-Related Expenditure,Hire Of Rooms,MEETING POINT TRUST LTD,28/05/2024,129.17
Education & Skills,Consultancy & Advisory Services,Supplies & Services,Other Grants (Expenses),Shropshire Youth Association,01/05/2024,"2,500.00"
Education & Skills,Consultancy & Advisory Services,Supplies & Services,Other Grants (Expenses),Shropshire Youth Association,01/05/2024,"2,290.40"
Education & Skills,Consultancy & Advisory Services,Supplies & Services,Other Grants (Expenses),Shropshire Youth Association,01/05/2024,"2,290.40"
Education & Skills,Consultancy & Advisory Services,Supplies & Services,Conference Expenses,NASEN,01/05/2024,"6,000.00"
Education & Skills,Consultancy & Advisory Services,Supplies & Services,Other Grants (Expenses),4 All Foundation,21/05/2024,"1,481.00"
Education & Skills,Consultancy & Advisory Services,Supplies & Services,Other Grants (Expenses),4 All Foundation,21/05/2024,375.00
Education & Skills,Consultancy & Advisory Services,Supplies & Services,Other Grants (Expenses),4 All Foundation,21/05/2024,699.00
Education & Skills,Consultancy & Advisory Services,Supplies & Services,Other Grants (Expenses),C Cordingley Hall,21/05/2024,"1,000.00"
Education & Skills,Consultancy & Advisory Services,Supplies & Services,Other Grants (Expenses),C Cordingley Hall,21/05/2024,700.00
Education & Skills,Consultancy & Advisory Services,Supplies & Services,Other Grants (Expenses),HALESFIELD DAY NURSERY CENTRE ,21/05/2024,200.88
Education & Skills,Consultancy & Advisory Services,Supplies & Services,Other Grants (Expenses),STIRCHLEY & BROOKSIDE PARISH COUNCIL ,21/05/2024,629.85
Education & Skills,Consultancy & Advisory Services,Supplies & Services,Other Grants (Expenses),Moonstruck Astronaut C.I.C,21/05/2024,257.50
Education & Skills,Consultancy & Advisory Services,Supplies & Services,Other Grants (Expenses),OAKENGATES TOWN COUNCIL,21/05/2024,512.50
Education & Skills,Consultancy & Advisory Services,Supplies & Services,Other Grants (Expenses),PODS,21/05/2024,"1,433.75"
Education & Skills,Consultancy & Advisory Services,Supplies & Services,Other Grants (Expenses),Educating Kids Outdoors Ltd,21/05/2024,250.00
Education & Skills,Consultancy & Advisory Services,Supplies & Services,Other Grants (Expenses),School of Coding Ltd,21/05/2024,875.00
Education & Skills,Consultancy & Advisory Services,Supplies & Services,Other Grants (Expenses),School of Coding Ltd,21/05/2024,874.25
Education & Skills,Consultancy & Advisory Services,Supplies & Services,Other Grants (Expenses),School of Coding Ltd,21/05/2024,873.50
Education & Skills,Consultancy & Advisory Services,Supplies & Services,Other Grants (Expenses),Active Future Franchising Ltd,21/05/2024,"1,170.00"
Education & Skills,Consultancy & Advisory Services,Supplies & Services,Other Grants (Expenses),Active Future Franchising Ltd,21/05/2024,319.79
Education & Skills,Consultancy & Advisory Services,Supplies & Services,Other Grants (Expenses),Active Future Franchising Ltd,21/05/2024,867.00
Education & Skills,Consultancy & Advisory Services,Supplies & Services,Other Grants (Expenses),Genius Tuition,21/05/2024,"2,993.75"
Education & Skills,Consultancy & Advisory Services,Supplies & Services,Other Grants (Expenses),Genius Tuition,21/05/2024,998.40
Education & Skills,Consultancy & Advisory Services,Supplies & Services,Other Grants (Expenses),AFC Telford United Foundation CIC,21/05/2024,380.00
Education & Skills,Consultancy & Advisory Services,Supplies & Services,Other Grants (Expenses),CEIA,21/05/2024,900.00
Education & Skills,Consultancy & Advisory Services,Supplies & Services,Other Grants (Expenses),Cyclones Football CIC,21/05/2024,602.62
Education & Skills,Consultancy & Advisory Services,Supplies & Services,Other Grants (Expenses),Genius Tuition,21/05/2024,"2,496.07"
Education & Skills,Consultancy & Advisory Services,Supplies & Services,Other Grants (Expenses),Genius Tuition,21/05/2024,998.40
Education & Skills,Consultancy & Advisory Services,Supplies & Services,Other Grants (Expenses),Great Dawley Town Council,21/05/2024,774.90
Education & Skills,Consultancy & Advisory Services,Supplies & Services,Other Grants (Expenses),Great Dawley Town Council,21/05/2024,428.16
Education & Skills,Consultancy & Advisory Services,Supplies & Services,Other Grants (Expenses),Old Park Primary SCHOOL FUND,21/05/2024,479.26
Education & Skills,Consultancy & Advisory Services,Supplies & Services,Other Grants (Expenses),Portalkids Ltd,21/05/2024,170.33
Education & Skills,Consultancy & Advisory Services,Supplies & Services,Other Grants (Expenses),Wrekin Forest Schools and Events Ltd,21/05/2024,260.00
Education & Skills,Consultancy & Advisory Services,Supplies & Services,Other Grants (Expenses),Wrekin Forest Schools and Events Ltd,21/05/2024,289.69
Education & Skills,Consultancy & Advisory Services,Supplies & Services,Other Services,Puddleducks Under Fives Ltd,28/05/2024,233.36
Education & Skills,Consultancy & Advisory Services,Supplies & Services,Marketing & Publicity,Deco Stitch Ltd,28/05/2024,373.40
Education & Skills,Consultancy & Advisory Services,Supplies & Services,Training Costs - Participants Recharged,Mercure Telford Centre Hotel,21/05/2024,334.83
Education & Skills,Consultancy & Advisory Services,Premises-Related Expenditure,Hire Of Rooms,Mercure Telford Centre Hotel,21/05/2024,124.46
Education & Skills,Pupil Support Services,Third Party Payments,Misc. Education Payments to T&W Schools (incl Academies),THE EDUCATION DEVELOPMENT SERVICE LTD,16/05/2024,"12,666.00"
Education & Skills,Pupil Support Services,Third Party Payments,Misc. Education Payments to T&W Schools (incl Academies),THE EDUCATION DEVELOPMENT SERVICE LTD,16/05/2024,"6,334.00"
Education & Skills,Pupil Support Services,Third Party Payments,DSG - High Needs Block,Hadley Learning Community Academy,31/05/2024,"2,255.00"
Education & Skills,Pupil Support Services,Third Party Payments,DSG - High Needs Block,Hadley Learning Community Academy,31/05/2024,"2,750.00"
Education & Skills,Pupil Support Services,Third Party Payments,DSG - High Needs Block,Hadley Learning Community Academy,31/05/2024,741.00
Education & Skills,Pupil Support Services,Supplies & Services,Instructors Fees,Lichfield Cathedral School,10/05/2024,"6,699.51"
Education & Skills,Pupil Support Services,Supplies & Services,Artistes Fees,SHROPSHIRE COUNCIL ,08/05/2024,138.64
Education & Skills,Pupil Support Services,Supplies & Services,Other Expenses,The Shropshire Golf Centre,08/05/2024,147.92
Education & Skills,Pupil Support Services,Supplies & Services,Equipment - Purchase,Gear4 Music,13/05/2024,520.02
Education & Skills,Pupil Support Services,Supplies & Services,Equipment - Purchase,Heritage Music & Caswell�s Strings,13/05/2024,"3,263.11"
Education & Skills,Pupil Support Services,Supplies & Services,Equipment - Purchase,NORMANS MUSICAL INSTRUMENTS,13/05/2024,198.00
Education & Skills,Pupil Support Services,Supplies & Services,Equipment - Purchase,Southern Percussion Ltd,15/05/2024,229.17
Education & Skills,Pupil Support Services,Supplies & Services,Artistes Fees,Redacted Personal Information ,13/05/2024,"2,820.00"
Education & Skills,Pupil Support Services,Supplies & Services,Artistes Fees,Charles Dale-Harris,15/05/2024,900.00
Education & Skills,Pupil Support Services,Supplies & Services,Artistes Fees,Entrust Support Services Ltd,15/05/2024,"3,170.00"
Education & Skills,Pupil Support Services,Supplies & Services,Artistes Fees,CITY OF STOKE ON TRENT,21/05/2024,"1,105.00"
Education & Skills,SEND (0-25),Transport-Related Expenditure,Taxi Costs,24X7 Ltd,10/05/2024,"2,278.68"
Education & Skills,SEND (0-25),Transport-Related Expenditure,Taxi Costs,Telford Taxi Hire Limited,10/05/2024,"1,210.00"
Education & Skills,SEND (0-25),Employees,Agency Supply Costs,Tile Hill,08/05/2024,"9,009.00"
Education & Skills,SEND (0-25),Supplies & Services,Other Services,Permanent Futures Ltd,11/05/2024,"1,400.00"
Education & Skills,SEND (0-25),Supplies & Services,Other Services,Inman Psychology Limited,11/05/2024,"10,000.00"
Education & Skills,SEND (0-25),Supplies & Services,Other Services,NonStop Consulting Ltd,11/05/2024,"1,150.00"
Education & Skills,SEND (0-25),Supplies & Services,Other Services,LINQ Healthcare Recruitment  Specialists Ltd,11/05/2024,"1,275.00"
Education & Skills,SEND (0-25),Third Party Payments,DSG - High Needs Block,NHS HEREFORD AND WORCESTERSHIRE ICB,23/05/2024,"34,632.00"
Education & Skills,SEND (0-25),Supplies & Services,Other Services,EDEN BROWN LTD,23/05/2024,"3,600.00"
Education & Skills,SEND (0-25),Supplies & Services,Other Services,Permanent Futures Ltd,31/05/2024,"1,400.00"
Education & Skills,SEND (0-25),Supplies & Services,Other Services,Permanent Futures Ltd,31/05/2024,"1,400.00"
Education & Skills,SEND (0-25),Supplies & Services,Other Services,LINQ Healthcare Recruitment  Specialists Ltd,31/05/2024,"1,275.00"
Education & Skills,SEND (0-25),Third Party Payments,DSG - High Needs Block,Redacted Personal Information ,07/05/2024,248.63
Education & Skills,SEND (0-25),Third Party Payments,DSG - High Needs Block,Kids Planet Day Nurseries Limited,10/05/2024,551.92
Education & Skills,SEND (0-25),Third Party Payments,DSG - High Needs Block,Bridge Therapy,14/05/2024,739.50
Education & Skills,SEND (0-25),Third Party Payments,DSG - High Needs Block,Bridge Therapy,14/05/2024,459.00
Education & Skills,SEND (0-25),Third Party Payments,DSG - High Needs Block,Bridge Therapy,14/05/2024,306.00
Education & Skills,SEND (0-25),Third Party Payments,DSG - High Needs Block,Bridge Therapy,14/05/2024,552.00
Education & Skills,SEND (0-25),Third Party Payments,DSG - High Needs Block,ABC DAY NURSERY LTD ,31/05/2024,309.59
Education & Skills,SEND (0-25),Third Party Payments,DSG - High Needs Block,ABC Day Nursery Hadley ,31/05/2024,887.67
Education & Skills,SEND (0-25),Third Party Payments,DSG - High Needs Block,Aqueduct Little Learners,31/05/2024,"3,558.67"
Education & Skills,SEND (0-25),Third Party Payments,DSG - High Needs Block,ABC Day Nursery (LIGHTMOOR),31/05/2024,720.78
Education & Skills,SEND (0-25),Third Party Payments,DSG - High Needs Block,Chec Mates Day Care,31/05/2024,"1,800.23"
Education & Skills,SEND (0-25),Third Party Payments,DSG - High Needs Block,DAISY CHAIN @ OLD HALL,31/05/2024,"1,250.00"
Education & Skills,SEND (0-25),Third Party Payments,DSG - High Needs Block,Grange Park Primary School - Community Academies Trust,31/05/2024,"1,966.67"
Education & Skills,SEND (0-25),Third Party Payments,DSG - High Needs Block,Kids Planet Day Nurseries Limited,31/05/2024,"2,265.99"
Education & Skills,SEND (0-25),Third Party Payments,DSG - High Needs Block,OAKENGATES UNITED PRE-SCHOOL,31/05/2024,178.08
Education & Skills,SEND (0-25),Third Party Payments,DSG - High Needs Block,Small Talk Nurseries,31/05/2024,"3,366.67"
Education & Skills,SEND (0-25),Third Party Payments,DSG - High Needs Block,TIGGY�S MONTESSORI NURSERY,31/05/2024,"1,194.98"
Education & Skills,SEND (0-25),Third Party Payments,DSG - High Needs Block,CHIPMUNKS NURSERY,31/05/2024,"1,633.33"
Education & Skills,SEND (0-25),Third Party Payments,DSG - High Needs Block,Busy Bees Day Nursery Telford,31/05/2024,720.78
Education & Skills,SEND (0-25),Third Party Payments,DSG - High Needs Block,Church Street Day Nursery,31/05/2024,"2,861.65"
Education & Skills,SEND (0-25),Third Party Payments,DSG - High Needs Block,Chipmunks Nursery OSC Ltd 2,31/05/2024,673.98
Education & Skills,SEND (0-25),Third Party Payments,DSG - High Needs Block,Childrensworld Newport,31/05/2024,833.33
Education & Skills,SEND (0-25),Third Party Payments,DSG - High Needs Block,Family Nurseries Ltd,31/05/2024,"1,721.00"
Education & Skills,SEND (0-25),Third Party Payments,DSG - High Needs Block,EARLYWORLD LIMITED,31/05/2024,720.78
Education & Skills,SEND (0-25),Third Party Payments,DSG - High Needs Block,HADLEY UNDER 5�S ,31/05/2024,"1,106.85"
Education & Skills,SEND (0-25),Third Party Payments,DSG - High Needs Block,HONEYBUNS NURSERIES,31/05/2024,816.67
Education & Skills,SEND (0-25),Third Party Payments,DSG - High Needs Block,LITTLE DRAGONS PRE-SCHOOL,31/05/2024,"1,966.66"
Education & Skills,SEND (0-25),Third Party Payments,DSG - High Needs Block,Redacted Personal Information ,31/05/2024,457.54
Education & Skills,SEND (0-25),Third Party Payments,DSG - High Needs Block,PRIORSLEE PRE-SCHOOL,31/05/2024,833.34
Education & Skills,SEND (0-25),Third Party Payments,DSG - High Needs Block,Puddleducks Under Fives Ltd,31/05/2024,416.67
Education & Skills,SEND (0-25),Third Party Payments,DSG - High Needs Block,PLAY-DAYS CORPORATION LTD,31/05/2024,"2,424.88"
Education & Skills,SEND (0-25),Third Party Payments,DSG - High Needs Block,TEAGUES BRIDGE PRE-SCHOOL,31/05/2024,"1,775.34"
Education & Skills,SEND (0-25),Third Party Payments,DSG - High Needs Block,THE BEARS DEN PRE-SCHOOL ,31/05/2024,400.00
Education & Skills,SEND (0-25),Third Party Payments,DSG - High Needs Block,TRENCH TOTS NEIGHBOURHOOD NURSERY LTD,31/05/2024,"2,436.30"
Education & Skills,SEND (0-25),Third Party Payments,DSG - High Needs Block,Twiggy�s Day Nursery DONNINGTON,31/05/2024,816.67
Education & Skills,SEND (0-25),Third Party Payments,DSG - High Needs Block,Twiggys Day Nursery Ltd SUTTON HILL,31/05/2024,594.75
Education & Skills,SEND (0-25),Third Party Payments,DSG - High Needs Block,WOODEN TOPS DAY NURSERY ,31/05/2024,"7,374.65"
Education & Skills,SEND (0-25),Third Party Payments,DSG - High Needs Block,Wrekin View Primary School,31/05/2024,"1,263.47"
Education & Skills,SEND (0-25),Third Party Payments,DSG - High Needs Block,Kids Planet Day Nurseries Limited,31/05/2024,833.33
Education & Skills,SEND (0-25),Third Party Payments,DSG - High Needs Block,LITTLE CHICKS PRE-SCHOOL LTD,31/05/2024,"1,120.78"
Education & Skills,SEND (0-25),Third Party Payments,DSG - High Needs Block,TWIGGYS DAY NURSERY MADELEY,31/05/2024,416.67
Education & Skills,SEND (0-25),Third Party Payments,DSG - High Needs Block,Pine Green Academy,10/05/2024,"7,981.00"
Education & Skills,SEND (0-25),Third Party Payments,DSG - High Needs Block,Loxley Hall School,10/05/2024,"4,366.74"
Education & Skills,SEND (0-25),Third Party Payments,DSG - High Needs Block,Acorn Care & Education Ltd,07/05/2024,"21,073.80"
Education & Skills,SEND (0-25),Third Party Payments,DSG - High Needs Block,Acorn Care & Education Ltd,07/05/2024,"20,075.00"
Education & Skills,SEND (0-25),Third Party Payments,DSG - High Needs Block,Acorn Education & Care Ltd,07/05/2024,"36,306.17"
Education & Skills,SEND (0-25),Third Party Payments,DSG - High Needs Block,Acorn Care & Education Ltd,07/05/2024,"4,433.00"
Education & Skills,SEND (0-25),Third Party Payments,DSG - High Needs Block,Acorn Care & Education Ltd,07/05/2024,"21,073.80"
Education & Skills,SEND (0-25),Third Party Payments,DSG - High Needs Block,BEDSTONE EDUCATIONAL TRUST LIMITED,30/05/2024,"9,320.00"
Education & Skills,SEND (0-25),Third Party Payments,DSG - High Needs Block,St David�s College,30/05/2024,"15,888.80"
Education & Skills,SEND (0-25),Third Party Payments,DSG - High Needs Block,Young Foundations Ltd,21/05/2024,"6,317.53"
Education & Skills,SEND (0-25),Third Party Payments,DSG - High Needs Block,Young Foundations Ltd,21/05/2024,947.63
Education & Skills,SEND (0-25),Third Party Payments,DSG - High Needs Block,Lawley Village Academy,15/05/2024,"2,699.19"
Education & Skills,SEND (0-25),Third Party Payments,DSG - High Needs Block,Dawley C of E Primary Academy,15/05/2024,"3,134.55"
Education & Skills,SEND (0-25),Third Party Payments,DSG - High Needs Block,Windmill Primary School Academy,15/05/2024,"5,137.18"
Education & Skills,SEND (0-25),Third Party Payments,DSG - High Needs Block,Allscott Meads Primary School & Nursery,15/05/2024,348.28
Education & Skills,SEND (0-25),Third Party Payments,DSG - High Needs Block,Crudgington Primary School,15/05/2024,"1,218.99"
Education & Skills,SEND (0-25),Third Party Payments,DSG - High Needs Block,Lantern Academy,15/05/2024,"1,218.99"
Education & Skills,SEND (0-25),Third Party Payments,DSG - High Needs Block,Hadley Learning Community Academy,15/05/2024,"7,226.88"
Education & Skills,SEND (0-25),Third Party Payments,DSG - High Needs Block,PRIORSLEE ACADEMY,15/05/2024,"4,875.77"
Education & Skills,SEND (0-25),Third Party Payments,DSG - High Needs Block,Aqueduct Primary Academy,15/05/2024,"3,134.55"
Education & Skills,SEND (0-25),Third Party Payments,DSG - High Needs Block,Apley Wood Primary Academy,15/05/2024,"5,746.68"
Education & Skills,SEND (0-25),Third Party Payments,DSG - High Needs Block,Redhill Primary Academy,15/05/2024,"4,092.33"
Education & Skills,SEND (0-25),Third Party Payments,DSG - High Needs Block,Wrekin View Primary School,15/05/2024,"6,920.82"
Education & Skills,SEND (0-25),Third Party Payments,DSG - High Needs Block,St Peter�s Bratton C of E Academy,15/05/2024,"2,263.84"
Education & Skills,SEND (0-25),Third Party Payments,DSG - High Needs Block,Grange Park Primary School - Community Academies Trust,15/05/2024,"6,443.24"
Education & Skills,SEND (0-25),Third Party Payments,DSG - High Needs Block,CAT - Telford Priory School,15/05/2024,"10,883.86"
Education & Skills,SEND (0-25),Third Party Payments,DSG - High Needs Block,Charlton Academy,15/05/2024,"13,321.83"
Education & Skills,SEND (0-25),Third Party Payments,DSG - High Needs Block,NEWPORT GIRLS HIGH SCHOOL ACADEMY TRUST,15/05/2024,609.50
Education & Skills,SEND (0-25),Third Party Payments,DSG - High Needs Block,Burton Borough School Learning Community Trust,15/05/2024,"10,448.51"
Education & Skills,SEND (0-25),Third Party Payments,DSG - High Needs Block,The Telford Langley School ,15/05/2024,"9,055.28"
Education & Skills,SEND (0-25),Third Party Payments,DSG - High Needs Block,Telford Park School,15/05/2024,"10,709.72"
Education & Skills,SEND (0-25),Third Party Payments,DSG - High Needs Block,Hadley Learning Community Academy,15/05/2024,"21,680.64"
Education & Skills,SEND (0-25),Third Party Payments,DSG - High Needs Block,Haberdashers Adams,15/05/2024,"1,654.34"
Education & Skills,SEND (0-25),Third Party Payments,DSG - High Needs Block,Ercall Wood Academy,15/05/2024,"11,319.22"
Education & Skills,SEND (0-25),Third Party Payments,DSG - High Needs Block,THOMAS TELFORD SCHOOL ,15/05/2024,609.50
Education & Skills,SEND (0-25),Third Party Payments,DSG - High Needs Block,MADELEY ACADEMY TRUST LTD,15/05/2024,"4,527.69"
Education & Skills,SEND (0-25),Third Party Payments,DSG - High Needs Block,ABRAHAM DARBY ACADEMY ,15/05/2024,"14,453.76"
Education & Skills,SEND (0-25),Third Party Payments,DSG - High Needs Block,St Patricks Catholic Primary Part of OLHOC,15/05/2024,"3,134.55"
Education & Skills,SEND (0-25),Third Party Payments,DSG - High Needs Block,Telford Priory School Learning Community Trust,16/05/2024,"10,883.86"
Education & Skills,SEND (0-25),Third Party Payments,DSG - High Needs Block,Queensway HLC,29/05/2024,"96,856.15"
Education & Skills,SEND (0-25),Third Party Payments,DSG - High Needs Block,Queensway HLC,29/05/2024,"66,047.65"
Education & Skills,SEND (0-25),Third Party Payments,DSG - High Needs Block,Chalkline Education & Support Ltd,10/05/2024,150.00
Education & Skills,SEND (0-25),Third Party Payments,DSG - High Needs Block,Kids Planet Day Nurseries Limited,10/05/2024,593.79
Education & Skills,SEND (0-25),Third Party Payments,DSG - High Needs Block,Chalkline Education & Support Ltd,10/05/2024,500.00
Education & Skills,SEND (0-25),Third Party Payments,DSG - High Needs Block,ESWB Tutoring and Support Ltd,10/05/2024,624.00
Education & Skills,SEND (0-25),Third Party Payments,DSG - High Needs Block,ESWB Tutoring and Support Ltd,10/05/2024,520.00
Education & Skills,SEND (0-25),Third Party Payments,DSG - High Needs Block,ESWB Tutoring and Support Ltd,10/05/2024,780.00
Education & Skills,SEND (0-25),Third Party Payments,DSG - High Needs Block,ESWB Tutoring and Support Ltd,10/05/2024,456.00
Education & Skills,SEND (0-25),Third Party Payments,DSG - High Needs Block,ESWB Tutoring and Support Ltd,10/05/2024,520.00
Education & Skills,SEND (0-25),Third Party Payments,DSG - High Needs Block,ESWB Tutoring and Support Ltd,10/05/2024,520.00
Education & Skills,SEND (0-25),Third Party Payments,DSG - High Needs Block,Chalkline Education & Support Ltd,10/05/2024,720.00
Education & Skills,SEND (0-25),Third Party Payments,DSG - High Needs Block,St Patricks Catholic Primary Part of OLHOC,10/05/2024,119.90
Education & Skills,SEND (0-25),Third Party Payments,DSG - High Needs Block,ESWB Tutoring and Support Ltd,10/05/2024,936.00
Education & Skills,SEND (0-25),Third Party Payments,DSG - High Needs Block,ESWB Tutoring and Support Ltd,10/05/2024,342.00
Education & Skills,SEND (0-25),Third Party Payments,DSG - High Needs Block,ESWB Tutoring and Support Ltd,10/05/2024,520.00
Education & Skills,SEND (0-25),Third Party Payments,DSG - High Needs Block,Chalkline Education & Support Ltd,10/05/2024,450.00
Education & Skills,SEND (0-25),Third Party Payments,DSG - High Needs Block,ESWB Tutoring and Support Ltd,10/05/2024,285.00
Education & Skills,SEND (0-25),Third Party Payments,DSG - High Needs Block,ABC DAY NURSERY LTD,10/05/2024,"1,959.10"
Education & Skills,SEND (0-25),Third Party Payments,DSG - High Needs Block,Busy Bees Day Nursery Telford,10/05/2024,"7,183.35"
Education & Skills,SEND (0-25),Third Party Payments,DSG - High Needs Block,Aqueduct Little Learners,10/05/2024,"2,176.77"
Education & Skills,SEND (0-25),Third Party Payments,DSG - High Needs Block,ABC Day Nursery (LIGHTMOOR),10/05/2024,"5,877.30"
Education & Skills,SEND (0-25),Third Party Payments,DSG - High Needs Block,ABC DAY NURSERY HOLLINSWOOD ,10/05/2024,"3,918.20"
Education & Skills,SEND (0-25),Third Party Payments,DSG - High Needs Block,ABC Day Nursery Hadley ,10/05/2024,"2,612.13"
Education & Skills,SEND (0-25),Third Party Payments,DSG - High Needs Block,HADLEY UNDER 5�S,10/05/2024,"5,877.30"
Education & Skills,SEND (0-25),Third Party Payments,DSG - High Needs Block,HONEYBUNS NURSERIES,10/05/2024,"1,741.42"
Education & Skills,SEND (0-25),Third Party Payments,DSG - High Needs Block,LITTLE CHICKS PRE-SCHOOL LTD,10/05/2024,"5,006.58"
Education & Skills,SEND (0-25),Third Party Payments,DSG - High Needs Block,THE BEARS DEN PRE-SCHOOL ,10/05/2024,"3,918.20"
Education & Skills,SEND (0-25),Third Party Payments,DSG - High Needs Block,PRIORSLEE ACADEMY,10/05/2024,"3,265.16"
Education & Skills,SEND (0-25),Third Party Payments,DSG - High Needs Block,CLUB 0-5 LTD,10/05/2024,"1,959.10"
Education & Skills,SEND (0-25),Third Party Payments,DSG - High Needs Block,CHILDCARE SOS,10/05/2024,"8,192.42"
Education & Skills,SEND (0-25),Third Party Payments,DSG - High Needs Block,Chipmunks Nursery OSC Ltd 2,10/05/2024,"3,607.96"
Education & Skills,SEND (0-25),Third Party Payments,DSG - High Needs Block,EARLYWORLD LIMITED,10/05/2024,"3,047.48"
Education & Skills,SEND (0-25),Third Party Payments,DSG - High Needs Block,LITTLE DRAGONS PRE-SCHOOL,10/05/2024,"1,741.42"
Education & Skills,SEND (0-25),Third Party Payments,DSG - High Needs Block,Church Street Day Nursery,10/05/2024,"4,571.23"
Education & Skills,SEND (0-25),Third Party Payments,DSG - High Needs Block,Hazels Childcare Ltd,10/05/2024,"1,959.10"
Education & Skills,SEND (0-25),Third Party Payments,DSG - High Needs Block,PRIORSLEE PRE-SCHOOL,10/05/2024,"4,571.23"
Education & Skills,SEND (0-25),Third Party Payments,DSG - High Needs Block,SMILEY FACES DAY NURSERIES LTD,10/05/2024,"6,269.10"
Education & Skills,SEND (0-25),Third Party Payments,DSG - High Needs Block,TEAGUES BRIDGE PRE-SCHOOL ,10/05/2024,870.71
Education & Skills,SEND (0-25),Third Party Payments,DSG - High Needs Block,WOODEN TOPS DAY NURSERY ,10/05/2024,"3,918.20"
Education & Skills,SEND (0-25),Third Party Payments,DSG - High Needs Block,Busy Bees Day Nursery Telford,07/05/2024,742.24
Education & Skills,SEND (0-25),Third Party Payments,DSG - High Needs Block,PRIORSLEE ACADEMY,07/05/2024,479.60
Education & Skills,SEND (0-25),Third Party Payments,DSG - High Needs Block,ABC DAY NURSERY HOLLINSWOOD ,07/05/2024,256.93
Education & Skills,SEND (0-25),Third Party Payments,DSG - High Needs Block,SMILEY FACES DAY NURSERIES LTD,07/05/2024,205.54
Education & Skills,SEND (0-25),Third Party Payments,DSG - High Needs Block,ABC Day Nursery (LIGHTMOOR),07/05/2024,"1,194.72"
Education & Skills,SEND (0-25),Third Party Payments,DSG - High Needs Block,HONEYBUNS NURSERIES,07/05/2024,228.38
Education & Skills,SEND (0-25),Third Party Payments,DSG - High Needs Block,ESWB Tutoring and Support Ltd,30/05/2024,520.00
Education & Skills,SEND (0-25),Third Party Payments,DSG - High Needs Block,ESWB Tutoring and Support Ltd,30/05/2024,520.00
Education & Skills,SEND (0-25),Third Party Payments,DSG - High Needs Block,ESWB Tutoring and Support Ltd,30/05/2024,285.00
Education & Skills,SEND (0-25),Third Party Payments,DSG - High Needs Block,ESWB Tutoring and Support Ltd,30/05/2024,780.00
Education & Skills,SEND (0-25),Third Party Payments,DSG - High Needs Block,ESWB Tutoring and Support Ltd,30/05/2024,520.00
Education & Skills,SEND (0-25),Third Party Payments,DSG - High Needs Block,ESWB Tutoring and Support Ltd,30/05/2024,456.00
Education & Skills,SEND (0-25),Third Party Payments,DSG - High Needs Block,ESWB Tutoring and Support Ltd,30/05/2024,228.00
Education & Skills,SEND (0-25),Third Party Payments,DSG - High Needs Block,ESWB Tutoring and Support Ltd,30/05/2024,520.00
Education & Skills,SEND (0-25),Third Party Payments,DSG - High Needs Block,ESWB Tutoring and Support Ltd,30/05/2024,228.00
Education & Skills,SEND (0-25),Third Party Payments,DSG - High Needs Block,ESWB Tutoring and Support Ltd,30/05/2024,285.00
Education & Skills,SEND (0-25),Third Party Payments,DSG - High Needs Block,ESWB Tutoring and Support Ltd,30/05/2024,456.00
Education & Skills,SEND (0-25),Third Party Payments,DSG - High Needs Block,ESWB Tutoring and Support Ltd,30/05/2024,520.00
Education & Skills,SEND (0-25),Third Party Payments,DSG - High Needs Block,ESWB Tutoring and Support Ltd,30/05/2024,780.00
Education & Skills,SEND (0-25),Third Party Payments,DSG - High Needs Block,ESWB Tutoring and Support Ltd,30/05/2024,520.00
Education & Skills,SEND (0-25),Third Party Payments,DSG - High Needs Block,Chalkline Education & Support Ltd,30/05/2024,150.00
Education & Skills,SEND (0-25),Third Party Payments,DSG - High Needs Block,Chalkline Education & Support Ltd,30/05/2024,450.00
Education & Skills,SEND (0-25),Third Party Payments,DSG - High Needs Block,Chalkline Education & Support Ltd,30/05/2024,720.00
Education & Skills,SEND (0-25),Third Party Payments,DSG - High Needs Block,CENTRAL PARK NURSERY,13/05/2024,"1,741.42"
Education & Skills,SEND (0-25),Third Party Payments,DSG - High Needs Block,Kids Planet Day Nurseries Limited,13/05/2024,"3,482.84"
Education & Skills,SEND (0-25),Third Party Payments,DSG - High Needs Block,Grange Park Primary School - Community Academies Trust,11/05/2024,268.35
Education & Skills,SEND (0-25),Third Party Payments,DSG - High Needs Block,ABRAHAM DARBY ACADEMY ,11/05/2024,"1,553.00"
Education & Skills,SEND (0-25),Third Party Payments,DSG - High Needs Block,Lawley Village Academy,11/05/2024,725.10
Education & Skills,SEND (0-25),Third Party Payments,DSG - High Needs Block,Wrekin View Primary School,11/05/2024,114.19
Education & Skills,SEND (0-25),Third Party Payments,DSG - High Needs Block,ESWB Tutoring and Support Ltd,16/05/2024,285.00
Education & Skills,SEND (0-25),Third Party Payments,DSG - High Needs Block,ESWB Tutoring and Support Ltd,16/05/2024,456.00
Education & Skills,SEND (0-25),Third Party Payments,DSG - High Needs Block,ESWB Tutoring and Support Ltd,16/05/2024,900.00
Education & Skills,SEND (0-25),Third Party Payments,DSG - High Needs Block,ESWB Tutoring and Support Ltd,16/05/2024,520.00
Education & Skills,SEND (0-25),Third Party Payments,DSG - High Needs Block,ESWB Tutoring and Support Ltd,16/05/2024,342.00
Education & Skills,SEND (0-25),Third Party Payments,DSG - High Needs Block,ESWB Tutoring and Support Ltd,16/05/2024,624.00
Education & Skills,SEND (0-25),Third Party Payments,DSG - High Needs Block,Chalkline Education & Support Ltd,21/05/2024,500.00
Education & Skills,SEND (0-25),Third Party Payments,DSG - High Needs Block,Chalkline Education & Support Ltd,21/05/2024,450.00
Education & Skills,SEND (0-25),Third Party Payments,DSG - High Needs Block,Chalkline Education & Support Ltd,21/05/2024,720.00
Education & Skills,SEND (0-25),Third Party Payments,DSG - High Needs Block,ESWB Tutoring and Support Ltd,16/05/2024,780.00
Education & Skills,SEND (0-25),Third Party Payments,DSG - High Needs Block,ESWB Tutoring and Support Ltd,16/05/2024,520.00
Education & Skills,SEND (0-25),Third Party Payments,DSG - High Needs Block,ESWB Tutoring and Support Ltd,16/05/2024,520.00
Education & Skills,SEND (0-25),Third Party Payments,DSG - High Needs Block,ESWB Tutoring and Support Ltd,16/05/2024,520.00
Education & Skills,SEND (0-25),Third Party Payments,DSG - High Needs Block,ESWB Tutoring and Support Ltd,16/05/2024,456.00
Education & Skills,SEND (0-25),Third Party Payments,DSG - High Needs Block,ESWB Tutoring and Support Ltd,16/05/2024,520.00
Education & Skills,SEND (0-25),Third Party Payments,DSG - High Needs Block,ESWB Tutoring and Support Ltd,16/05/2024,520.00
Education & Skills,SEND (0-25),Third Party Payments,DSG - High Needs Block,ESWB Tutoring and Support Ltd,16/05/2024,780.00
Education & Skills,SEND (0-25),Third Party Payments,DSG - High Needs Block,ESWB Tutoring and Support Ltd,16/05/2024,780.00
Education & Skills,SEND (0-25),Supplies & Services,Health & Safety Expenses,MIDSHIRES MOBILITY GROUP,20/05/2024,"2,063.50"
Education & Skills,SEND (0-25),Third Party Payments,DSG - High Needs Block,PRIORSLEE ACADEMY,15/05/2024,522.43
Education & Skills,SEND (0-25),Third Party Payments,DSG - High Needs Block,Wrekin View Primary School,15/05/2024,174.14
Education & Skills,SEND (0-25),Third Party Payments,DSG - High Needs Block,Grange Park Primary School - Community Academies Trust,15/05/2024,174.14
Education & Skills,SEND (0-25),Third Party Payments,DSG - High Needs Block,ABRAHAM DARBY ACADEMY ,15/05/2024,632.30
Education & Skills,SEND (0-25),Third Party Payments,DSG - High Needs Block,St Patricks Catholic Primary Part of OLHOC,15/05/2024,261.21
Education & Skills,SEND (0-25),Third Party Payments,DSG - High Needs Block,Aqueduct Primary Academy,15/05/2024,609.50
Education & Skills,SEND (0-25),Third Party Payments,DSG - High Needs Block,Apley Wood Primary Academy,15/05/2024,"1,166.08"
Education & Skills,SEND (0-25),Third Party Payments,DSG - High Needs Block,Charlton Academy,15/05/2024,"1,309.26"
Education & Skills,SEND (0-25),Third Party Payments,DSG - High Needs Block,Burton Borough School Learning Community Trust,15/05/2024,"1,044.85"
Education & Skills,SEND (0-25),Third Party Payments,DSG - High Needs Block,The Telford Langley School,15/05/2024,261.21
Education & Skills,SEND (0-25),Third Party Payments,DSG - High Needs Block,MADELEY ACADEMY TRUST LTD,15/05/2024,898.62
Education & Skills,SEND (0-25),Third Party Payments,DSG - High Needs Block,Lawley Village Academy,15/05/2024,632.39
Education & Skills,SEND (0-25),Third Party Payments,DSG - High Needs Block,Dawley C of E Primary Academy,15/05/2024,520.42
Education & Skills,SEND (0-25),Supplies & Services,Health & Safety Expenses,OSPREY HEALTHCARE LTD,20/05/2024,183.55
Education & Skills,SEND (0-25),Third Party Payments,DSG - High Needs Block,Chalkline Education & Support Ltd,30/05/2024,500.00
Education & Skills,SEND (0-25),Third Party Payments,DSG - High Needs Block,Chalkline Education & Support Ltd,30/05/2024,450.00
Education & Skills,SEND (0-25),Third Party Payments,DSG - High Needs Block,Chalkline Education & Support Ltd,30/05/2024,400.00
Education & Skills,SEND (0-25),Third Party Payments,DSG - High Needs Block,Chalkline Education & Support Ltd,30/05/2024,337.50
Education & Skills,SEND (0-25),Third Party Payments,DSG - High Needs Block,Chalkline Education & Support Ltd,30/05/2024,576.00
Education & Skills,SEND (0-25),Third Party Payments,DSG - High Needs Block,Chalkline Education & Support Ltd,30/05/2024,500.00
Education & Skills,SEND (0-25),Third Party Payments,DSG - High Needs Block,Chalkline Education & Support Ltd,30/05/2024,150.00
Education & Skills,SEND (0-25),Third Party Payments,DSG - High Needs Block,ESWB Tutoring and Support Ltd,30/05/2024,285.00
Education & Skills,SEND (0-25),Third Party Payments,DSG - High Needs Block,ESWB Tutoring and Support Ltd,30/05/2024,456.00
Education & Skills,SEND (0-25),Third Party Payments,DSG - High Needs Block,ESWB Tutoring and Support Ltd,30/05/2024,285.00
Education & Skills,SEND (0-25),Third Party Payments,DSG - High Needs Block,ESWB Tutoring and Support Ltd,30/05/2024,456.00
Education & Skills,SEND (0-25),Third Party Payments,DSG - High Needs Block,ESWB Tutoring and Support Ltd,30/05/2024,142.50
Education & Skills,SEND (0-25),Third Party Payments,DSG - High Needs Block,ESWB Tutoring and Support Ltd,30/05/2024,520.00
Education & Skills,SEND (0-25),Third Party Payments,DSG - High Needs Block,ESWB Tutoring and Support Ltd,30/05/2024,285.00
Education & Skills,SEND (0-25),Third Party Payments,DSG - High Needs Block,ESWB Tutoring and Support Ltd,30/05/2024,312.00
Education & Skills,SEND (0-25),Third Party Payments,DSG - High Needs Block,ESWB Tutoring and Support Ltd,30/05/2024,228.00
Education & Skills,SEND (0-25),Third Party Payments,DSG - High Needs Block,ESWB Tutoring and Support Ltd,30/05/2024,342.00
Education & Skills,SEND (0-25),Third Party Payments,DSG - High Needs Block,ESWB Tutoring and Support Ltd,30/05/2024,285.00
Education & Skills,SEND (0-25),Third Party Payments,DSG - High Needs Block,ESWB Tutoring and Support Ltd,30/05/2024,676.00
Education & Skills,SEND (0-25),Third Party Payments,DSG - High Needs Block,ESWB Tutoring and Support Ltd,30/05/2024,171.00
Education & Skills,SEND (0-25),Third Party Payments,DSG - High Needs Block,Chalkline Education & Support Ltd,30/05/2024,400.00
Education & Skills,SEND (0-25),Third Party Payments,DSG - High Needs Block,ESWB Tutoring and Support Ltd,30/05/2024,285.00
Education & Skills,SEND (0-25),Third Party Payments,DSG - High Needs Block,ESWB Tutoring and Support Ltd,30/05/2024,624.00
Education & Skills,SEND (0-25),Third Party Payments,DSG - High Needs Block,ESWB Tutoring and Support Ltd,30/05/2024,845.00
Education & Skills,SEND (0-25),Third Party Payments,DSG - High Needs Block,ESWB Tutoring and Support Ltd,30/05/2024,228.00
Education & Skills,SEND (0-25),Third Party Payments,DSG - High Needs Block,Chalkline Education & Support Ltd,30/05/2024,150.00
Education & Skills,SEND (0-25),Third Party Payments,DSG - High Needs Block,Chalkline Education & Support Ltd,30/05/2024,720.00
Education & Skills,SEND (0-25),Third Party Payments,DSG - High Needs Block,ESWB Tutoring and Support Ltd,30/05/2024,624.00
Education & Skills,SEND (0-25),Third Party Payments,DSG - High Needs Block,ESWB Tutoring and Support Ltd,30/05/2024,456.00
Education & Skills,SEND (0-25),Third Party Payments,DSG - High Needs Block,ESWB Tutoring and Support Ltd,30/05/2024,624.00
Education & Skills,SEND (0-25),Third Party Payments,DSG - High Needs Block,ESWB Tutoring and Support Ltd,30/05/2024,313.50
Education & Skills,SEND (0-25),Third Party Payments,DSG - High Needs Block,ESWB Tutoring and Support Ltd,30/05/2024,780.00
Education & Skills,SEND (0-25),Third Party Payments,DSG - High Needs Block,ESWB Tutoring and Support Ltd,30/05/2024,520.00
Education & Skills,SEND (0-25),Third Party Payments,DSG - High Needs Block,ESWB Tutoring and Support Ltd,30/05/2024,520.00
Education & Skills,SEND (0-25),Third Party Payments,DSG - High Needs Block,ESWB Tutoring and Support Ltd,30/05/2024,676.00
Education & Skills,SEND (0-25),Third Party Payments,DSG - High Needs Block,ESWB Tutoring and Support Ltd,30/05/2024,456.00
Education & Skills,SEND (0-25),Third Party Payments,DSG - High Needs Block,ESWB Tutoring and Support Ltd,30/05/2024,456.00
Education & Skills,SEND (0-25),Third Party Payments,DSG - High Needs Block,ESWB Tutoring and Support Ltd,30/05/2024,456.00
Education & Skills,SEND (0-25),Third Party Payments,DSG - High Needs Block,CROSSBAR COACHING,01/05/2024,"6,825.00"
Education & Skills,SEND (0-25),Third Party Payments,DSG - High Needs Block,CROSSBAR COACHING,01/05/2024,"6,825.00"
Education & Skills,SEND (0-25),Third Party Payments,DSG - High Needs Block,CROSSBAR COACHING,01/05/2024,"6,825.00"
Education & Skills,SEND (0-25),Third Party Payments,DSG - High Needs Block,CROSSBAR COACHING,01/05/2024,"8,775.00"
Education & Skills,SEND (0-25),Third Party Payments,DSG - High Needs Block,CROSSBAR COACHING,01/05/2024,"5,850.00"
Education & Skills,SEND (0-25),Third Party Payments,DSG - High Needs Block,CROSSBAR COACHING,01/05/2024,"6,825.00"
Education & Skills,SEND (0-25),Third Party Payments,DSG - High Needs Block,CROSSBAR COACHING,01/05/2024,"7,800.00"
Education & Skills,SEND (0-25),Third Party Payments,DSG - High Needs Block,CROSSBAR COACHING,01/05/2024,"1,225.00"
